Organisation Name,Organisation Code,Unique Ref No,Effective Date,Directorate  where expenditure incurred,Supplier Name,Payment Date,Net Amount,Purpose of Spend,Procurement Classification (Higher Level),Procurement Classification (Lower Level),Capital/Revenue
Walsall Council,http://opendatacommunities.org/id/metropolitan-district-council/walsall,WC86-1,30/11/2017,Childrens,247 CARS (WILLENHALL) LIMITED,06/11/2017,"1,828.80",52000-WITH DRIVER-HIRE OF VEHICLES,SCHOOL TRANSPORT,Transport,Revenue
Walsall Council,http://opendatacommunities.org/id/metropolitan-district-council/walsall,WC86-2,30/11/2017,Childrens,247 CARS (WILLENHALL) LIMITED,14/11/2017,"3,238.00",52000-WITH DRIVER-HIRE OF VEHICLES,SCHOOL TRANSPORT,Transport,Revenue
Walsall Council,http://opendatacommunities.org/id/metropolitan-district-council/walsall,WC86-3,30/11/2017,Economy & Environment,2TOTANGO LIMITED,08/11/2017,208.46,60529-SHOP STOCK-MATERIALS,NAG - NEW ART GALLERY SHOP STOCK,Supplies & Services,Revenue
Walsall Council,http://opendatacommunities.org/id/metropolitan-district-council/walsall,WC86-4,30/11/2017,Change and Governance,3C TECHNOLOGY LTD,23/11/2017,"1,155.00",63800-COMPUTER EQUIPMENT AND SUPPLIES,SIT-INFRASTRUCTURE,Supplies & Services,Revenue
Walsall Council,http://opendatacommunities.org/id/metropolitan-district-council/walsall,WC86-5,30/11/2017,Change and Governance,4TH DARLASTON SCOUT GROUP,23/11/2017,"1,720.00",62515-MISCELLANEOUS SUPPLIES,AREA 5 - DARLASTON/BENTLEY,Supplies & Services,Revenue
Walsall Council,http://opendatacommunities.org/id/metropolitan-district-council/walsall,WC86-6,30/11/2017,Childrens,5 CARE SERVICES LTD,08/11/2017,"1,442.00",63000-PROFESSIONAL FEES AND SERVICES,DIRECTLY COMMISSIONED NURSING SERVICES,Supplies & Services,Revenue
Walsall Council,http://opendatacommunities.org/id/metropolitan-district-council/walsall,WC86-7,30/11/2017,Childrens,5 CARE SERVICES LTD,08/11/2017,"1,799.00",63000-PROFESSIONAL FEES AND SERVICES,DIRECTLY COMMISSIONED NURSING SERVICES,Supplies & Services,Revenue
Walsall Council,http://opendatacommunities.org/id/metropolitan-district-council/walsall,WC86-8,30/11/2017,Adult Social Care,5 CARE SERVICES LTD,07/11/2017,"50,510.33",73372-DOMICILIARY CARE,OP PACKAGE/PLACEMENT COSTS,Third Party Payments,Revenue
Walsall Council,http://opendatacommunities.org/id/metropolitan-district-council/walsall,WC86-9,30/11/2017,Change and Governance,A & M ELLIS,06/11/2017,"2,700.00",62008-OUTWORK-PRINT ROOM,PRINTING SERVICES,Supplies & Services,Revenue
Walsall Council,http://opendatacommunities.org/id/metropolitan-district-council/walsall,WC86-10,30/11/2017,Economy & Environment,A B WASTE MANAGEMENT LTD,22/11/2017,"1,425.00","40000-REPAIRS,ALTERATIONS & MAINTENANCE-PREM",ARBORETUM HLF,Premises,Revenue
Walsall Council,http://opendatacommunities.org/id/metropolitan-district-council/walsall,WC86-11,30/11/2017,Change and Governance,A D T FIRE AND SECURITY PLC,20/11/2017,262.03,73002-SECURITY-PRIV CONTRACTOR FEES,CENTRALISED MAINTENANCE,Third Party Payments,Revenue
Walsall Council,http://opendatacommunities.org/id/metropolitan-district-council/walsall,WC86-12,30/11/2017,Change and Governance,A D T FIRE AND SECURITY PLC,06/11/2017,329.00,73002-SECURITY-PRIV CONTRACTOR FEES,CENTRALISED MAINTENANCE,Third Party Payments,Revenue
Walsall Council,http://opendatacommunities.org/id/metropolitan-district-council/walsall,WC86-13,30/11/2017,Change and Governance,A D T FIRE AND SECURITY PLC,28/11/2017,407.38,73002-SECURITY-PRIV CONTRACTOR FEES,CENTRALISED MAINTENANCE,Third Party Payments,Revenue
Walsall Council,http://opendatacommunities.org/id/metropolitan-district-council/walsall,WC86-14,30/11/2017,Childrens,A D T FIRE AND SECURITY PLC,30/11/2017,"1,589.00",01006-SITE WORKS MAIN CONTRACTORS,SANDBANK NURSERY DEV FORMULA CAPITAL,Capital,Capital
Walsall Council,http://opendatacommunities.org/id/metropolitan-district-council/walsall,WC86-15,30/11/2017,Childrens,A D T FIRE AND SECURITY PLC,14/11/2017,"2,535.68",01017-PURCHASE OF VEHICLES & PLANT,JANE LANE SCHOOL DEV FORMULA CAPITAL,Capital,Capital
Walsall Council,http://opendatacommunities.org/id/metropolitan-district-council/walsall,WC86-16,30/11/2017,Economy & Environment,A F BLAKEMORE & SON LTD,14/11/2017,219.66,61008-CONFECTIONERY/SNACKS-PROVISIONS,WALSALL GALA CENTRE,Supplies & Services,Revenue
Walsall Council,http://opendatacommunities.org/id/metropolitan-district-council/walsall,WC86-17,30/11/2017,Economy & Environment,A F BLAKEMORE & SON LTD,20/11/2017,242.14,61009-BEVERAGES-PROVISIONS,FOREST ARTS CENTRE,Supplies & Services,Revenue
Walsall Council,http://opendatacommunities.org/id/metropolitan-district-council/walsall,WC86-18,30/11/2017,Economy & Environment,A F BLAKEMORE & SON LTD,06/11/2017,263.35,61018-DRINKS-PROVISIONS,OAK PARK,Supplies & Services,Revenue
Walsall Council,http://opendatacommunities.org/id/metropolitan-district-council/walsall,WC86-19,30/11/2017,Economy & Environment,A F BLAKEMORE & SON LTD,23/11/2017,270.77,61018-DRINKS-PROVISIONS,OAK PARK,Supplies & Services,Revenue
Walsall Council,http://opendatacommunities.org/id/metropolitan-district-council/walsall,WC86-20,30/11/2017,Economy & Environment,A F BLAKEMORE & SON LTD,06/11/2017,281.15,61018-DRINKS-PROVISIONS,OAK PARK,Supplies & Services,Revenue
Walsall Council,http://opendatacommunities.org/id/metropolitan-district-council/walsall,WC86-21,30/11/2017,Adult Social Care,A F BLAKEMORE & SON LTD,06/11/2017,290.61,61016-FOOD AND BEVERAGES-PROVISIONS,GOSCOTE,Supplies & Services,Revenue
Walsall Council,http://opendatacommunities.org/id/metropolitan-district-council/walsall,WC86-22,30/11/2017,Economy & Environment,A F BLAKEMORE & SON LTD,06/11/2017,298.19,61009-BEVERAGES-PROVISIONS,FOREST ARTS CENTRE,Supplies & Services,Revenue
Walsall Council,http://opendatacommunities.org/id/metropolitan-district-council/walsall,WC86-23,30/11/2017,Economy & Environment,A F BLAKEMORE & SON LTD,09/11/2017,324.68,61002-DRY FOODS-PROVISIONS,BLOXWICH LEISURE CENTRE,Supplies & Services,Revenue
Walsall Council,http://opendatacommunities.org/id/metropolitan-district-council/walsall,WC86-24,30/11/2017,Economy & Environment,A F BLAKEMORE & SON LTD,27/11/2017,345.73,61002-DRY FOODS-PROVISIONS,BLOXWICH LEISURE CENTRE,Supplies & Services,Revenue
Walsall Council,http://opendatacommunities.org/id/metropolitan-district-council/walsall,WC86-25,30/11/2017,Economy & Environment,A F BLAKEMORE & SON LTD,13/11/2017,352.08,61018-DRINKS-PROVISIONS,OAK PARK,Supplies & Services,Revenue
Walsall Council,http://opendatacommunities.org/id/metropolitan-district-council/walsall,WC86-26,30/11/2017,Economy & Environment,A F BLAKEMORE & SON LTD,27/11/2017,356.55,61018-DRINKS-PROVISIONS,OAK PARK,Supplies & Services,Revenue
Walsall Council,http://opendatacommunities.org/id/metropolitan-district-council/walsall,WC86-27,30/11/2017,Economy & Environment,A F BLAKEMORE & SON LTD,21/11/2017,371.88,61018-DRINKS-PROVISIONS,OAK PARK,Supplies & Services,Revenue
Walsall Council,http://opendatacommunities.org/id/metropolitan-district-council/walsall,WC86-28,30/11/2017,Adult Social Care,A F BLAKEMORE & SON LTD,06/11/2017,393.44,61016-FOOD AND BEVERAGES-PROVISIONS,GOSCOTE,Supplies & Services,Revenue
Walsall Council,http://opendatacommunities.org/id/metropolitan-district-council/walsall,WC86-29,30/11/2017,Economy & Environment,A F BLAKEMORE & SON LTD,24/11/2017,443.45,61002-DRY FOODS-PROVISIONS,BLOXWICH LEISURE CENTRE,Supplies & Services,Revenue
Walsall Council,http://opendatacommunities.org/id/metropolitan-district-council/walsall,WC86-30,30/11/2017,Adult Social Care,A F BLAKEMORE & SON LTD,20/11/2017,494.77,61016-FOOD AND BEVERAGES-PROVISIONS,GOSCOTE,Supplies & Services,Revenue
Walsall Council,http://opendatacommunities.org/id/metropolitan-district-council/walsall,WC86-31,30/11/2017,Adult Social Care,A F BLAKEMORE & SON LTD,08/11/2017,530.72,61016-FOOD AND BEVERAGES-PROVISIONS,REABLEMENT TEAM - HOLLY BANK,Supplies & Services,Revenue
Walsall Council,http://opendatacommunities.org/id/metropolitan-district-council/walsall,WC86-32,30/11/2017,Economy & Environment,A F BLAKEMORE & SON LTD,24/11/2017,720.46,61002-DRY FOODS-PROVISIONS,BLOXWICH LEISURE CENTRE,Supplies & Services,Revenue
Walsall Council,http://opendatacommunities.org/id/metropolitan-district-council/walsall,WC86-33,30/11/2017,Economy & Environment,A F BLAKEMORE & SON LTD,23/11/2017,815.15,61008-CONFECTIONERY/SNACKS-PROVISIONS,OAK PARK,Supplies & Services,Revenue
Walsall Council,http://opendatacommunities.org/id/metropolitan-district-council/walsall,WC86-34,30/11/2017,Economy & Environment,A F BLAKEMORE & SON LTD,06/11/2017,904.89,61008-CONFECTIONERY/SNACKS-PROVISIONS,OAK PARK,Supplies & Services,Revenue
Walsall Council,http://opendatacommunities.org/id/metropolitan-district-council/walsall,WC86-35,30/11/2017,Adult Social Care,A STAR SUPPORT SERVICES LIMITED,23/11/2017,"1,682.00",73374-SUPPORTED & OTHER ACCOMMODATION,LD PACKAGE/PLACEMENT COSTS,Third Party Payments,Revenue
Walsall Council,http://opendatacommunities.org/id/metropolitan-district-council/walsall,WC86-36,30/11/2017,Adult Social Care,A STAR SUPPORT SERVICES LIMITED,23/11/2017,"1,682.00",73374-SUPPORTED & OTHER ACCOMMODATION,LD PACKAGE/PLACEMENT COSTS,Third Party Payments,Revenue
Walsall Council,http://opendatacommunities.org/id/metropolitan-district-council/walsall,WC86-37,30/11/2017,Adult Social Care,A STAR SUPPORT SERVICES LIMITED,23/11/2017,"1,682.00",73374-SUPPORTED & OTHER ACCOMMODATION,LD PACKAGE/PLACEMENT COSTS,Third Party Payments,Revenue
Walsall Council,http://opendatacommunities.org/id/metropolitan-district-council/walsall,WC86-38,30/11/2017,Adult Social Care,A STAR SUPPORT SERVICES LIMITED,24/11/2017,"1,682.00",73374-SUPPORTED & OTHER ACCOMMODATION,LD PACKAGE/PLACEMENT COSTS,Third Party Payments,Revenue
Walsall Council,http://opendatacommunities.org/id/metropolitan-district-council/walsall,WC86-39,30/11/2017,Adult Social Care,A STAR SUPPORT SERVICES LIMITED,23/11/2017,"3,480.00",73374-SUPPORTED & OTHER ACCOMMODATION,LD PACKAGE/PLACEMENT COSTS,Third Party Payments,Revenue
Walsall Council,http://opendatacommunities.org/id/metropolitan-district-council/walsall,WC86-40,30/11/2017,Childrens,REDACTED,03/11/2017,378.00,76422-DIRECT PAYMENTS TO SOCIAL SERVICES CLIENTS,FAMILY SUPPORT - DIRECT PAYMENTS,Transfer Payments,Revenue
Walsall Council,http://opendatacommunities.org/id/metropolitan-district-council/walsall,WC86-41,30/11/2017,Adult Social Care,ABBEY COURT NURSING & RESIDEN,13/11/2017,"-1,275.51",73373-RESIDENTIAL & NURSING CARE PLACEMENTS,MH COMMISSIONING,Third Party Payments,Revenue
Walsall Council,http://opendatacommunities.org/id/metropolitan-district-council/walsall,WC86-42,30/11/2017,Adult Social Care,ABBEY COURT NURSING & RESIDEN,13/11/2017,348.30,73373-RESIDENTIAL & NURSING CARE PLACEMENTS,MH COMMISSIONING,Third Party Payments,Revenue
Walsall Council,http://opendatacommunities.org/id/metropolitan-district-council/walsall,WC86-43,30/11/2017,Adult Social Care,ABBEY COURT NURSING & RESIDEN,13/11/2017,"1,728.77",73373-RESIDENTIAL & NURSING CARE PLACEMENTS,OP PACKAGE/PLACEMENT COSTS,Third Party Payments,Revenue
Walsall Council,http://opendatacommunities.org/id/metropolitan-district-council/walsall,WC86-44,30/11/2017,Adult Social Care,ABBEY COURT NURSING & RESIDEN,13/11/2017,"1,728.77",73373-RESIDENTIAL & NURSING CARE PLACEMENTS,OP PACKAGE/PLACEMENT COSTS,Third Party Payments,Revenue
Walsall Council,http://opendatacommunities.org/id/metropolitan-district-council/walsall,WC86-45,30/11/2017,Adult Social Care,ABBEY COURT NURSING & RESIDEN,13/11/2017,"1,786.40",73373-RESIDENTIAL & NURSING CARE PLACEMENTS,OP PACKAGE/PLACEMENT COSTS,Third Party Payments,Revenue
Walsall Council,http://opendatacommunities.org/id/metropolitan-district-council/walsall,WC86-46,30/11/2017,Adult Social Care,ABBEY COURT NURSING & RESIDEN,13/11/2017,"1,818.30",73373-RESIDENTIAL & NURSING CARE PLACEMENTS,OP PACKAGE/PLACEMENT COSTS,Third Party Payments,Revenue
Walsall Council,http://opendatacommunities.org/id/metropolitan-district-council/walsall,WC86-47,30/11/2017,Adult Social Care,ABBEY COURT NURSING & RESIDEN,13/11/2017,"1,971.42",73373-RESIDENTIAL & NURSING CARE PLACEMENTS,OP PACKAGE/PLACEMENT COSTS,Third Party Payments,Revenue
Walsall Council,http://opendatacommunities.org/id/metropolitan-district-council/walsall,WC86-48,30/11/2017,Adult Social Care,ABBEY COURT NURSING & RESIDEN,13/11/2017,"1,971.43",73373-RESIDENTIAL & NURSING CARE PLACEMENTS,OP PACKAGE/PLACEMENT COSTS,Third Party Payments,Revenue
Walsall Council,http://opendatacommunities.org/id/metropolitan-district-council/walsall,WC86-49,30/11/2017,Adult Social Care,ABBEY COURT NURSING & RESIDEN,13/11/2017,"2,037.14",73373-RESIDENTIAL & NURSING CARE PLACEMENTS,OP PACKAGE/PLACEMENT COSTS,Third Party Payments,Revenue
Walsall Council,http://opendatacommunities.org/id/metropolitan-district-council/walsall,WC86-50,30/11/2017,Adult Social Care,ABBEY COURT NURSING & RESIDEN,13/11/2017,"2,037.14",73373-RESIDENTIAL & NURSING CARE PLACEMENTS,OP PACKAGE/PLACEMENT COSTS,Third Party Payments,Revenue
Walsall Council,http://opendatacommunities.org/id/metropolitan-district-council/walsall,WC86-51,30/11/2017,Adult Social Care,ABBEY COURT NURSING & RESIDEN,13/11/2017,"2,075.44",73373-RESIDENTIAL & NURSING CARE PLACEMENTS,OP PACKAGE/PLACEMENT COSTS,Third Party Payments,Revenue
Walsall Council,http://opendatacommunities.org/id/metropolitan-district-council/walsall,WC86-52,30/11/2017,Adult Social Care,ABBEY COURT NURSING & RESIDEN,13/11/2017,"2,142.86",73373-RESIDENTIAL & NURSING CARE PLACEMENTS,OP PACKAGE/PLACEMENT COSTS,Third Party Payments,Revenue
Walsall Council,http://opendatacommunities.org/id/metropolitan-district-council/walsall,WC86-53,30/11/2017,Adult Social Care,ABBEY COURT NURSING & RESIDEN,13/11/2017,"2,214.29",73373-RESIDENTIAL & NURSING CARE PLACEMENTS,OP PACKAGE/PLACEMENT COSTS,Third Party Payments,Revenue
Walsall Council,http://opendatacommunities.org/id/metropolitan-district-council/walsall,WC86-54,30/11/2017,Adult Social Care,ABBEY COURT NURSING & RESIDEN,13/11/2017,"2,525.92",73373-RESIDENTIAL & NURSING CARE PLACEMENTS,OP PACKAGE/PLACEMENT COSTS,Third Party Payments,Revenue
Walsall Council,http://opendatacommunities.org/id/metropolitan-district-council/walsall,WC86-55,30/11/2017,Adult Social Care,ABBEY COURT NURSING & RESIDEN,13/11/2017,"3,367.90",73373-RESIDENTIAL & NURSING CARE PLACEMENTS,OP PACKAGE/PLACEMENT COSTS,Third Party Payments,Revenue
Walsall Council,http://opendatacommunities.org/id/metropolitan-district-council/walsall,WC86-56,30/11/2017,Childrens,ABC FOSTERING,06/11/2017,"2,635.20",74037-INDEPENDENT FOSTER CARE-OTH AGENCY PROVISION,EXTERNAL FOSTER CARE PROVISION,Third Party Payments,Revenue
Walsall Council,http://opendatacommunities.org/id/metropolitan-district-council/walsall,WC86-57,30/11/2017,Childrens,ABC FOSTERING,06/11/2017,"2,859.48",74037-INDEPENDENT FOSTER CARE-OTH AGENCY PROVISION,EXTERNAL FOSTER CARE PROVISION,Third Party Payments,Revenue
Walsall Council,http://opendatacommunities.org/id/metropolitan-district-council/walsall,WC86-58,30/11/2017,Childrens,ABC FOSTERING,06/11/2017,"2,880.00",74037-INDEPENDENT FOSTER CARE-OTH AGENCY PROVISION,EXTERNAL FOSTER CARE PROVISION,Third Party Payments,Revenue
Walsall Council,http://opendatacommunities.org/id/metropolitan-district-council/walsall,WC86-59,30/11/2017,Childrens,ABC FOSTERING,06/11/2017,"3,042.00",74037-INDEPENDENT FOSTER CARE-OTH AGENCY PROVISION,EXTERNAL FOSTER CARE PROVISION,Third Party Payments,Revenue
Walsall Council,http://opendatacommunities.org/id/metropolitan-district-council/walsall,WC86-60,30/11/2017,Childrens,ABC FOSTERING,06/11/2017,"3,182.40",74037-INDEPENDENT FOSTER CARE-OTH AGENCY PROVISION,EXTERNAL FOSTER CARE PROVISION,Third Party Payments,Revenue
Walsall Council,http://opendatacommunities.org/id/metropolitan-district-council/walsall,WC86-61,30/11/2017,Adult Social Care,REDACTED,03/11/2017,"1,557.68",76422-DIRECT PAYMENTS TO SOCIAL SERVICES CLIENTS,LD PACKAGE/PLACEMENT COSTS,Transfer Payments,Revenue
Walsall Council,http://opendatacommunities.org/id/metropolitan-district-council/walsall,WC86-62,30/11/2017,Adult Social Care,REDACTED,03/11/2017,"2,357.99",76422-DIRECT PAYMENTS TO SOCIAL SERVICES CLIENTS,LD PACKAGE/PLACEMENT COSTS,Transfer Payments,Revenue
Walsall Council,http://opendatacommunities.org/id/metropolitan-district-council/walsall,WC86-63,30/11/2017,Economy & Environment,ABRSM,15/11/2017,"1,111.00",63124-FEES & LICENCES-SERVICES,MUSIC HUB FOREST ARTS,Supplies & Services,Revenue
Walsall Council,http://opendatacommunities.org/id/metropolitan-district-council/walsall,WC86-64,30/11/2017,Adult Social Care,ACCORD HOUSING ASSOCIATION LTD#135,17/11/2017,296.80,73374-SUPPORTED & OTHER ACCOMMODATION,MENTAL HEALTH PACKAGE/PLACEMENT COSTS,Third Party Payments,Revenue
Walsall Council,http://opendatacommunities.org/id/metropolitan-district-council/walsall,WC86-65,30/11/2017,Adult Social Care,ACCORD HOUSING ASSOCIATION LTD#135,17/11/2017,599.80,73374-SUPPORTED & OTHER ACCOMMODATION,MENTAL HEALTH PACKAGE/PLACEMENT COSTS,Third Party Payments,Revenue
Walsall Council,http://opendatacommunities.org/id/metropolitan-district-council/walsall,WC86-66,30/11/2017,Adult Social Care,ACCORD HOUSING ASSOCIATION LTD#135,17/11/2017,604.48,73374-SUPPORTED & OTHER ACCOMMODATION,MENTAL HEALTH PACKAGE/PLACEMENT COSTS,Third Party Payments,Revenue
Walsall Council,http://opendatacommunities.org/id/metropolitan-district-council/walsall,WC86-67,30/11/2017,Adult Social Care,ACCORD HOUSING ASSOCIATION LTD#135,17/11/2017,661.12,73374-SUPPORTED & OTHER ACCOMMODATION,MENTAL HEALTH PACKAGE/PLACEMENT COSTS,Third Party Payments,Revenue
Walsall Council,http://opendatacommunities.org/id/metropolitan-district-council/walsall,WC86-68,30/11/2017,Adult Social Care,ACCORD HOUSING ASSOCIATION LTD#135,17/11/2017,682.64,73374-SUPPORTED & OTHER ACCOMMODATION,OP PACKAGE/PLACEMENT COSTS,Third Party Payments,Revenue
Walsall Council,http://opendatacommunities.org/id/metropolitan-district-council/walsall,WC86-69,30/11/2017,Adult Social Care,ACCORD HOUSING ASSOCIATION LTD#135,17/11/2017,793.36,73374-SUPPORTED & OTHER ACCOMMODATION,MENTAL HEALTH PACKAGE/PLACEMENT COSTS,Third Party Payments,Revenue
Walsall Council,http://opendatacommunities.org/id/metropolitan-district-council/walsall,WC86-70,30/11/2017,Adult Social Care,ACCORD HOUSING ASSOCIATION LTD#135,17/11/2017,793.36,73374-SUPPORTED & OTHER ACCOMMODATION,MENTAL HEALTH PACKAGE/PLACEMENT COSTS,Third Party Payments,Revenue
Walsall Council,http://opendatacommunities.org/id/metropolitan-district-council/walsall,WC86-71,30/11/2017,Adult Social Care,ACCORD HOUSING ASSOCIATION LTD#135,01/11/2017,823.77,73373-RESIDENTIAL & NURSING CARE PLACEMENTS,LD PACKAGE/PLACEMENT COSTS,Third Party Payments,Revenue
Walsall Council,http://opendatacommunities.org/id/metropolitan-district-council/walsall,WC86-72,30/11/2017,Adult Social Care,ACCORD HOUSING ASSOCIATION LTD#135,17/11/2017,868.96,73374-SUPPORTED & OTHER ACCOMMODATION,MENTAL HEALTH PACKAGE/PLACEMENT COSTS,Third Party Payments,Revenue
Walsall Council,http://opendatacommunities.org/id/metropolitan-district-council/walsall,WC86-73,30/11/2017,Adult Social Care,ACCORD HOUSING ASSOCIATION LTD#135,17/11/2017,"1,133.40",73374-SUPPORTED & OTHER ACCOMMODATION,MENTAL HEALTH PACKAGE/PLACEMENT COSTS,Third Party Payments,Revenue
Walsall Council,http://opendatacommunities.org/id/metropolitan-district-council/walsall,WC86-74,30/11/2017,Adult Social Care,ACCORD HOUSING ASSOCIATION LTD#135,17/11/2017,"1,227.84",73374-SUPPORTED & OTHER ACCOMMODATION,MENTAL HEALTH PACKAGE/PLACEMENT COSTS,Third Party Payments,Revenue
Walsall Council,http://opendatacommunities.org/id/metropolitan-district-council/walsall,WC86-75,30/11/2017,Adult Social Care,ACCORD HOUSING ASSOCIATION LTD#135,08/11/2017,"1,259.28",73374-SUPPORTED & OTHER ACCOMMODATION,LD PACKAGE/PLACEMENT COSTS,Third Party Payments,Revenue
Walsall Council,http://opendatacommunities.org/id/metropolitan-district-council/walsall,WC86-76,30/11/2017,Adult Social Care,ACCORD HOUSING ASSOCIATION LTD#135,23/11/2017,"1,259.28",73374-SUPPORTED & OTHER ACCOMMODATION,LD PACKAGE/PLACEMENT COSTS,Third Party Payments,Revenue
Walsall Council,http://opendatacommunities.org/id/metropolitan-district-council/walsall,WC86-77,30/11/2017,Adult Social Care,ACCORD HOUSING ASSOCIATION LTD#135,17/11/2017,"1,322.28",73374-SUPPORTED & OTHER ACCOMMODATION,MENTAL HEALTH PACKAGE/PLACEMENT COSTS,Third Party Payments,Revenue
Walsall Council,http://opendatacommunities.org/id/metropolitan-district-council/walsall,WC86-78,30/11/2017,Adult Social Care,ACCORD HOUSING ASSOCIATION LTD#135,17/11/2017,"1,341.16",73374-SUPPORTED & OTHER ACCOMMODATION,MENTAL HEALTH PACKAGE/PLACEMENT COSTS,Third Party Payments,Revenue
Walsall Council,http://opendatacommunities.org/id/metropolitan-district-council/walsall,WC86-79,30/11/2017,Adult Social Care,ACCORD HOUSING ASSOCIATION LTD#135,08/11/2017,"1,529.15",73374-SUPPORTED & OTHER ACCOMMODATION,LD PACKAGE/PLACEMENT COSTS,Third Party Payments,Revenue
Walsall Council,http://opendatacommunities.org/id/metropolitan-district-council/walsall,WC86-80,30/11/2017,Adult Social Care,ACCORD HOUSING ASSOCIATION LTD#135,23/11/2017,"1,529.15",73374-SUPPORTED & OTHER ACCOMMODATION,LD PACKAGE/PLACEMENT COSTS,Third Party Payments,Revenue
Walsall Council,http://opendatacommunities.org/id/metropolitan-district-council/walsall,WC86-81,30/11/2017,Adult Social Care,ACCORD HOUSING ASSOCIATION LTD#135,17/11/2017,"1,567.84",73374-SUPPORTED & OTHER ACCOMMODATION,MENTAL HEALTH PACKAGE/PLACEMENT COSTS,Third Party Payments,Revenue
Walsall Council,http://opendatacommunities.org/id/metropolitan-district-council/walsall,WC86-82,30/11/2017,Adult Social Care,ACCORD HOUSING ASSOCIATION LTD#135,01/11/2017,"3,177.60",73373-RESIDENTIAL & NURSING CARE PLACEMENTS,LD PACKAGE/PLACEMENT COSTS,Third Party Payments,Revenue
Walsall Council,http://opendatacommunities.org/id/metropolitan-district-council/walsall,WC86-83,30/11/2017,Adult Social Care,ACCORD HOUSING ASSOCIATION LTD#135,20/11/2017,"4,420.40",73373-RESIDENTIAL & NURSING CARE PLACEMENTS,LD PACKAGE/PLACEMENT COSTS,Third Party Payments,Revenue
Walsall Council,http://opendatacommunities.org/id/metropolitan-district-council/walsall,WC86-84,30/11/2017,Adult Social Care,ACCORD HOUSING ASSOCIATION LTD#135,20/11/2017,"4,420.40",73373-RESIDENTIAL & NURSING CARE PLACEMENTS,LD PACKAGE/PLACEMENT COSTS,Third Party Payments,Revenue
Walsall Council,http://opendatacommunities.org/id/metropolitan-district-council/walsall,WC86-85,30/11/2017,Adult Social Care,ACCORD HOUSING ASSOCIATION LTD#135,20/11/2017,"4,421.40",73373-RESIDENTIAL & NURSING CARE PLACEMENTS,LD PACKAGE/PLACEMENT COSTS,Third Party Payments,Revenue
Walsall Council,http://opendatacommunities.org/id/metropolitan-district-council/walsall,WC86-86,30/11/2017,Adult Social Care,ACCORD HOUSING ASSOCIATION LTD#135,20/11/2017,"4,421.40",73373-RESIDENTIAL & NURSING CARE PLACEMENTS,LD PACKAGE/PLACEMENT COSTS,Third Party Payments,Revenue
Walsall Council,http://opendatacommunities.org/id/metropolitan-district-council/walsall,WC86-87,30/11/2017,Adult Social Care,ACCORD HOUSING ASSOCIATION LTD#135,20/11/2017,"4,421.40",73373-RESIDENTIAL & NURSING CARE PLACEMENTS,LD PACKAGE/PLACEMENT COSTS,Third Party Payments,Revenue
Walsall Council,http://opendatacommunities.org/id/metropolitan-district-council/walsall,WC86-88,30/11/2017,Adult Social Care,ACCORD HOUSING ASSOCIATION LTD#135,20/11/2017,"4,421.40",73373-RESIDENTIAL & NURSING CARE PLACEMENTS,LD PACKAGE/PLACEMENT COSTS,Third Party Payments,Revenue
Walsall Council,http://opendatacommunities.org/id/metropolitan-district-council/walsall,WC86-89,30/11/2017,Adult Social Care,ACCORD HOUSING ASSOCIATION LTD#135,20/11/2017,"4,421.40",73373-RESIDENTIAL & NURSING CARE PLACEMENTS,LD PACKAGE/PLACEMENT COSTS,Third Party Payments,Revenue
Walsall Council,http://opendatacommunities.org/id/metropolitan-district-council/walsall,WC86-90,30/11/2017,Adult Social Care,ACCORD HOUSING ASSOCIATION LTD#135,20/11/2017,"4,421.40",73373-RESIDENTIAL & NURSING CARE PLACEMENTS,LD PACKAGE/PLACEMENT COSTS,Third Party Payments,Revenue
Walsall Council,http://opendatacommunities.org/id/metropolitan-district-council/walsall,WC86-91,30/11/2017,Adult Social Care,ACCORD HOUSING ASSOCIATION LTD#135,22/11/2017,"4,878.25",70000-SOCIAL SERVICES-FEES TO VOLUNTARY BODIES,COMPLEX NEEDS CONTRACTS/SLA's,Third Party Payments,Revenue
Walsall Council,http://opendatacommunities.org/id/metropolitan-district-council/walsall,WC86-92,30/11/2017,Adult Social Care,ACCORD HOUSING ASSOCIATION LTD#135,20/11/2017,"6,170.84",73373-RESIDENTIAL & NURSING CARE PLACEMENTS,LD PACKAGE/PLACEMENT COSTS,Third Party Payments,Revenue
Walsall Council,http://opendatacommunities.org/id/metropolitan-district-council/walsall,WC86-93,30/11/2017,Adult Social Care,ACCORD HOUSING ASSOCIATION LTD#135,20/11/2017,"6,170.84",73373-RESIDENTIAL & NURSING CARE PLACEMENTS,LD PACKAGE/PLACEMENT COSTS,Third Party Payments,Revenue
Walsall Council,http://opendatacommunities.org/id/metropolitan-district-council/walsall,WC86-94,30/11/2017,Adult Social Care,ACCORD HOUSING ASSOCIATION LTD#135,20/11/2017,"6,170.84",73373-RESIDENTIAL & NURSING CARE PLACEMENTS,LD PACKAGE/PLACEMENT COSTS,Third Party Payments,Revenue
Walsall Council,http://opendatacommunities.org/id/metropolitan-district-council/walsall,WC86-95,30/11/2017,Adult Social Care,ACCORD HOUSING ASSOCIATION LTD#135,20/11/2017,"6,170.84",73373-RESIDENTIAL & NURSING CARE PLACEMENTS,LD PACKAGE/PLACEMENT COSTS,Third Party Payments,Revenue
Walsall Council,http://opendatacommunities.org/id/metropolitan-district-council/walsall,WC86-96,30/11/2017,Adult Social Care,ACCORD HOUSING ASSOCIATION LTD#135,20/11/2017,"6,170.84",73373-RESIDENTIAL & NURSING CARE PLACEMENTS,LD PACKAGE/PLACEMENT COSTS,Third Party Payments,Revenue
Walsall Council,http://opendatacommunities.org/id/metropolitan-district-council/walsall,WC86-97,30/11/2017,Adult Social Care,ACCORD HOUSING ASSOCIATION LTD#135,20/11/2017,"6,170.84",73373-RESIDENTIAL & NURSING CARE PLACEMENTS,LD PACKAGE/PLACEMENT COSTS,Third Party Payments,Revenue
Walsall Council,http://opendatacommunities.org/id/metropolitan-district-council/walsall,WC86-98,30/11/2017,Childrens,ACCORD HOUSING ASSOCIATION LTD#135,07/11/2017,"6,655.50",63102-CONSULTANTS FEES - CORPORATE,TOXIC TRIO,Supplies & Services,Revenue
Walsall Council,http://opendatacommunities.org/id/metropolitan-district-council/walsall,WC86-99,30/11/2017,Childrens,ACCORD HOUSING ASSOCIATION LTD#135,17/11/2017,"6,655.50",63102-CONSULTANTS FEES - CORPORATE,TOXIC TRIO,Supplies & Services,Revenue
Walsall Council,http://opendatacommunities.org/id/metropolitan-district-council/walsall,WC86-100,30/11/2017,Adult Social Care,ACCORD HOUSING ASSOCIATION LTD#135,07/11/2017,"32,763.62",73372-DOMICILIARY CARE,OP PACKAGE/PLACEMENT COSTS,Third Party Payments,Revenue
Walsall Council,http://opendatacommunities.org/id/metropolitan-district-council/walsall,WC86-101,30/11/2017,Adult Social Care,ACE CARE AGENCY,07/11/2017,275.63,73372-DOMICILIARY CARE,OP PACKAGE/PLACEMENT COSTS,Third Party Payments,Revenue
Walsall Council,http://opendatacommunities.org/id/metropolitan-district-council/walsall,WC86-102,30/11/2017,Adult Social Care,ACE CARE AGENCY,03/11/2017,407.16,73372-DOMICILIARY CARE,OP PACKAGE/PLACEMENT COSTS,Third Party Payments,Revenue
Walsall Council,http://opendatacommunities.org/id/metropolitan-district-council/walsall,WC86-103,30/11/2017,Adult Social Care,ACE CARE AGENCY,10/11/2017,536.46,73372-DOMICILIARY CARE,OP PACKAGE/PLACEMENT COSTS,Third Party Payments,Revenue
Walsall Council,http://opendatacommunities.org/id/metropolitan-district-council/walsall,WC86-104,30/11/2017,Adult Social Care,ACE CARE AGENCY,06/11/2017,613.90,73372-DOMICILIARY CARE,OP PACKAGE/PLACEMENT COSTS,Third Party Payments,Revenue
Walsall Council,http://opendatacommunities.org/id/metropolitan-district-council/walsall,WC86-105,30/11/2017,Adult Social Care,ACE CARE AGENCY,10/11/2017,623.44,73372-DOMICILIARY CARE,OP PACKAGE/PLACEMENT COSTS,Third Party Payments,Revenue
Walsall Council,http://opendatacommunities.org/id/metropolitan-district-council/walsall,WC86-106,30/11/2017,Adult Social Care,ACE CARE AGENCY,10/11/2017,742.50,73372-DOMICILIARY CARE,OP PACKAGE/PLACEMENT COSTS,Third Party Payments,Revenue
Walsall Council,http://opendatacommunities.org/id/metropolitan-district-council/walsall,WC86-107,30/11/2017,Adult Social Care,ACE CARE AGENCY,06/11/2017,866.60,73372-DOMICILIARY CARE,OP PACKAGE/PLACEMENT COSTS,Third Party Payments,Revenue
Walsall Council,http://opendatacommunities.org/id/metropolitan-district-council/walsall,WC86-108,30/11/2017,Change and Governance,ACE PA HIRE,17/11/2017,300.00,83900-CIVIC EVENTS-OTHER DEMOCRACY COSTS,MAYORS SECRETARIAT,Supplies & Services,Revenue
Walsall Council,http://opendatacommunities.org/id/metropolitan-district-council/walsall,WC86-109,30/11/2017,Change and Governance,ACE PA HIRE,17/11/2017,650.00,83900-CIVIC EVENTS-OTHER DEMOCRACY COSTS,MAYORS SECRETARIAT,Supplies & Services,Revenue
Walsall Council,http://opendatacommunities.org/id/metropolitan-district-council/walsall,WC86-110,30/11/2017,Economy & Environment,ACE PA HIRE,24/11/2017,710.00,62523-EVENTS,ARBORETUM,Supplies & Services,Revenue
Walsall Council,http://opendatacommunities.org/id/metropolitan-district-council/walsall,WC86-111,30/11/2017,Childrens,ACE RADIO CARS,27/11/2017,"1,786.69",52000-WITH DRIVER-HIRE OF VEHICLES,SCHOOL TRANSPORT,Transport,Revenue
Walsall Council,http://opendatacommunities.org/id/metropolitan-district-council/walsall,WC86-112,30/11/2017,Adult Social Care,ACEPAY LTD (COTTAGE NUR HOME),01/11/2017,529.62,73373-RESIDENTIAL & NURSING CARE PLACEMENTS,OP PACKAGE/PLACEMENT COSTS,Third Party Payments,Revenue
Walsall Council,http://opendatacommunities.org/id/metropolitan-district-council/walsall,WC86-113,30/11/2017,Adult Social Care,ACEPAY LTD (COTTAGE NUR HOME),01/11/2017,570.28,73373-RESIDENTIAL & NURSING CARE PLACEMENTS,OP PACKAGE/PLACEMENT COSTS,Third Party Payments,Revenue
Walsall Council,http://opendatacommunities.org/id/metropolitan-district-council/walsall,WC86-114,30/11/2017,Adult Social Care,ACEPAY LTD (COTTAGE NUR HOME),01/11/2017,"1,683.74",73373-RESIDENTIAL & NURSING CARE PLACEMENTS,OP PACKAGE/PLACEMENT COSTS,Third Party Payments,Revenue
Walsall Council,http://opendatacommunities.org/id/metropolitan-district-council/walsall,WC86-115,30/11/2017,Adult Social Care,ACEPAY LTD (COTTAGE NUR HOME),13/11/2017,"1,774.28",73373-RESIDENTIAL & NURSING CARE PLACEMENTS,OP PACKAGE/PLACEMENT COSTS,Third Party Payments,Revenue
Walsall Council,http://opendatacommunities.org/id/metropolitan-district-council/walsall,WC86-116,30/11/2017,Adult Social Care,ACEPAY LTD (COTTAGE NUR HOME),01/11/2017,"1,924.82",73373-RESIDENTIAL & NURSING CARE PLACEMENTS,OP PACKAGE/PLACEMENT COSTS,Third Party Payments,Revenue
Walsall Council,http://opendatacommunities.org/id/metropolitan-district-council/walsall,WC86-117,30/11/2017,Adult Social Care,ACEPAY LTD (COTTAGE NUR HOME),01/11/2017,"2,142.86",73373-RESIDENTIAL & NURSING CARE PLACEMENTS,OP PACKAGE/PLACEMENT COSTS,Third Party Payments,Revenue
Walsall Council,http://opendatacommunities.org/id/metropolitan-district-council/walsall,WC86-118,30/11/2017,Adult Social Care,ACEPAY LTD (COTTAGE NUR HOME),13/11/2017,"2,142.86",73373-RESIDENTIAL & NURSING CARE PLACEMENTS,OP PACKAGE/PLACEMENT COSTS,Third Party Payments,Revenue
Walsall Council,http://opendatacommunities.org/id/metropolitan-district-council/walsall,WC86-119,30/11/2017,Adult Social Care,ACEPAY LTD (COTTAGE NUR HOME),13/11/2017,"2,142.86",73373-RESIDENTIAL & NURSING CARE PLACEMENTS,OP PACKAGE/PLACEMENT COSTS,Third Party Payments,Revenue
Walsall Council,http://opendatacommunities.org/id/metropolitan-district-council/walsall,WC86-120,30/11/2017,Adult Social Care,ACEPAY LTD (COTTAGE NUR HOME),13/11/2017,"2,142.86",73373-RESIDENTIAL & NURSING CARE PLACEMENTS,OP PACKAGE/PLACEMENT COSTS,Third Party Payments,Revenue
Walsall Council,http://opendatacommunities.org/id/metropolitan-district-council/walsall,WC86-121,30/11/2017,Adult Social Care,ACEPAY LTD (COTTAGE NUR HOME),13/11/2017,"2,142.86",73373-RESIDENTIAL & NURSING CARE PLACEMENTS,OP PACKAGE/PLACEMENT COSTS,Third Party Payments,Revenue
Walsall Council,http://opendatacommunities.org/id/metropolitan-district-council/walsall,WC86-122,30/11/2017,Adult Social Care,ACEPAY LTD (COTTAGE NUR HOME),01/11/2017,"2,214.28",73373-RESIDENTIAL & NURSING CARE PLACEMENTS,OP PACKAGE/PLACEMENT COSTS,Third Party Payments,Revenue
Walsall Council,http://opendatacommunities.org/id/metropolitan-district-council/walsall,WC86-123,30/11/2017,Childrens,ACORN ABA LIMITED,20/11/2017,"1,002.92",66502-TOP UP FUNDING -GRANTS TO SCHOOLS,INDEPENDENT PROVIDERS - SPECIAL & AP,Third Party Payments,Revenue
Walsall Council,http://opendatacommunities.org/id/metropolitan-district-council/walsall,WC86-124,30/11/2017,Childrens,ACORN CARE & EDUCATION LTD (SALES),22/11/2017,"6,333.33",66502-TOP UP FUNDING -GRANTS TO SCHOOLS,INDEPENDENT PROVIDERS - SPECIAL & AP,Third Party Payments,Revenue
Walsall Council,http://opendatacommunities.org/id/metropolitan-district-council/walsall,WC86-125,30/11/2017,Childrens,ACORN CARE & EDUCATION LTD (SALES),15/11/2017,"6,333.34",66502-TOP UP FUNDING -GRANTS TO SCHOOLS,INDEPENDENT PROVIDERS - SPECIAL & AP,Third Party Payments,Revenue
Walsall Council,http://opendatacommunities.org/id/metropolitan-district-council/walsall,WC86-126,30/11/2017,Childrens,ACORN CARE & EDUCATION LTD (SALES),20/11/2017,"13,831.67",66502-TOP UP FUNDING -GRANTS TO SCHOOLS,INDEPENDENT PROVIDERS - SPECIAL & AP,Third Party Payments,Revenue
Walsall Council,http://opendatacommunities.org/id/metropolitan-district-council/walsall,WC86-127,30/11/2017,Childrens,ACORN CARE & EDUCATION LTD (SALES),15/11/2017,"16,166.66",66502-TOP UP FUNDING -GRANTS TO SCHOOLS,INDEPENDENT PROVIDERS - SPECIAL & AP,Third Party Payments,Revenue
Walsall Council,http://opendatacommunities.org/id/metropolitan-district-council/walsall,WC86-128,30/11/2017,Childrens,ACORN CARE & EDUCATION LTD (SALES),22/11/2017,"16,166.67",66502-TOP UP FUNDING -GRANTS TO SCHOOLS,INDEPENDENT PROVIDERS - SPECIAL & AP,Third Party Payments,Revenue
Walsall Council,http://opendatacommunities.org/id/metropolitan-district-council/walsall,WC86-129,30/11/2017,Childrens,ACORN CHILDREN'S HOME,06/11/2017,"15,200.00",74036-EXTERNAL RESIDENTIAL CARE-OTH AGENCY PROVISION,INDEPENDENT RESIDENTIAL HOMES,Third Party Payments,Revenue
Walsall Council,http://opendatacommunities.org/id/metropolitan-district-council/walsall,WC86-130,30/11/2017,Adult Social Care,ACORN REST HOME,20/11/2017,"1,656.00",73373-RESIDENTIAL & NURSING CARE PLACEMENTS,OP PACKAGE/PLACEMENT COSTS,Third Party Payments,Revenue
Walsall Council,http://opendatacommunities.org/id/metropolitan-district-council/walsall,WC86-131,30/11/2017,Adult Social Care,ACORN REST HOME,13/11/2017,"2,140.00",73373-RESIDENTIAL & NURSING CARE PLACEMENTS,OP PACKAGE/PLACEMENT COSTS,Third Party Payments,Revenue
Walsall Council,http://opendatacommunities.org/id/metropolitan-district-council/walsall,WC86-132,30/11/2017,Childrens,ACORNS CHILDRENS HOSPICE TRUST,23/11/2017,750.00,63000-PROFESSIONAL FEES AND SERVICES,DIRECTLY COMMISSIONED NURSING SERVICES,Supplies & Services,Revenue
Walsall Council,http://opendatacommunities.org/id/metropolitan-district-council/walsall,WC86-133,30/11/2017,Childrens,ACORNS CHILDRENS HOSPICE TRUST,23/11/2017,837.45,63000-PROFESSIONAL FEES AND SERVICES,DIRECTLY COMMISSIONED NURSING SERVICES,Supplies & Services,Revenue
Walsall Council,http://opendatacommunities.org/id/metropolitan-district-council/walsall,WC86-134,30/11/2017,Economy & Environment,ACTION DIGITAL MEDIA LTD,09/11/2017,241.00,"40000-REPAIRS,ALTERATIONS & MAINTENANCE-PREM",NAG - MAINTENANCE,Premises,Revenue
Walsall Council,http://opendatacommunities.org/id/metropolitan-district-council/walsall,WC86-135,30/11/2017,Childrens,ACTION FOR CHILDREN,17/11/2017,825.00,63000-PROFESSIONAL FEES AND SERVICES,FAMILY PLACEMENTS,Supplies & Services,Revenue
Walsall Council,http://opendatacommunities.org/id/metropolitan-district-council/walsall,WC86-136,30/11/2017,Childrens,ACTION FOR CHILDREN,17/11/2017,825.00,63000-PROFESSIONAL FEES AND SERVICES,FAMILY PLACEMENTS,Supplies & Services,Revenue
Walsall Council,http://opendatacommunities.org/id/metropolitan-district-council/walsall,WC86-137,30/11/2017,Childrens,ACTION FOR CHILDREN,17/11/2017,825.00,63000-PROFESSIONAL FEES AND SERVICES,FAMILY PLACEMENTS,Supplies & Services,Revenue
Walsall Council,http://opendatacommunities.org/id/metropolitan-district-council/walsall,WC86-138,30/11/2017,Adult Social Care,ACTION ON HEARING LOSS,17/11/2017,"1,008.00",73374-SUPPORTED & OTHER ACCOMMODATION,LD PACKAGE/PLACEMENT COSTS,Third Party Payments,Revenue
Walsall Council,http://opendatacommunities.org/id/metropolitan-district-council/walsall,WC86-139,30/11/2017,Adult Social Care,ACTON BANKS LTD,07/11/2017,664.68,34305-AGENCY STAFF-EMPLOYEES,GOSCOTE,Employees,Revenue
Walsall Council,http://opendatacommunities.org/id/metropolitan-district-council/walsall,WC86-140,30/11/2017,Adult Social Care,ACTON BANKS LTD,06/11/2017,742.04,34305-AGENCY STAFF-EMPLOYEES,GOSCOTE,Employees,Revenue
Walsall Council,http://opendatacommunities.org/id/metropolitan-district-council/walsall,WC86-141,30/11/2017,Adult Social Care,ACTON BANKS LTD,28/11/2017,848.04,34305-AGENCY STAFF-EMPLOYEES,GOSCOTE,Employees,Revenue
Walsall Council,http://opendatacommunities.org/id/metropolitan-district-council/walsall,WC86-142,30/11/2017,Adult Social Care,ACTON BANKS LTD,17/11/2017,"1,476.63",73025-PROFESSIONAL SERVICES-PRIV CONTRACTOR & OTHER AGENCIES,HOLLYBANK,Third Party Payments,Revenue
Walsall Council,http://opendatacommunities.org/id/metropolitan-district-council/walsall,WC86-143,30/11/2017,Adult Social Care,ACTON BANKS LTD,20/11/2017,"1,707.54",34305-AGENCY STAFF-EMPLOYEES,GOSCOTE,Employees,Revenue
Walsall Council,http://opendatacommunities.org/id/metropolitan-district-council/walsall,WC86-144,30/11/2017,Adult Social Care,ACTON BANKS LTD,13/11/2017,"2,374.47",73025-PROFESSIONAL SERVICES-PRIV CONTRACTOR & OTHER AGENCIES,HOLLYBANK,Third Party Payments,Revenue
Walsall Council,http://opendatacommunities.org/id/metropolitan-district-council/walsall,WC86-145,30/11/2017,Adult Social Care,ACTON BANKS LTD,20/11/2017,"3,900.30",73025-PROFESSIONAL SERVICES-PRIV CONTRACTOR & OTHER AGENCIES,HOLLYBANK,Third Party Payments,Revenue
Walsall Council,http://opendatacommunities.org/id/metropolitan-district-council/walsall,WC86-146,30/11/2017,Adult Social Care,ACTON BANKS LTD,13/11/2017,"6,162.85",73025-PROFESSIONAL SERVICES-PRIV CONTRACTOR & OTHER AGENCIES,HOLLYBANK,Third Party Payments,Revenue
Walsall Council,http://opendatacommunities.org/id/metropolitan-district-council/walsall,WC86-147,30/11/2017,Change and Governance,ADA BUILDERS & JOINERS,08/11/2017,"17,662.76",01045-PRIVATE GRANTS,CFR 826 DISABLED FACILITIES GRANTS (SOCIAL SERVICES),Capital,Capital
Walsall Council,http://opendatacommunities.org/id/metropolitan-district-council/walsall,WC86-148,30/11/2017,Adult Social Care,REDACTED,15/11/2017,630.00,76422-DIRECT PAYMENTS TO SOCIAL SERVICES CLIENTS,OP PACKAGE/PLACEMENT COSTS,Transfer Payments,Revenue
Walsall Council,http://opendatacommunities.org/id/metropolitan-district-council/walsall,WC86-149,30/11/2017,Adult Social Care,REDACTED,03/11/2017,976.19,76422-DIRECT PAYMENTS TO SOCIAL SERVICES CLIENTS,OP PACKAGE/PLACEMENT COSTS,Transfer Payments,Revenue
Walsall Council,http://opendatacommunities.org/id/metropolitan-district-council/walsall,WC86-150,30/11/2017,Economy & Environment,ADAM R GRUNING,13/11/2017,"1,200.00",63000-PROFESSIONAL FEES AND SERVICES,NAG - ARTISTS RESIDENCIES,Supplies & Services,Revenue
Walsall Council,http://opendatacommunities.org/id/metropolitan-district-council/walsall,WC86-151,30/11/2017,Adult Social Care,REDACTED,03/11/2017,448.60,76422-DIRECT PAYMENTS TO SOCIAL SERVICES CLIENTS,LD PACKAGE/PLACEMENT COSTS,Transfer Payments,Revenue
Walsall Council,http://opendatacommunities.org/id/metropolitan-district-council/walsall,WC86-152,30/11/2017,Adult Social Care,REDACTED,03/11/2017,964.00,76422-DIRECT PAYMENTS TO SOCIAL SERVICES CLIENTS,OP PACKAGE/PLACEMENT COSTS,Transfer Payments,Revenue
Walsall Council,http://opendatacommunities.org/id/metropolitan-district-council/walsall,WC86-153,30/11/2017,Adult Social Care,ADMIRAL SELF STORAGE LTD,15/11/2017,215.10,63000-PROFESSIONAL FEES AND SERVICES,MENTAL HEALTH MANAGEMENT TEAM,Supplies & Services,Revenue
Walsall Council,http://opendatacommunities.org/id/metropolitan-district-council/walsall,WC86-154,30/11/2017,Change and Governance,ADMIRAL SELF STORAGE LTD,15/11/2017,260.51,43001-RENTS-OTHER,ADVICE & GUIDANCE SERVICE,Premises,Revenue
Walsall Council,http://opendatacommunities.org/id/metropolitan-district-council/walsall,WC86-155,30/11/2017,Change and Governance,ADMIRAL SELF STORAGE LTD,27/11/2017,323.00,43001-RENTS-OTHER,ADVICE & GUIDANCE SERVICE,Premises,Revenue
Walsall Council,http://opendatacommunities.org/id/metropolitan-district-council/walsall,WC86-156,30/11/2017,Economy & Environment,ADMIRAL SELF STORAGE LTD,20/11/2017,"1,877.14",63000-PROFESSIONAL FEES AND SERVICES,EMERGENCY PLANNING 2012/2013,Supplies & Services,Revenue
Walsall Council,http://opendatacommunities.org/id/metropolitan-district-council/walsall,WC86-157,30/11/2017,Childrens,REDACTED,17/11/2017,333.12,74510-RESIDENTS ORDERS,ADOPTION ALLOWANCES,Third Party Payments,Revenue
Walsall Council,http://opendatacommunities.org/id/metropolitan-district-council/walsall,WC86-158,30/11/2017,Childrens,REDACTED,17/11/2017,361.12,74510-RESIDENTS ORDERS,ADOPTION ALLOWANCES,Third Party Payments,Revenue
Walsall Council,http://opendatacommunities.org/id/metropolitan-district-council/walsall,WC86-159,30/11/2017,Economy & Environment,ADS ELECTRICAL & HIGHWAY SERVICES LTD,17/11/2017,425.00,63000-PROFESSIONAL FEES AND SERVICES,FESTIVE DECORATIONS,Supplies & Services,Revenue
Walsall Council,http://opendatacommunities.org/id/metropolitan-district-council/walsall,WC86-160,30/11/2017,Economy & Environment,ADS ELECTRICAL & HIGHWAY SERVICES LTD,20/11/2017,"5,895.00",63000-PROFESSIONAL FEES AND SERVICES,FESTIVE DECORATIONS,Supplies & Services,Revenue
Walsall Council,http://opendatacommunities.org/id/metropolitan-district-council/walsall,WC86-161,30/11/2017,Economy & Environment,ADS ELECTRICAL & HIGHWAY SERVICES LTD,17/11/2017,"6,695.00",63000-PROFESSIONAL FEES AND SERVICES,FESTIVE DECORATIONS,Supplies & Services,Revenue
Walsall Council,http://opendatacommunities.org/id/metropolitan-district-council/walsall,WC86-162,30/11/2017,Adult Social Care,ADVANCE HEALTH CARE (UK) LTD,07/11/2017,288.75,73019-PSE'S-PRIV CONTRACTOR FEES,TRANSITIONAL CARE SUPPORT TEAM,Third Party Payments,Revenue
Walsall Council,http://opendatacommunities.org/id/metropolitan-district-council/walsall,WC86-163,30/11/2017,Adult Social Care,ADVANCE HEALTH CARE (UK) LTD,07/11/2017,288.75,73019-PSE'S-PRIV CONTRACTOR FEES,TRANSITIONAL CARE SUPPORT TEAM,Third Party Payments,Revenue
Walsall Council,http://opendatacommunities.org/id/metropolitan-district-council/walsall,WC86-164,30/11/2017,Adult Social Care,ADVANCE HEALTH CARE (UK) LTD,07/11/2017,288.75,73019-PSE'S-PRIV CONTRACTOR FEES,TRANSITIONAL CARE SUPPORT TEAM,Third Party Payments,Revenue
Walsall Council,http://opendatacommunities.org/id/metropolitan-district-council/walsall,WC86-165,30/11/2017,Adult Social Care,ADVANCE HEALTH CARE (UK) LTD,13/11/2017,288.75,73025-PROFESSIONAL SERVICES-PRIV CONTRACTOR & OTHER AGENCIES,ACM MANAGEMENT TEAM,Third Party Payments,Revenue
Walsall Council,http://opendatacommunities.org/id/metropolitan-district-council/walsall,WC86-166,30/11/2017,Adult Social Care,ADVANCE HEALTH CARE (UK) LTD,29/11/2017,288.75,73019-PSE'S-PRIV CONTRACTOR FEES,TRANSITIONAL CARE SUPPORT TEAM,Third Party Payments,Revenue
Walsall Council,http://opendatacommunities.org/id/metropolitan-district-council/walsall,WC86-167,30/11/2017,Adult Social Care,ADVANCE HEALTH CARE (UK) LTD,29/11/2017,288.75,73019-PSE'S-PRIV CONTRACTOR FEES,TRANSITIONAL CARE SUPPORT TEAM,Third Party Payments,Revenue
Walsall Council,http://opendatacommunities.org/id/metropolitan-district-council/walsall,WC86-168,30/11/2017,Adult Social Care,ADVANCE HEALTH CARE (UK) LTD,29/11/2017,288.75,73019-PSE'S-PRIV CONTRACTOR FEES,TRANSITIONAL CARE SUPPORT TEAM,Third Party Payments,Revenue
Walsall Council,http://opendatacommunities.org/id/metropolitan-district-council/walsall,WC86-169,30/11/2017,Adult Social Care,ADVANCE HEALTH CARE (UK) LTD,01/11/2017,320.36,73025-PROFESSIONAL SERVICES-PRIV CONTRACTOR & OTHER AGENCIES,ACM MANAGEMENT TEAM,Third Party Payments,Revenue
Walsall Council,http://opendatacommunities.org/id/metropolitan-district-council/walsall,WC86-170,30/11/2017,Adult Social Care,ADVANCE HEALTH CARE (UK) LTD,01/11/2017,330.00,73025-PROFESSIONAL SERVICES-PRIV CONTRACTOR & OTHER AGENCIES,ACM MANAGEMENT TEAM,Third Party Payments,Revenue
Walsall Council,http://opendatacommunities.org/id/metropolitan-district-council/walsall,WC86-171,30/11/2017,Adult Social Care,ADVANCE HEALTH CARE (UK) LTD,08/11/2017,371.25,73025-PROFESSIONAL SERVICES-PRIV CONTRACTOR & OTHER AGENCIES,ACM MANAGEMENT TEAM,Third Party Payments,Revenue
Walsall Council,http://opendatacommunities.org/id/metropolitan-district-council/walsall,WC86-172,30/11/2017,Adult Social Care,ADVANCE HEALTH CARE (UK) LTD,01/11/2017,508.75,73025-PROFESSIONAL SERVICES-PRIV CONTRACTOR & OTHER AGENCIES,ACM MANAGEMENT TEAM,Third Party Payments,Revenue
Walsall Council,http://opendatacommunities.org/id/metropolitan-district-council/walsall,WC86-173,30/11/2017,Adult Social Care,ADVANCE HEALTH CARE (UK) LTD,13/11/2017,659.98,73025-PROFESSIONAL SERVICES-PRIV CONTRACTOR & OTHER AGENCIES,ACM MANAGEMENT TEAM,Third Party Payments,Revenue
Walsall Council,http://opendatacommunities.org/id/metropolitan-district-council/walsall,WC86-174,30/11/2017,Adult Social Care,ADVANCE HEALTH CARE (UK) LTD,13/11/2017,866.25,73025-PROFESSIONAL SERVICES-PRIV CONTRACTOR & OTHER AGENCIES,ACM MANAGEMENT TEAM,Third Party Payments,Revenue
Walsall Council,http://opendatacommunities.org/id/metropolitan-district-council/walsall,WC86-175,30/11/2017,Adult Social Care,ADVANCE HEALTH CARE (UK) LTD,08/11/2017,"3,368.73",73025-PROFESSIONAL SERVICES-PRIV CONTRACTOR & OTHER AGENCIES,ACM MANAGEMENT TEAM,Third Party Payments,Revenue
Walsall Council,http://opendatacommunities.org/id/metropolitan-district-council/walsall,WC86-176,30/11/2017,Adult Social Care,ADVANCE HEALTH CARE (UK) LTD,17/11/2017,"5,719.73",73025-PROFESSIONAL SERVICES-PRIV CONTRACTOR & OTHER AGENCIES,COMMUNITY INTERMEDIATE CARE,Third Party Payments,Revenue
Walsall Council,http://opendatacommunities.org/id/metropolitan-district-council/walsall,WC86-177,30/11/2017,Adult Social Care,ADVANCE HEALTH CARE (UK) LTD,17/11/2017,"5,819.41",73025-PROFESSIONAL SERVICES-PRIV CONTRACTOR & OTHER AGENCIES,COMMUNITY INTERMEDIATE CARE,Third Party Payments,Revenue
Walsall Council,http://opendatacommunities.org/id/metropolitan-district-council/walsall,WC86-178,30/11/2017,Adult Social Care,ADVANCE HEALTH CARE (UK) LTD,08/11/2017,"6,060.04",73025-PROFESSIONAL SERVICES-PRIV CONTRACTOR & OTHER AGENCIES,COMMUNITY INTERMEDIATE CARE,Third Party Payments,Revenue
Walsall Council,http://opendatacommunities.org/id/metropolitan-district-council/walsall,WC86-179,30/11/2017,Adult Social Care,ADVANCE HEALTH CARE (UK) LTD,08/11/2017,"6,599.73",73025-PROFESSIONAL SERVICES-PRIV CONTRACTOR & OTHER AGENCIES,COMMUNITY INTERMEDIATE CARE,Third Party Payments,Revenue
Walsall Council,http://opendatacommunities.org/id/metropolitan-district-council/walsall,WC86-180,30/11/2017,Adult Social Care,ADVANCE HEALTH CARE (UK) LTD,08/11/2017,"66,363.02",73372-DOMICILIARY CARE,OP PACKAGE/PLACEMENT COSTS,Third Party Payments,Revenue
Walsall Council,http://opendatacommunities.org/id/metropolitan-district-council/walsall,WC86-181,30/11/2017,Childrens,ADVANCED CONTRACTS (MIDLANDS) LTD,07/11/2017,"20,866.00",01006-SITE WORKS MAIN CONTRACTORS,CFR 1137 BEACON PRIMARY EXTENSION,Capital,Capital
Walsall Council,http://opendatacommunities.org/id/metropolitan-district-council/walsall,WC86-182,30/11/2017,Economy & Environment,AEBI SCHMIDT UK LIMITED,03/11/2017,317.91,60500-GENERAL MATERIALS,FLEET,Supplies & Services,Revenue
Walsall Council,http://opendatacommunities.org/id/metropolitan-district-council/walsall,WC86-183,30/11/2017,Economy & Environment,AECOM LIMITED,01/11/2017,"9,487.50",01002-PROJECT FEES,CFR 1072 M6 JUNCTION 10-LTB,Capital,Capital
Walsall Council,http://opendatacommunities.org/id/metropolitan-district-council/walsall,WC86-184,30/11/2017,Economy & Environment,AECOM LIMITED,01/11/2017,"18,019.02",01002-PROJECT FEES,CFR 1072 M6 JUNCTION 10-LTB,Capital,Capital
Walsall Council,http://opendatacommunities.org/id/metropolitan-district-council/walsall,WC86-185,30/11/2017,Economy & Environment,AGE UK WALSALL,06/11/2017,"7,437.50",63253-PAYMENT TO CONTRACTOR,MENTAL HEALTH,Third Party Payments,Revenue
Walsall Council,http://opendatacommunities.org/id/metropolitan-district-council/walsall,WC86-186,30/11/2017,Adult Social Care,AGE UK WALSALL,06/11/2017,"14,516.00",76423-DIRECT PAYMENTS SUPPORT,DIRECT PAYMENT SUPPORT ORGANISATIONS,Transfer Payments,Revenue
Walsall Council,http://opendatacommunities.org/id/metropolitan-district-council/walsall,WC86-187,30/11/2017,Adult Social Care,AGINCARE UK LTD,23/11/2017,"1,559.04",73372-DOMICILIARY CARE,OP PACKAGE/PLACEMENT COSTS,Third Party Payments,Revenue
Walsall Council,http://opendatacommunities.org/id/metropolitan-district-council/walsall,WC86-188,30/11/2017,Adult Social Care,REDACTED,03/11/2017,"1,882.00",76422-DIRECT PAYMENTS TO SOCIAL SERVICES CLIENTS,LD PACKAGE/PLACEMENT COSTS,Transfer Payments,Revenue
Walsall Council,http://opendatacommunities.org/id/metropolitan-district-council/walsall,WC86-189,30/11/2017,Economy & Environment,AIRQUEE,20/11/2017,"1,964.17",60006-NEW-FURNITURE & EQUIPMENT,OAK PARK,Supplies & Services,Revenue
Walsall Council,http://opendatacommunities.org/id/metropolitan-district-council/walsall,WC86-190,30/11/2017,Adult Social Care,REDACTED,03/11/2017,914.20,76422-DIRECT PAYMENTS TO SOCIAL SERVICES CLIENTS,OP PACKAGE/PLACEMENT COSTS,Transfer Payments,Revenue
Walsall Council,http://opendatacommunities.org/id/metropolitan-district-council/walsall,WC86-191,30/11/2017,Childrens,AJK TRAVEL,07/11/2017,"21,453.12",52000-WITH DRIVER-HIRE OF VEHICLES,SCHOOL TRANSPORT,Transport,Revenue
Walsall Council,http://opendatacommunities.org/id/metropolitan-district-council/walsall,WC86-192,30/11/2017,Adult Social Care,REDACTED,03/11/2017,728.00,76422-DIRECT PAYMENTS TO SOCIAL SERVICES CLIENTS,OP PACKAGE/PLACEMENT COSTS,Transfer Payments,Revenue
Walsall Council,http://opendatacommunities.org/id/metropolitan-district-council/walsall,WC86-193,30/11/2017,Childrens,ALBRIGHTON CARE LTD,06/11/2017,"9,980.00",74036-EXTERNAL RESIDENTIAL CARE-OTH AGENCY PROVISION,INDEPENDENT RESIDENTIAL HOMES,Third Party Payments,Revenue
Walsall Council,http://opendatacommunities.org/id/metropolitan-district-council/walsall,WC86-194,30/11/2017,Childrens,ALBRIGHTON CARE LTD,06/11/2017,"15,000.00",74036-EXTERNAL RESIDENTIAL CARE-OTH AGENCY PROVISION,INDEPENDENT RESIDENTIAL HOMES,Third Party Payments,Revenue
Walsall Council,http://opendatacommunities.org/id/metropolitan-district-council/walsall,WC86-195,30/11/2017,Economy & Environment,ALDERBROOK HEALTHCARE LTD,20/11/2017,265.50,63000-PROFESSIONAL FEES AND SERVICES,CORONERS SERVICE,Supplies & Services,Revenue
Walsall Council,http://opendatacommunities.org/id/metropolitan-district-council/walsall,WC86-196,30/11/2017,Economy & Environment,ALDERBROOK HEALTHCARE LTD,20/11/2017,"1,798.70",63000-PROFESSIONAL FEES AND SERVICES,CORONERS SERVICE,Supplies & Services,Revenue
Walsall Council,http://opendatacommunities.org/id/metropolitan-district-council/walsall,WC86-197,30/11/2017,Adult Social Care,ALDERGROVE MANOR LTD,20/11/2017,"1,247.48",73373-RESIDENTIAL & NURSING CARE PLACEMENTS,OP PACKAGE/PLACEMENT COSTS,Third Party Payments,Revenue
Walsall Council,http://opendatacommunities.org/id/metropolitan-district-council/walsall,WC86-198,30/11/2017,Adult Social Care,ALDERGROVE MANOR LTD,01/11/2017,"1,839.68",73373-RESIDENTIAL & NURSING CARE PLACEMENTS,MH COMMISSIONING,Third Party Payments,Revenue
Walsall Council,http://opendatacommunities.org/id/metropolitan-district-council/walsall,WC86-199,30/11/2017,Adult Social Care,ALDERGROVE MANOR LTD,28/11/2017,"1,839.68",73373-RESIDENTIAL & NURSING CARE PLACEMENTS,MH COMMISSIONING,Third Party Payments,Revenue
Walsall Council,http://opendatacommunities.org/id/metropolitan-district-council/walsall,WC86-200,30/11/2017,Adult Social Care,ALDERGROVE MANOR LTD,20/11/2017,"2,000.00",73373-RESIDENTIAL & NURSING CARE PLACEMENTS,OP PACKAGE/PLACEMENT COSTS,Third Party Payments,Revenue
Walsall Council,http://opendatacommunities.org/id/metropolitan-district-council/walsall,WC86-201,30/11/2017,Adult Social Care,REDACTED,03/11/2017,"1,204.00",76422-DIRECT PAYMENTS TO SOCIAL SERVICES CLIENTS,PD PACKAGE/PLACEMENT COSTS,Transfer Payments,Revenue
Walsall Council,http://opendatacommunities.org/id/metropolitan-district-council/walsall,WC86-202,30/11/2017,Childrens,REDACTED,03/11/2017,582.66,76422-DIRECT PAYMENTS TO SOCIAL SERVICES CLIENTS,FAMILY SUPPORT - DIRECT PAYMENTS,Transfer Payments,Revenue
Walsall Council,http://opendatacommunities.org/id/metropolitan-district-council/walsall,WC86-203,30/11/2017,Adult Social Care,REDACTED,03/11/2017,"2,166.20",76422-DIRECT PAYMENTS TO SOCIAL SERVICES CLIENTS,OP PACKAGE/PLACEMENT COSTS,Transfer Payments,Revenue
Walsall Council,http://opendatacommunities.org/id/metropolitan-district-council/walsall,WC86-204,30/11/2017,Childrens,REDACTED,03/11/2017,288.00,76422-DIRECT PAYMENTS TO SOCIAL SERVICES CLIENTS,FAMILY SUPPORT - DIRECT PAYMENTS,Transfer Payments,Revenue
Walsall Council,http://opendatacommunities.org/id/metropolitan-district-council/walsall,WC86-205,30/11/2017,Adult Social Care,REDACTED,03/11/2017,898.00,76422-DIRECT PAYMENTS TO SOCIAL SERVICES CLIENTS,PD PACKAGE/PLACEMENT COSTS,Transfer Payments,Revenue
Walsall Council,http://opendatacommunities.org/id/metropolitan-district-council/walsall,WC86-206,30/11/2017,Adult Social Care,REDACTED,03/11/2017,612.00,76422-DIRECT PAYMENTS TO SOCIAL SERVICES CLIENTS,OP PACKAGE/PLACEMENT COSTS,Transfer Payments,Revenue
Walsall Council,http://opendatacommunities.org/id/metropolitan-district-council/walsall,WC86-207,30/11/2017,Adult Social Care,REDACTED,24/11/2017,"1,251.64",73374-SUPPORTED & OTHER ACCOMMODATION,LD PACKAGE/PLACEMENT COSTS,Third Party Payments,Revenue
Walsall Council,http://opendatacommunities.org/id/metropolitan-district-council/walsall,WC86-208,30/11/2017,Economy & Environment,ALISON STRAIN,27/11/2017,960.00,63253-PAYMENT TO CONTRACTOR,GENERAL HEALTH PROTECTION,Third Party Payments,Revenue
Walsall Council,http://opendatacommunities.org/id/metropolitan-district-council/walsall,WC86-209,30/11/2017,Economy & Environment,ALISON STRAIN,27/11/2017,"1,725.00",63253-PAYMENT TO CONTRACTOR,GENERAL HEALTH PROTECTION,Third Party Payments,Revenue
Walsall Council,http://opendatacommunities.org/id/metropolitan-district-council/walsall,WC86-210,30/11/2017,Childrens,ALL SAINTS NATIONAL ACADEMY #1,29/11/2017,"4,022.32",66502-TOP UP FUNDING -GRANTS TO SCHOOLS,ALL SAINTS NATIONAL ACADEMY,Third Party Payments,Revenue
Walsall Council,http://opendatacommunities.org/id/metropolitan-district-council/walsall,WC86-211,30/11/2017,Capital Financing,ALLPAY LTD,01/11/2017,"7,319.27",82500-BANK CHARGES-CENTRAL EXPENSES,BANK CHARGES,Supplies & Services,Revenue
Walsall Council,http://opendatacommunities.org/id/metropolitan-district-council/walsall,WC86-212,30/11/2017,Economy & Environment,ALLSORTS OFFICE SUPPLIES LTD,22/11/2017,473.04,60008-MAINTENANCE-FURNITURE & EQUIPMENT,DEVELOPMENT MANAGEMENT,Supplies & Services,Revenue
Walsall Council,http://opendatacommunities.org/id/metropolitan-district-council/walsall,WC86-213,30/11/2017,Economy & Environment,ALLSORTS OFFICE SUPPLIES LTD,03/11/2017,"1,279.20",01006-SITE WORKS MAIN CONTRACTORS,CFR 791 SMARTER WORKPLACES - PROPERTY INVESTMENT,Capital,Capital
Walsall Council,http://opendatacommunities.org/id/metropolitan-district-council/walsall,WC86-214,30/11/2017,Economy & Environment,ALLSORTS OFFICE SUPPLIES LTD,03/11/2017,"1,385.80",01006-SITE WORKS MAIN CONTRACTORS,CFR 791 SMARTER WORKPLACES - PROPERTY INVESTMENT,Capital,Capital
Walsall Council,http://opendatacommunities.org/id/metropolitan-district-council/walsall,WC86-215,30/11/2017,Adult Social Care,ALMA COURT,13/11/2017,"6,113.10",73373-RESIDENTIAL & NURSING CARE PLACEMENTS,MH COMMISSIONING,Third Party Payments,Revenue
Walsall Council,http://opendatacommunities.org/id/metropolitan-district-council/walsall,WC86-216,30/11/2017,Economy & Environment,ALMOZENE NURSERY & CHILDRENS CENTRE,17/11/2017,199.50,63000-PROFESSIONAL FEES AND SERVICES,YEI (IMPACT) PROGRAMME,Supplies & Services,Revenue
Walsall Council,http://opendatacommunities.org/id/metropolitan-district-council/walsall,WC86-217,30/11/2017,Economy & Environment,ALMOZENE NURSERY & CHILDRENS CENTRE,17/11/2017,199.50,63000-PROFESSIONAL FEES AND SERVICES,YEI ESF FUNDING,Supplies & Services,Revenue
Walsall Council,http://opendatacommunities.org/id/metropolitan-district-council/walsall,WC86-218,30/11/2017,Economy & Environment,ALMOZENE NURSERY & CHILDRENS CENTRE,17/11/2017,199.50,63000-PROFESSIONAL FEES AND SERVICES,YEI (IMPACT) PROGRAMME,Supplies & Services,Revenue
Walsall Council,http://opendatacommunities.org/id/metropolitan-district-council/walsall,WC86-219,30/11/2017,Economy & Environment,ALMOZENE NURSERY & CHILDRENS CENTRE,17/11/2017,199.50,63000-PROFESSIONAL FEES AND SERVICES,YEI ESF FUNDING,Supplies & Services,Revenue
Walsall Council,http://opendatacommunities.org/id/metropolitan-district-council/walsall,WC86-220,30/11/2017,Adult Social Care,ALPHA HEALTH CARE LTD,01/11/2017,294.12,73373-RESIDENTIAL & NURSING CARE PLACEMENTS,MH COMMISSIONING,Third Party Payments,Revenue
Walsall Council,http://opendatacommunities.org/id/metropolitan-district-council/walsall,WC86-221,30/11/2017,Adult Social Care,ALPHA HEALTH CARE LTD,01/11/2017,699.24,73373-RESIDENTIAL & NURSING CARE PLACEMENTS,MH COMMISSIONING,Third Party Payments,Revenue
Walsall Council,http://opendatacommunities.org/id/metropolitan-district-council/walsall,WC86-222,30/11/2017,Adult Social Care,ALPHA HEALTH CARE LTD,01/11/2017,983.57,73373-RESIDENTIAL & NURSING CARE PLACEMENTS,MH COMMISSIONING,Third Party Payments,Revenue
Walsall Council,http://opendatacommunities.org/id/metropolitan-district-council/walsall,WC86-223,30/11/2017,Adult Social Care,ALPHA HEALTH CARE LTD,01/11/2017,"1,006.44",73373-RESIDENTIAL & NURSING CARE PLACEMENTS,MH COMMISSIONING,Third Party Payments,Revenue
Walsall Council,http://opendatacommunities.org/id/metropolitan-district-council/walsall,WC86-224,30/11/2017,Adult Social Care,ALPHA HEALTH CARE LTD,20/11/2017,"1,208.57",73373-RESIDENTIAL & NURSING CARE PLACEMENTS,OP PACKAGE/PLACEMENT COSTS,Third Party Payments,Revenue
Walsall Council,http://opendatacommunities.org/id/metropolitan-district-council/walsall,WC86-225,30/11/2017,Adult Social Care,ALPHA HEALTH CARE LTD,13/11/2017,"1,656.00",73373-RESIDENTIAL & NURSING CARE PLACEMENTS,OP PACKAGE/PLACEMENT COSTS,Third Party Payments,Revenue
Walsall Council,http://opendatacommunities.org/id/metropolitan-district-council/walsall,WC86-226,30/11/2017,Adult Social Care,ALPHA HEALTH CARE LTD,13/11/2017,"1,656.00",73373-RESIDENTIAL & NURSING CARE PLACEMENTS,OP PACKAGE/PLACEMENT COSTS,Third Party Payments,Revenue
Walsall Council,http://opendatacommunities.org/id/metropolitan-district-council/walsall,WC86-227,30/11/2017,Adult Social Care,ALPHA HEALTH CARE LTD,20/11/2017,"1,656.00",73373-RESIDENTIAL & NURSING CARE PLACEMENTS,OP PACKAGE/PLACEMENT COSTS,Third Party Payments,Revenue
Walsall Council,http://opendatacommunities.org/id/metropolitan-district-council/walsall,WC86-228,30/11/2017,Adult Social Care,ALPHA HEALTH CARE LTD,20/11/2017,"1,656.00",73373-RESIDENTIAL & NURSING CARE PLACEMENTS,OP PACKAGE/PLACEMENT COSTS,Third Party Payments,Revenue
Walsall Council,http://opendatacommunities.org/id/metropolitan-district-council/walsall,WC86-229,30/11/2017,Adult Social Care,ALPHA HEALTH CARE LTD,20/11/2017,"1,656.00",73373-RESIDENTIAL & NURSING CARE PLACEMENTS,OP PACKAGE/PLACEMENT COSTS,Third Party Payments,Revenue
Walsall Council,http://opendatacommunities.org/id/metropolitan-district-council/walsall,WC86-230,30/11/2017,Adult Social Care,ALPHA HEALTH CARE LTD,20/11/2017,"1,840.00",73373-RESIDENTIAL & NURSING CARE PLACEMENTS,OP PACKAGE/PLACEMENT COSTS,Third Party Payments,Revenue
Walsall Council,http://opendatacommunities.org/id/metropolitan-district-council/walsall,WC86-231,30/11/2017,Adult Social Care,ALPHA HEALTH CARE LTD,20/11/2017,"2,000.00",73373-RESIDENTIAL & NURSING CARE PLACEMENTS,OP PACKAGE/PLACEMENT COSTS,Third Party Payments,Revenue
Walsall Council,http://opendatacommunities.org/id/metropolitan-district-council/walsall,WC86-232,30/11/2017,Adult Social Care,ALPHA HEALTH CARE LTD,20/11/2017,"2,160.00",73373-RESIDENTIAL & NURSING CARE PLACEMENTS,OP PACKAGE/PLACEMENT COSTS,Third Party Payments,Revenue
Walsall Council,http://opendatacommunities.org/id/metropolitan-district-council/walsall,WC86-233,30/11/2017,Adult Social Care,ALPHA HEALTH CARE LTD,13/11/2017,"2,200.00",73373-RESIDENTIAL & NURSING CARE PLACEMENTS,OP PACKAGE/PLACEMENT COSTS,Third Party Payments,Revenue
Walsall Council,http://opendatacommunities.org/id/metropolitan-district-council/walsall,WC86-234,30/11/2017,Adult Social Care,ALPHA HEALTH CARE LTD,20/11/2017,"2,200.00",73373-RESIDENTIAL & NURSING CARE PLACEMENTS,OP PACKAGE/PLACEMENT COSTS,Third Party Payments,Revenue
Walsall Council,http://opendatacommunities.org/id/metropolitan-district-council/walsall,WC86-235,30/11/2017,Adult Social Care,ALPHA HEALTH CARE LTD,20/11/2017,"2,200.00",73373-RESIDENTIAL & NURSING CARE PLACEMENTS,OP PACKAGE/PLACEMENT COSTS,Third Party Payments,Revenue
Walsall Council,http://opendatacommunities.org/id/metropolitan-district-council/walsall,WC86-236,30/11/2017,Adult Social Care,ALPHA HEALTH CARE LTD,20/11/2017,"2,200.00",73373-RESIDENTIAL & NURSING CARE PLACEMENTS,OP PACKAGE/PLACEMENT COSTS,Third Party Payments,Revenue
Walsall Council,http://opendatacommunities.org/id/metropolitan-district-council/walsall,WC86-237,30/11/2017,Adult Social Care,ALPHA HEALTH CARE LTD,20/11/2017,"2,200.00",73373-RESIDENTIAL & NURSING CARE PLACEMENTS,OP PACKAGE/PLACEMENT COSTS,Third Party Payments,Revenue
Walsall Council,http://opendatacommunities.org/id/metropolitan-district-council/walsall,WC86-238,30/11/2017,Adult Social Care,ALPHA HEALTH CARE LTD,20/11/2017,"2,200.00",73373-RESIDENTIAL & NURSING CARE PLACEMENTS,MH COMMISSIONING,Third Party Payments,Revenue
Walsall Council,http://opendatacommunities.org/id/metropolitan-district-council/walsall,WC86-239,30/11/2017,Adult Social Care,ALPHA HEALTH CARE LTD,20/11/2017,"2,239.28",73373-RESIDENTIAL & NURSING CARE PLACEMENTS,MH COMMISSIONING,Third Party Payments,Revenue
Walsall Council,http://opendatacommunities.org/id/metropolitan-district-council/walsall,WC86-240,30/11/2017,Adult Social Care,ALPHA HEALTH CARE LTD,20/11/2017,"2,326.00",73373-RESIDENTIAL & NURSING CARE PLACEMENTS,MH COMMISSIONING,Third Party Payments,Revenue
Walsall Council,http://opendatacommunities.org/id/metropolitan-district-council/walsall,WC86-241,30/11/2017,Adult Social Care,ALPHA HEALTH CARE LTD,20/11/2017,"2,445.20",73373-RESIDENTIAL & NURSING CARE PLACEMENTS,OP PACKAGE/PLACEMENT COSTS,Third Party Payments,Revenue
Walsall Council,http://opendatacommunities.org/id/metropolitan-district-council/walsall,WC86-242,30/11/2017,Adult Social Care,ALPHA HEALTH CARE LTD,20/11/2017,"2,645.20",73373-RESIDENTIAL & NURSING CARE PLACEMENTS,OP PACKAGE/PLACEMENT COSTS,Third Party Payments,Revenue
Walsall Council,http://opendatacommunities.org/id/metropolitan-district-council/walsall,WC86-243,30/11/2017,Adult Social Care,ALPHA HEALTH CARE LTD,01/11/2017,"2,652.75",73373-RESIDENTIAL & NURSING CARE PLACEMENTS,OP PACKAGE/PLACEMENT COSTS,Third Party Payments,Revenue
Walsall Council,http://opendatacommunities.org/id/metropolitan-district-council/walsall,WC86-244,30/11/2017,Adult Social Care,ALPHA HEALTH CARE LTD,01/11/2017,"2,652.75",73373-RESIDENTIAL & NURSING CARE PLACEMENTS,OP PACKAGE/PLACEMENT COSTS,Third Party Payments,Revenue
Walsall Council,http://opendatacommunities.org/id/metropolitan-district-council/walsall,WC86-245,30/11/2017,Adult Social Care,ALPHA HEALTH CARE LTD,13/11/2017,"2,652.75",73373-RESIDENTIAL & NURSING CARE PLACEMENTS,OP PACKAGE/PLACEMENT COSTS,Third Party Payments,Revenue
Walsall Council,http://opendatacommunities.org/id/metropolitan-district-council/walsall,WC86-246,30/11/2017,Adult Social Care,ALPHA HEALTH CARE LTD,20/11/2017,"2,652.75",73373-RESIDENTIAL & NURSING CARE PLACEMENTS,OP PACKAGE/PLACEMENT COSTS,Third Party Payments,Revenue
Walsall Council,http://opendatacommunities.org/id/metropolitan-district-council/walsall,WC86-247,30/11/2017,Adult Social Care,ALPHA HEALTH CARE LTD,01/11/2017,"2,652.76",73373-RESIDENTIAL & NURSING CARE PLACEMENTS,OP PACKAGE/PLACEMENT COSTS,Third Party Payments,Revenue
Walsall Council,http://opendatacommunities.org/id/metropolitan-district-council/walsall,WC86-248,30/11/2017,Adult Social Care,ALPHA HEALTH CARE LTD,20/11/2017,"2,725.20",73373-RESIDENTIAL & NURSING CARE PLACEMENTS,OP PACKAGE/PLACEMENT COSTS,Third Party Payments,Revenue
Walsall Council,http://opendatacommunities.org/id/metropolitan-district-council/walsall,WC86-249,30/11/2017,Adult Social Care,ALPHA HEALTH CARE LTD,20/11/2017,"3,192.86",73373-RESIDENTIAL & NURSING CARE PLACEMENTS,MH COMMISSIONING,Third Party Payments,Revenue
Walsall Council,http://opendatacommunities.org/id/metropolitan-district-council/walsall,WC86-250,30/11/2017,Adult Social Care,ALPHA HEALTH CARE LTD,01/11/2017,"7,935.60",73373-RESIDENTIAL & NURSING CARE PLACEMENTS,OP PACKAGE/PLACEMENT COSTS,Third Party Payments,Revenue
Walsall Council,http://opendatacommunities.org/id/metropolitan-district-council/walsall,WC86-251,30/11/2017,Adult Social Care,ALPHA HEALTH CARE LTD,01/11/2017,"8,175.60",73373-RESIDENTIAL & NURSING CARE PLACEMENTS,OP PACKAGE/PLACEMENT COSTS,Third Party Payments,Revenue
Walsall Council,http://opendatacommunities.org/id/metropolitan-district-council/walsall,WC86-252,30/11/2017,Adult Social Care,ALPHA HEALTH CARE LTD,01/11/2017,"8,961.62",73373-RESIDENTIAL & NURSING CARE PLACEMENTS,MH COMMISSIONING,Third Party Payments,Revenue
Walsall Council,http://opendatacommunities.org/id/metropolitan-district-council/walsall,WC86-253,30/11/2017,Childrens,ALPHABIOLABS,23/11/2017,299.00,63000-PROFESSIONAL FEES AND SERVICES,SAFEGUARDING & FAMILY SUPPORT,Supplies & Services,Revenue
Walsall Council,http://opendatacommunities.org/id/metropolitan-district-council/walsall,WC86-254,30/11/2017,Childrens,ALPHABIOLABS,01/11/2017,851.50,63000-PROFESSIONAL FEES AND SERVICES,SAFEGUARDING & FAMILY SUPPORT,Supplies & Services,Revenue
Walsall Council,http://opendatacommunities.org/id/metropolitan-district-council/walsall,WC86-255,30/11/2017,Childrens,ALUMWELLIES NURSERY,10/11/2017,"1,320.00",63120-CRECHE FACILITIES-SERVICES-FEES,BUDDY COSTS 0-5,Supplies & Services,Revenue
Walsall Council,http://opendatacommunities.org/id/metropolitan-district-council/walsall,WC86-256,30/11/2017,Economy & Environment,ALZEC VISION CIC,06/11/2017,"4,990.00",66500-GRANTS TO OTHER ORGS,ESF COMMUNITY GRANTS,Third Party Payments,Revenue
Walsall Council,http://opendatacommunities.org/id/metropolitan-district-council/walsall,WC86-257,30/11/2017,Childrens,REDACTED,17/11/2017,808.04,74009-ADOPTION ALLOWANCE,ADOPTION ALLOWANCES,Transfer Payments,Revenue
Walsall Council,http://opendatacommunities.org/id/metropolitan-district-council/walsall,WC86-258,30/11/2017,Childrens,REDACTED,06/11/2017,9.24,60006-NEW-FURNITURE & EQUIPMENT,INTERNAL FOSTER CARE PROVISION,Supplies & Services,Revenue
Walsall Council,http://opendatacommunities.org/id/metropolitan-district-council/walsall,WC86-259,30/11/2017,Childrens,REDACTED,06/11/2017,49.81,74506-TRAVEL-FOSTER CARERS,INTERNAL FOSTER CARE PROVISION,Transfer Payments,Revenue
Walsall Council,http://opendatacommunities.org/id/metropolitan-district-council/walsall,WC86-260,30/11/2017,Childrens,REDACTED,06/11/2017,530.96,74508-INTERNAL FOSTER CARERS-CARER FEES,INTERNAL FOSTER CARE PROVISION,Transfer Payments,Revenue
Walsall Council,http://opendatacommunities.org/id/metropolitan-district-council/walsall,WC86-261,30/11/2017,Childrens,REDACTED,06/11/2017,650.92,74501-MAINTENANCE ALLOWANCE-FOSTER CARERS,INTERNAL FOSTER CARE PROVISION,Transfer Payments,Revenue
Walsall Council,http://opendatacommunities.org/id/metropolitan-district-council/walsall,WC86-262,30/11/2017,Childrens,REDACTED,03/11/2017,336.92,76422-DIRECT PAYMENTS TO SOCIAL SERVICES CLIENTS,FAMILY SUPPORT - DIRECT PAYMENTS,Transfer Payments,Revenue
Walsall Council,http://opendatacommunities.org/id/metropolitan-district-council/walsall,WC86-263,30/11/2017,Economy & Environment,AMEY LG LIMITED,09/11/2017,542.71,73025-PROFESSIONAL SERVICES-PRIV CONTRACTOR & OTHER AGENCIES,PARKING SERVICES OFF-STREET,Third Party Payments,Revenue
Walsall Council,http://opendatacommunities.org/id/metropolitan-district-council/walsall,WC86-264,30/11/2017,Economy & Environment,AMEY LG LIMITED,13/11/2017,"12,686.60",73025-PROFESSIONAL SERVICES-PRIV CONTRACTOR & OTHER AGENCIES,TRAFFIC MANAGEMENT,Third Party Payments,Revenue
Walsall Council,http://opendatacommunities.org/id/metropolitan-district-council/walsall,WC86-265,30/11/2017,Adult Social Care,AMG NURSING CARE SERVICES,17/11/2017,871.20,73374-SUPPORTED & OTHER ACCOMMODATION,PD PACKAGE/PLACEMENT COSTS,Third Party Payments,Revenue
Walsall Council,http://opendatacommunities.org/id/metropolitan-district-council/walsall,WC86-266,30/11/2017,Childrens,AMG NURSING CARE SERVICES,23/11/2017,"1,025.28",63000-PROFESSIONAL FEES AND SERVICES,DIRECTLY COMMISSIONED NURSING SERVICES,Supplies & Services,Revenue
Walsall Council,http://opendatacommunities.org/id/metropolitan-district-council/walsall,WC86-267,30/11/2017,Childrens,AMG NURSING CARE SERVICES,06/11/2017,"1,110.72",63000-PROFESSIONAL FEES AND SERVICES,DIRECTLY COMMISSIONED NURSING SERVICES,Supplies & Services,Revenue
Walsall Council,http://opendatacommunities.org/id/metropolitan-district-council/walsall,WC86-268,30/11/2017,Childrens,AMG NURSING CARE SERVICES,07/11/2017,"1,110.72",63000-PROFESSIONAL FEES AND SERVICES,DIRECTLY COMMISSIONED NURSING SERVICES,Supplies & Services,Revenue
Walsall Council,http://opendatacommunities.org/id/metropolitan-district-council/walsall,WC86-269,30/11/2017,Childrens,AMG NURSING CARE SERVICES,15/11/2017,"2,246.00",63000-PROFESSIONAL FEES AND SERVICES,DIRECTLY COMMISSIONED NURSING SERVICES,Supplies & Services,Revenue
Walsall Council,http://opendatacommunities.org/id/metropolitan-district-council/walsall,WC86-270,30/11/2017,Childrens,AMG NURSING CARE SERVICES,07/11/2017,"2,258.16",63000-PROFESSIONAL FEES AND SERVICES,DIRECTLY COMMISSIONED NURSING SERVICES,Supplies & Services,Revenue
Walsall Council,http://opendatacommunities.org/id/metropolitan-district-council/walsall,WC86-271,30/11/2017,Childrens,AMG NURSING CARE SERVICES,07/11/2017,"2,274.48",63000-PROFESSIONAL FEES AND SERVICES,DIRECTLY COMMISSIONED NURSING SERVICES,Supplies & Services,Revenue
Walsall Council,http://opendatacommunities.org/id/metropolitan-district-council/walsall,WC86-272,30/11/2017,Childrens,AMG NURSING CARE SERVICES,17/11/2017,"2,274.48",63000-PROFESSIONAL FEES AND SERVICES,DIRECTLY COMMISSIONED NURSING SERVICES,Supplies & Services,Revenue
Walsall Council,http://opendatacommunities.org/id/metropolitan-district-council/walsall,WC86-273,30/11/2017,Childrens,AMG NURSING CARE SERVICES,06/11/2017,"2,644.72",63000-PROFESSIONAL FEES AND SERVICES,DIRECTLY COMMISSIONED NURSING SERVICES,Supplies & Services,Revenue
Walsall Council,http://opendatacommunities.org/id/metropolitan-district-council/walsall,WC86-274,30/11/2017,Adult Social Care,AMG NURSING CARE SERVICES,10/11/2017,"10,711.68",73374-SUPPORTED & OTHER ACCOMMODATION,OP PACKAGE/PLACEMENT COSTS,Third Party Payments,Revenue
Walsall Council,http://opendatacommunities.org/id/metropolitan-district-council/walsall,WC86-275,30/11/2017,Childrens,REDACTED,17/11/2017,9.24,60006-NEW-FURNITURE & EQUIPMENT,FAMILY & FRIENDS FOSTER CARE PROVISION,Supplies & Services,Revenue
Walsall Council,http://opendatacommunities.org/id/metropolitan-district-council/walsall,WC86-276,30/11/2017,Childrens,REDACTED,17/11/2017,81.37,74503-BIRTHDAY ALLOWANCE-FOSTER CARERS,FAMILY & FRIENDS FOSTER CARE PROVISION,Transfer Payments,Revenue
Walsall Council,http://opendatacommunities.org/id/metropolitan-district-council/walsall,WC86-277,30/11/2017,Childrens,REDACTED,17/11/2017,162.73,74504-HOLIDAY/CHRISTMAS ALLOWANCE-FOSTER CARERS,FAMILY & FRIENDS FOSTER CARE PROVISION,Transfer Payments,Revenue
Walsall Council,http://opendatacommunities.org/id/metropolitan-district-council/walsall,WC86-278,30/11/2017,Childrens,REDACTED,17/11/2017,345.24,74508-INTERNAL FOSTER CARERS-CARER FEES,FAMILY & FRIENDS FOSTER CARE PROVISION,Transfer Payments,Revenue
Walsall Council,http://opendatacommunities.org/id/metropolitan-district-council/walsall,WC86-279,30/11/2017,Childrens,REDACTED,17/11/2017,571.44,74501-MAINTENANCE ALLOWANCE-FOSTER CARERS,FAMILY & FRIENDS FOSTER CARE PROVISION,Transfer Payments,Revenue
Walsall Council,http://opendatacommunities.org/id/metropolitan-district-council/walsall,WC86-280,30/11/2017,Childrens,REDACTED,17/11/2017,425.08,74510-RESIDENTS ORDERS,ADOPTION ALLOWANCES,Third Party Payments,Revenue
Walsall Council,http://opendatacommunities.org/id/metropolitan-district-council/walsall,WC86-281,30/11/2017,Adult Social Care,REDACTED,03/11/2017,"1,140.00",76422-DIRECT PAYMENTS TO SOCIAL SERVICES CLIENTS,OP PACKAGE/PLACEMENT COSTS,Transfer Payments,Revenue
Walsall Council,http://opendatacommunities.org/id/metropolitan-district-council/walsall,WC86-282,30/11/2017,Adult Social Care,ANCHOR,28/11/2017,854.29,73373-RESIDENTIAL & NURSING CARE PLACEMENTS,OP PACKAGE/PLACEMENT COSTS,Third Party Payments,Revenue
Walsall Council,http://opendatacommunities.org/id/metropolitan-district-council/walsall,WC86-283,30/11/2017,Adult Social Care,ANCHOR,28/11/2017,985.71,73373-RESIDENTIAL & NURSING CARE PLACEMENTS,OP PACKAGE/PLACEMENT COSTS,Third Party Payments,Revenue
Walsall Council,http://opendatacommunities.org/id/metropolitan-district-council/walsall,WC86-284,30/11/2017,Adult Social Care,ANCHOR,28/11/2017,"1,557.14",73373-RESIDENTIAL & NURSING CARE PLACEMENTS,OP PACKAGE/PLACEMENT COSTS,Third Party Payments,Revenue
Walsall Council,http://opendatacommunities.org/id/metropolitan-district-council/walsall,WC86-285,30/11/2017,Adult Social Care,ANCHOR,06/11/2017,"1,800.00",73373-RESIDENTIAL & NURSING CARE PLACEMENTS,MH COMMISSIONING,Third Party Payments,Revenue
Walsall Council,http://opendatacommunities.org/id/metropolitan-district-council/walsall,WC86-286,30/11/2017,Adult Social Care,ANCHOR,20/11/2017,"1,800.00",73373-RESIDENTIAL & NURSING CARE PLACEMENTS,OP PACKAGE/PLACEMENT COSTS,Third Party Payments,Revenue
Walsall Council,http://opendatacommunities.org/id/metropolitan-district-council/walsall,WC86-287,30/11/2017,Adult Social Care,ANCHOR,28/11/2017,"1,800.00",73373-RESIDENTIAL & NURSING CARE PLACEMENTS,OP PACKAGE/PLACEMENT COSTS,Third Party Payments,Revenue
Walsall Council,http://opendatacommunities.org/id/metropolitan-district-council/walsall,WC86-288,30/11/2017,Adult Social Care,ANCHOR,06/11/2017,"1,816.00",73373-RESIDENTIAL & NURSING CARE PLACEMENTS,OP PACKAGE/PLACEMENT COSTS,Third Party Payments,Revenue
Walsall Council,http://opendatacommunities.org/id/metropolitan-district-council/walsall,WC86-289,30/11/2017,Adult Social Care,ANCHOR,06/11/2017,"1,840.00",73373-RESIDENTIAL & NURSING CARE PLACEMENTS,OP PACKAGE/PLACEMENT COSTS,Third Party Payments,Revenue
Walsall Council,http://opendatacommunities.org/id/metropolitan-district-council/walsall,WC86-290,30/11/2017,Adult Social Care,ANCHOR,28/11/2017,"1,840.00",73373-RESIDENTIAL & NURSING CARE PLACEMENTS,OP PACKAGE/PLACEMENT COSTS,Third Party Payments,Revenue
Walsall Council,http://opendatacommunities.org/id/metropolitan-district-council/walsall,WC86-291,30/11/2017,Adult Social Care,ANCHOR,28/11/2017,"2,080.00",73373-RESIDENTIAL & NURSING CARE PLACEMENTS,MH COMMISSIONING,Third Party Payments,Revenue
Walsall Council,http://opendatacommunities.org/id/metropolitan-district-council/walsall,WC86-292,30/11/2017,Adult Social Care,ANCHOR,28/11/2017,"2,080.00",73373-RESIDENTIAL & NURSING CARE PLACEMENTS,MH COMMISSIONING,Third Party Payments,Revenue
Walsall Council,http://opendatacommunities.org/id/metropolitan-district-council/walsall,WC86-293,30/11/2017,Adult Social Care,ANCHOR,20/11/2017,"5,388.57",73373-RESIDENTIAL & NURSING CARE PLACEMENTS,MH COMMISSIONING,Third Party Payments,Revenue
Walsall Council,http://opendatacommunities.org/id/metropolitan-district-council/walsall,WC86-294,30/11/2017,Childrens,REDACTED,17/11/2017,314.44,74509-SPECIAL GUARDIANSHIP ORDERS,ADOPTION ALLOWANCES,Transfer Payments,Revenue
Walsall Council,http://opendatacommunities.org/id/metropolitan-district-council/walsall,WC86-295,30/11/2017,Childrens,REDACTED,06/11/2017,9.24,60006-NEW-FURNITURE & EQUIPMENT,INTERNAL FOSTER CARE PROVISION,Supplies & Services,Revenue
Walsall Council,http://opendatacommunities.org/id/metropolitan-district-council/walsall,WC86-296,30/11/2017,Childrens,REDACTED,06/11/2017,451.66,74506-TRAVEL-FOSTER CARERS,INTERNAL FOSTER CARE PROVISION,Transfer Payments,Revenue
Walsall Council,http://opendatacommunities.org/id/metropolitan-district-council/walsall,WC86-297,30/11/2017,Childrens,REDACTED,06/11/2017,810.32,74501-MAINTENANCE ALLOWANCE-FOSTER CARERS,INTERNAL FOSTER CARE PROVISION,Transfer Payments,Revenue
Walsall Council,http://opendatacommunities.org/id/metropolitan-district-council/walsall,WC86-298,30/11/2017,Childrens,REDACTED,06/11/2017,897.52,74508-INTERNAL FOSTER CARERS-CARER FEES,INTERNAL FOSTER CARE PROVISION,Transfer Payments,Revenue
Walsall Council,http://opendatacommunities.org/id/metropolitan-district-council/walsall,WC86-299,30/11/2017,Adult Social Care,REDACTED,03/11/2017,866.60,76422-DIRECT PAYMENTS TO SOCIAL SERVICES CLIENTS,OP PACKAGE/PLACEMENT COSTS,Transfer Payments,Revenue
Walsall Council,http://opendatacommunities.org/id/metropolitan-district-council/walsall,WC86-300,30/11/2017,Childrens,REDACTED,17/11/2017,368.76,74509-SPECIAL GUARDIANSHIP ORDERS,ADOPTION ALLOWANCES,Transfer Payments,Revenue
Walsall Council,http://opendatacommunities.org/id/metropolitan-district-council/walsall,WC86-301,30/11/2017,Childrens,REDACTED,17/11/2017,368.76,74509-SPECIAL GUARDIANSHIP ORDERS,ADOPTION ALLOWANCES,Transfer Payments,Revenue
Walsall Council,http://opendatacommunities.org/id/metropolitan-district-council/walsall,WC86-302,30/11/2017,Childrens,REDACTED,17/11/2017,500.16,74509-SPECIAL GUARDIANSHIP ORDERS,ADOPTION ALLOWANCES,Transfer Payments,Revenue
Walsall Council,http://opendatacommunities.org/id/metropolitan-district-council/walsall,WC86-303,30/11/2017,Childrens,REDACTED,17/11/2017,312.04,74509-SPECIAL GUARDIANSHIP ORDERS,ADOPTION ALLOWANCES,Transfer Payments,Revenue
Walsall Council,http://opendatacommunities.org/id/metropolitan-district-council/walsall,WC86-304,30/11/2017,Adult Social Care,REDACTED,03/11/2017,327.36,76422-DIRECT PAYMENTS TO SOCIAL SERVICES CLIENTS,LD PACKAGE/PLACEMENT COSTS,Transfer Payments,Revenue
Walsall Council,http://opendatacommunities.org/id/metropolitan-district-council/walsall,WC86-305,30/11/2017,Adult Social Care,REDACTED,03/11/2017,680.24,76422-DIRECT PAYMENTS TO SOCIAL SERVICES CLIENTS,OP PACKAGE/PLACEMENT COSTS,Transfer Payments,Revenue
Walsall Council,http://opendatacommunities.org/id/metropolitan-district-council/walsall,WC86-306,30/11/2017,Adult Social Care,REDACTED,03/11/2017,"2,255.04",76422-DIRECT PAYMENTS TO SOCIAL SERVICES CLIENTS,OP PACKAGE/PLACEMENT COSTS,Transfer Payments,Revenue
Walsall Council,http://opendatacommunities.org/id/metropolitan-district-council/walsall,WC86-307,30/11/2017,Adult Social Care,ANSON COURT RESIDENTIAL HOME,13/11/2017,878.57,73373-RESIDENTIAL & NURSING CARE PLACEMENTS,MH COMMISSIONING,Third Party Payments,Revenue
Walsall Council,http://opendatacommunities.org/id/metropolitan-district-council/walsall,WC86-308,30/11/2017,Adult Social Care,ANSON COURT RESIDENTIAL HOME,01/11/2017,"1,840.00",73373-RESIDENTIAL & NURSING CARE PLACEMENTS,OP PACKAGE/PLACEMENT COSTS,Third Party Payments,Revenue
Walsall Council,http://opendatacommunities.org/id/metropolitan-district-council/walsall,WC86-309,30/11/2017,Adult Social Care,ANSON COURT RESIDENTIAL HOME,01/11/2017,"1,840.00",73373-RESIDENTIAL & NURSING CARE PLACEMENTS,OP PACKAGE/PLACEMENT COSTS,Third Party Payments,Revenue
Walsall Council,http://opendatacommunities.org/id/metropolitan-district-council/walsall,WC86-310,30/11/2017,Adult Social Care,ANSON COURT RESIDENTIAL HOME,01/11/2017,"1,840.00",73373-RESIDENTIAL & NURSING CARE PLACEMENTS,OP PACKAGE/PLACEMENT COSTS,Third Party Payments,Revenue
Walsall Council,http://opendatacommunities.org/id/metropolitan-district-council/walsall,WC86-311,30/11/2017,Adult Social Care,ANSON COURT RESIDENTIAL HOME,06/11/2017,"1,840.00",73373-RESIDENTIAL & NURSING CARE PLACEMENTS,MH COMMISSIONING,Third Party Payments,Revenue
Walsall Council,http://opendatacommunities.org/id/metropolitan-district-council/walsall,WC86-312,30/11/2017,Adult Social Care,ANSON COURT RESIDENTIAL HOME,06/11/2017,"1,840.00",73373-RESIDENTIAL & NURSING CARE PLACEMENTS,MH COMMISSIONING,Third Party Payments,Revenue
Walsall Council,http://opendatacommunities.org/id/metropolitan-district-council/walsall,WC86-313,30/11/2017,Adult Social Care,ANSON COURT RESIDENTIAL HOME,20/11/2017,"1,840.00",73373-RESIDENTIAL & NURSING CARE PLACEMENTS,OP PACKAGE/PLACEMENT COSTS,Third Party Payments,Revenue
Walsall Council,http://opendatacommunities.org/id/metropolitan-district-council/walsall,WC86-314,30/11/2017,Adult Social Care,ANSON COURT RESIDENTIAL HOME,20/11/2017,"1,840.00",73373-RESIDENTIAL & NURSING CARE PLACEMENTS,OP PACKAGE/PLACEMENT COSTS,Third Party Payments,Revenue
Walsall Council,http://opendatacommunities.org/id/metropolitan-district-council/walsall,WC86-315,30/11/2017,Adult Social Care,ANSON COURT RESIDENTIAL HOME,20/11/2017,"1,840.00",73373-RESIDENTIAL & NURSING CARE PLACEMENTS,OP PACKAGE/PLACEMENT COSTS,Third Party Payments,Revenue
Walsall Council,http://opendatacommunities.org/id/metropolitan-district-council/walsall,WC86-316,30/11/2017,Adult Social Care,ANSON COURT RESIDENTIAL HOME,20/11/2017,"1,840.00",73373-RESIDENTIAL & NURSING CARE PLACEMENTS,OP PACKAGE/PLACEMENT COSTS,Third Party Payments,Revenue
Walsall Council,http://opendatacommunities.org/id/metropolitan-district-council/walsall,WC86-317,30/11/2017,Adult Social Care,ANSON COURT RESIDENTIAL HOME,20/11/2017,"1,840.00",73373-RESIDENTIAL & NURSING CARE PLACEMENTS,OP PACKAGE/PLACEMENT COSTS,Third Party Payments,Revenue
Walsall Council,http://opendatacommunities.org/id/metropolitan-district-council/walsall,WC86-318,30/11/2017,Adult Social Care,ANSON COURT RESIDENTIAL HOME,20/11/2017,"1,840.00",73373-RESIDENTIAL & NURSING CARE PLACEMENTS,MH COMMISSIONING,Third Party Payments,Revenue
Walsall Council,http://opendatacommunities.org/id/metropolitan-district-council/walsall,WC86-319,30/11/2017,Adult Social Care,ANSON COURT RESIDENTIAL HOME,20/11/2017,"1,840.00",73373-RESIDENTIAL & NURSING CARE PLACEMENTS,OP PACKAGE/PLACEMENT COSTS,Third Party Payments,Revenue
Walsall Council,http://opendatacommunities.org/id/metropolitan-district-council/walsall,WC86-320,30/11/2017,Adult Social Care,ANSON COURT RESIDENTIAL HOME,20/11/2017,"1,840.00",73373-RESIDENTIAL & NURSING CARE PLACEMENTS,MH COMMISSIONING,Third Party Payments,Revenue
Walsall Council,http://opendatacommunities.org/id/metropolitan-district-council/walsall,WC86-321,30/11/2017,Adult Social Care,ANSON COURT RESIDENTIAL HOME,20/11/2017,"1,840.00",73373-RESIDENTIAL & NURSING CARE PLACEMENTS,OP PACKAGE/PLACEMENT COSTS,Third Party Payments,Revenue
Walsall Council,http://opendatacommunities.org/id/metropolitan-district-council/walsall,WC86-322,30/11/2017,Adult Social Care,ANSON COURT RESIDENTIAL HOME,20/11/2017,"1,840.00",73373-RESIDENTIAL & NURSING CARE PLACEMENTS,OP PACKAGE/PLACEMENT COSTS,Third Party Payments,Revenue
Walsall Council,http://opendatacommunities.org/id/metropolitan-district-council/walsall,WC86-323,30/11/2017,Adult Social Care,ANSON COURT RESIDENTIAL HOME,20/11/2017,"1,840.00",73373-RESIDENTIAL & NURSING CARE PLACEMENTS,OP PACKAGE/PLACEMENT COSTS,Third Party Payments,Revenue
Walsall Council,http://opendatacommunities.org/id/metropolitan-district-council/walsall,WC86-324,30/11/2017,Adult Social Care,ANSON COURT RESIDENTIAL HOME,20/11/2017,"1,840.00",73373-RESIDENTIAL & NURSING CARE PLACEMENTS,OP PACKAGE/PLACEMENT COSTS,Third Party Payments,Revenue
Walsall Council,http://opendatacommunities.org/id/metropolitan-district-council/walsall,WC86-325,30/11/2017,Adult Social Care,ANSON COURT RESIDENTIAL HOME,20/11/2017,"1,840.00",73373-RESIDENTIAL & NURSING CARE PLACEMENTS,OP PACKAGE/PLACEMENT COSTS,Third Party Payments,Revenue
Walsall Council,http://opendatacommunities.org/id/metropolitan-district-council/walsall,WC86-326,30/11/2017,Adult Social Care,ANSON COURT RESIDENTIAL HOME,20/11/2017,"1,840.00",73373-RESIDENTIAL & NURSING CARE PLACEMENTS,OP PACKAGE/PLACEMENT COSTS,Third Party Payments,Revenue
Walsall Council,http://opendatacommunities.org/id/metropolitan-district-council/walsall,WC86-327,30/11/2017,Adult Social Care,ANSON COURT RESIDENTIAL HOME,20/11/2017,"1,840.00",73373-RESIDENTIAL & NURSING CARE PLACEMENTS,OP PACKAGE/PLACEMENT COSTS,Third Party Payments,Revenue
Walsall Council,http://opendatacommunities.org/id/metropolitan-district-council/walsall,WC86-328,30/11/2017,Adult Social Care,ANSON COURT RESIDENTIAL HOME,20/11/2017,"1,840.00",73373-RESIDENTIAL & NURSING CARE PLACEMENTS,OP PACKAGE/PLACEMENT COSTS,Third Party Payments,Revenue
Walsall Council,http://opendatacommunities.org/id/metropolitan-district-council/walsall,WC86-329,30/11/2017,Adult Social Care,ANSON COURT RESIDENTIAL HOME,01/11/2017,"1,920.00",73373-RESIDENTIAL & NURSING CARE PLACEMENTS,OP PACKAGE/PLACEMENT COSTS,Third Party Payments,Revenue
Walsall Council,http://opendatacommunities.org/id/metropolitan-district-council/walsall,WC86-330,30/11/2017,Adult Social Care,ANSON COURT RESIDENTIAL HOME,01/11/2017,"1,920.00",73373-RESIDENTIAL & NURSING CARE PLACEMENTS,OP PACKAGE/PLACEMENT COSTS,Third Party Payments,Revenue
Walsall Council,http://opendatacommunities.org/id/metropolitan-district-council/walsall,WC86-331,30/11/2017,Adult Social Care,ANSON COURT RESIDENTIAL HOME,20/11/2017,"1,920.00",73373-RESIDENTIAL & NURSING CARE PLACEMENTS,OP PACKAGE/PLACEMENT COSTS,Third Party Payments,Revenue
Walsall Council,http://opendatacommunities.org/id/metropolitan-district-council/walsall,WC86-332,30/11/2017,Adult Social Care,ANSON COURT RESIDENTIAL HOME,20/11/2017,"1,920.00",73373-RESIDENTIAL & NURSING CARE PLACEMENTS,OP PACKAGE/PLACEMENT COSTS,Third Party Payments,Revenue
Walsall Council,http://opendatacommunities.org/id/metropolitan-district-council/walsall,WC86-333,30/11/2017,Adult Social Care,ANSON COURT RESIDENTIAL HOME,20/11/2017,"1,920.00",73373-RESIDENTIAL & NURSING CARE PLACEMENTS,OP PACKAGE/PLACEMENT COSTS,Third Party Payments,Revenue
Walsall Council,http://opendatacommunities.org/id/metropolitan-district-council/walsall,WC86-334,30/11/2017,Adult Social Care,ANSON COURT RESIDENTIAL HOME,01/11/2017,"2,125.71",73373-RESIDENTIAL & NURSING CARE PLACEMENTS,OP PACKAGE/PLACEMENT COSTS,Third Party Payments,Revenue
Walsall Council,http://opendatacommunities.org/id/metropolitan-district-council/walsall,WC86-335,30/11/2017,Adult Social Care,ANSON COURT RESIDENTIAL HOME,06/11/2017,"2,300.00",73373-RESIDENTIAL & NURSING CARE PLACEMENTS,OP PACKAGE/PLACEMENT COSTS,Third Party Payments,Revenue
Walsall Council,http://opendatacommunities.org/id/metropolitan-district-council/walsall,WC86-336,30/11/2017,Adult Social Care,ANSON COURT RESIDENTIAL HOME,20/11/2017,"2,825.71",73373-RESIDENTIAL & NURSING CARE PLACEMENTS,OP PACKAGE/PLACEMENT COSTS,Third Party Payments,Revenue
Walsall Council,http://opendatacommunities.org/id/metropolitan-district-council/walsall,WC86-337,30/11/2017,Adult Social Care,ANSON COURT RESIDENTIAL HOME,13/11/2017,"4,920.00",73373-RESIDENTIAL & NURSING CARE PLACEMENTS,MH COMMISSIONING,Third Party Payments,Revenue
Walsall Council,http://opendatacommunities.org/id/metropolitan-district-council/walsall,WC86-338,30/11/2017,Adult Social Care,ANSON COURT RESIDENTIAL HOME,13/11/2017,"4,920.00",73373-RESIDENTIAL & NURSING CARE PLACEMENTS,MH COMMISSIONING,Third Party Payments,Revenue
Walsall Council,http://opendatacommunities.org/id/metropolitan-district-council/walsall,WC86-339,30/11/2017,Adult Social Care,ANSON COURT RESIDENTIAL HOME,13/11/2017,"4,920.00",73373-RESIDENTIAL & NURSING CARE PLACEMENTS,MH COMMISSIONING,Third Party Payments,Revenue
Walsall Council,http://opendatacommunities.org/id/metropolitan-district-council/walsall,WC86-340,30/11/2017,Change and Governance,ANTALIS LIMITED,01/11/2017,350.00,60500-GENERAL MATERIALS,PRINTING SERVICES,Supplies & Services,Revenue
Walsall Council,http://opendatacommunities.org/id/metropolitan-district-council/walsall,WC86-341,30/11/2017,Childrens,REDACTED,17/11/2017,604.00,74510-RESIDENTS ORDERS,ADOPTION ALLOWANCES,Third Party Payments,Revenue
Walsall Council,http://opendatacommunities.org/id/metropolitan-district-council/walsall,WC86-342,30/11/2017,Childrens,REDACTED,17/11/2017,333.12,74509-SPECIAL GUARDIANSHIP ORDERS,ADOPTION ALLOWANCES,Transfer Payments,Revenue
Walsall Council,http://opendatacommunities.org/id/metropolitan-district-council/walsall,WC86-343,30/11/2017,Economy & Environment,APCOA PARKING SERVICES (UK) LTD,09/11/2017,"45,280.64",73025-PROFESSIONAL SERVICES-PRIV CONTRACTOR & OTHER AGENCIES,PARKING SERVICES OFF-STREET,Third Party Payments,Revenue
Walsall Council,http://opendatacommunities.org/id/metropolitan-district-council/walsall,WC86-344,30/11/2017,Economy & Environment,AQUALYMPIC,06/11/2017,250.00,63124-FEES & LICENCES-SERVICES,WALSALL GALA CENTRE,Supplies & Services,Revenue
Walsall Council,http://opendatacommunities.org/id/metropolitan-district-council/walsall,WC86-345,30/11/2017,Economy & Environment,AQUALYMPIC,24/11/2017,282.50,34305-AGENCY STAFF-EMPLOYEES,BLOXWICH LEISURE CENTRE,Employees,Revenue
Walsall Council,http://opendatacommunities.org/id/metropolitan-district-council/walsall,WC86-346,30/11/2017,Economy & Environment,AQUALYMPIC,09/11/2017,510.00,34305-AGENCY STAFF-EMPLOYEES,BLOXWICH LEISURE CENTRE,Employees,Revenue
Walsall Council,http://opendatacommunities.org/id/metropolitan-district-council/walsall,WC86-347,30/11/2017,Economy & Environment,AQUALYMPIC,08/11/2017,627.50,34305-AGENCY STAFF-EMPLOYEES,BLOXWICH LEISURE CENTRE,Employees,Revenue
Walsall Council,http://opendatacommunities.org/id/metropolitan-district-council/walsall,WC86-348,30/11/2017,Economy & Environment,AQUALYMPIC,17/11/2017,730.00,34305-AGENCY STAFF-EMPLOYEES,BLOXWICH LEISURE CENTRE,Employees,Revenue
Walsall Council,http://opendatacommunities.org/id/metropolitan-district-council/walsall,WC86-349,30/11/2017,Economy & Environment,AQUALYMPIC,15/11/2017,947.50,34305-AGENCY STAFF-EMPLOYEES,BLOXWICH LEISURE CENTRE,Employees,Revenue
Walsall Council,http://opendatacommunities.org/id/metropolitan-district-council/walsall,WC86-350,30/11/2017,Economy & Environment,AQUALYMPIC,01/11/2017,"2,362.50",34305-AGENCY STAFF-EMPLOYEES,OAK PARK,Employees,Revenue
Walsall Council,http://opendatacommunities.org/id/metropolitan-district-council/walsall,WC86-351,30/11/2017,Economy & Environment,AQUALYMPIC,23/11/2017,"2,390.00",34305-AGENCY STAFF-EMPLOYEES,OAK PARK,Employees,Revenue
Walsall Council,http://opendatacommunities.org/id/metropolitan-district-council/walsall,WC86-352,30/11/2017,Economy & Environment,AQUALYMPIC,27/11/2017,"2,760.00",34305-AGENCY STAFF-EMPLOYEES,OAK PARK,Employees,Revenue
Walsall Council,http://opendatacommunities.org/id/metropolitan-district-council/walsall,WC86-353,30/11/2017,Economy & Environment,AQUALYMPIC,13/11/2017,"2,797.50",34305-AGENCY STAFF-EMPLOYEES,OAK PARK,Employees,Revenue
Walsall Council,http://opendatacommunities.org/id/metropolitan-district-council/walsall,WC86-354,30/11/2017,Economy & Environment,AQUALYMPIC,06/11/2017,"4,452.50",34305-AGENCY STAFF-EMPLOYEES,OAK PARK,Employees,Revenue
Walsall Council,http://opendatacommunities.org/id/metropolitan-district-council/walsall,WC86-355,30/11/2017,Adult Social Care,ARBORETUM NURSING HOME.,13/11/2017,"2,000.00",73373-RESIDENTIAL & NURSING CARE PLACEMENTS,PD PACKAGE/PLACEMENT COSTS,Third Party Payments,Revenue
Walsall Council,http://opendatacommunities.org/id/metropolitan-district-council/walsall,WC86-356,30/11/2017,Adult Social Care,ARBORETUM NURSING HOME.,13/11/2017,"2,000.00",73373-RESIDENTIAL & NURSING CARE PLACEMENTS,OP PACKAGE/PLACEMENT COSTS,Third Party Payments,Revenue
Walsall Council,http://opendatacommunities.org/id/metropolitan-district-council/walsall,WC86-357,30/11/2017,Adult Social Care,ARBORETUM NURSING HOME.,20/11/2017,"2,000.00",73373-RESIDENTIAL & NURSING CARE PLACEMENTS,OP PACKAGE/PLACEMENT COSTS,Third Party Payments,Revenue
Walsall Council,http://opendatacommunities.org/id/metropolitan-district-council/walsall,WC86-358,30/11/2017,Adult Social Care,ARBORETUM NURSING HOME.,13/11/2017,"2,080.00",73373-RESIDENTIAL & NURSING CARE PLACEMENTS,OP PACKAGE/PLACEMENT COSTS,Third Party Payments,Revenue
Walsall Council,http://opendatacommunities.org/id/metropolitan-district-council/walsall,WC86-359,30/11/2017,Adult Social Care,ARBORETUM NURSING HOME.,20/11/2017,"2,100.00",73373-RESIDENTIAL & NURSING CARE PLACEMENTS,OP PACKAGE/PLACEMENT COSTS,Third Party Payments,Revenue
Walsall Council,http://opendatacommunities.org/id/metropolitan-district-council/walsall,WC86-360,30/11/2017,Adult Social Care,ARBORETUM NURSING HOME.,07/11/2017,"14,900.00",73019-PSE'S-PRIV CONTRACTOR FEES,TRANSITIONAL CARE SUPPORT TEAM,Third Party Payments,Revenue
Walsall Council,http://opendatacommunities.org/id/metropolitan-district-council/walsall,WC86-361,30/11/2017,Adult Social Care,ARBORETUM NURSING HOME.,27/11/2017,"14,900.00",73019-PSE'S-PRIV CONTRACTOR FEES,TRANSITIONAL CARE SUPPORT TEAM,Third Party Payments,Revenue
Walsall Council,http://opendatacommunities.org/id/metropolitan-district-council/walsall,WC86-362,30/11/2017,Childrens,ARCHWAY ACADEMY,08/11/2017,"2,013.33",66502-TOP UP FUNDING -GRANTS TO SCHOOLS,INDEPENDENT PROVIDERS - SPECIAL & AP,Third Party Payments,Revenue
Walsall Council,http://opendatacommunities.org/id/metropolitan-district-council/walsall,WC86-363,30/11/2017,Economy & Environment,ARCHWAY TCS LTD,21/11/2017,707.50,60537-VEHICLE WASH PLANT-MATERIALS,DEPOT,Supplies & Services,Revenue
Walsall Council,http://opendatacommunities.org/id/metropolitan-district-council/walsall,WC86-364,30/11/2017,Economy & Environment,ARCHWAY TCS LTD,29/11/2017,707.50,60537-VEHICLE WASH PLANT-MATERIALS,DEPOT,Supplies & Services,Revenue
Walsall Council,http://opendatacommunities.org/id/metropolitan-district-council/walsall,WC86-365,30/11/2017,Economy & Environment,ARCO GROUP,23/11/2017,226.80,60514-MATERIALS TO STORES,FLEET PARTS STOCK ACCOUNT,Supplies & Services,Revenue
Walsall Council,http://opendatacommunities.org/id/metropolitan-district-council/walsall,WC86-366,30/11/2017,Adult Social Care,ARK HOME HEALTHCARE LIMITED,08/11/2017,"35,756.88",73372-DOMICILIARY CARE,OP PACKAGE/PLACEMENT COSTS,Third Party Payments,Revenue
Walsall Council,http://opendatacommunities.org/id/metropolitan-district-council/walsall,WC86-367,30/11/2017,Childrens,ARNFIELD CARE LIMITED,06/11/2017,"15,616.00",74036-EXTERNAL RESIDENTIAL CARE-OTH AGENCY PROVISION,INDEPENDENT RESIDENTIAL HOMES,Third Party Payments,Revenue
Walsall Council,http://opendatacommunities.org/id/metropolitan-district-council/walsall,WC86-368,30/11/2017,Economy & Environment,ART REVIEW,13/11/2017,600.00,68001-PUBLICITY & ADVERTISING (NOT STAFF ADVERTISING),PHOTOGRAPHY EXHIBITION NO. 2 WSA,Supplies & Services,Revenue
Walsall Council,http://opendatacommunities.org/id/metropolitan-district-council/walsall,WC86-369,30/11/2017,Childrens,ARTHUR M GRIFFITHS & SON LTD,14/11/2017,"177,775.09",01006-SITE WORKS MAIN CONTRACTORS,CFR 929 FIBBERSLEY PRIMARY SIGNIFICANT ENLARGEMENT,Capital,Capital
Walsall Council,http://opendatacommunities.org/id/metropolitan-district-council/walsall,WC86-370,30/11/2017,Economy & Environment,AS RUBBER & PLASTICS LIMITED,08/11/2017,550.75,60514-MATERIALS TO STORES,FLEET PARTS STOCK ACCOUNT,Supplies & Services,Revenue
Walsall Council,http://opendatacommunities.org/id/metropolitan-district-council/walsall,WC86-371,30/11/2017,Adult Social Care,ASH GRANGE CARE HOME,01/11/2017,"1,562.78",73373-RESIDENTIAL & NURSING CARE PLACEMENTS,OP PACKAGE/PLACEMENT COSTS,Third Party Payments,Revenue
Walsall Council,http://opendatacommunities.org/id/metropolitan-district-council/walsall,WC86-372,30/11/2017,Adult Social Care,ASH GRANGE CARE HOME,20/11/2017,"1,656.00",73373-RESIDENTIAL & NURSING CARE PLACEMENTS,OP PACKAGE/PLACEMENT COSTS,Third Party Payments,Revenue
Walsall Council,http://opendatacommunities.org/id/metropolitan-district-council/walsall,WC86-373,30/11/2017,Adult Social Care,ASH GRANGE CARE HOME,20/11/2017,"1,656.00",73373-RESIDENTIAL & NURSING CARE PLACEMENTS,OP PACKAGE/PLACEMENT COSTS,Third Party Payments,Revenue
Walsall Council,http://opendatacommunities.org/id/metropolitan-district-council/walsall,WC86-374,30/11/2017,Adult Social Care,ASH GRANGE CARE HOME,20/11/2017,"1,965.15",73373-RESIDENTIAL & NURSING CARE PLACEMENTS,OP PACKAGE/PLACEMENT COSTS,Third Party Payments,Revenue
Walsall Council,http://opendatacommunities.org/id/metropolitan-district-council/walsall,WC86-375,30/11/2017,Adult Social Care,ASH GRANGE CARE HOME,01/11/2017,"2,000.00",73373-RESIDENTIAL & NURSING CARE PLACEMENTS,OP PACKAGE/PLACEMENT COSTS,Third Party Payments,Revenue
Walsall Council,http://opendatacommunities.org/id/metropolitan-district-council/walsall,WC86-376,30/11/2017,Adult Social Care,ASH GRANGE CARE HOME,06/11/2017,"2,000.00",73373-RESIDENTIAL & NURSING CARE PLACEMENTS,MH COMMISSIONING,Third Party Payments,Revenue
Walsall Council,http://opendatacommunities.org/id/metropolitan-district-council/walsall,WC86-377,30/11/2017,Adult Social Care,ASH GRANGE CARE HOME,06/11/2017,"2,000.00",73373-RESIDENTIAL & NURSING CARE PLACEMENTS,OP PACKAGE/PLACEMENT COSTS,Third Party Payments,Revenue
Walsall Council,http://opendatacommunities.org/id/metropolitan-district-council/walsall,WC86-378,30/11/2017,Adult Social Care,ASH GRANGE CARE HOME,06/11/2017,"2,000.00",73373-RESIDENTIAL & NURSING CARE PLACEMENTS,OP PACKAGE/PLACEMENT COSTS,Third Party Payments,Revenue
Walsall Council,http://opendatacommunities.org/id/metropolitan-district-council/walsall,WC86-379,30/11/2017,Adult Social Care,ASH GRANGE CARE HOME,06/11/2017,"2,000.00",73373-RESIDENTIAL & NURSING CARE PLACEMENTS,OP PACKAGE/PLACEMENT COSTS,Third Party Payments,Revenue
Walsall Council,http://opendatacommunities.org/id/metropolitan-district-council/walsall,WC86-380,30/11/2017,Adult Social Care,ASH GRANGE CARE HOME,06/11/2017,"2,000.00",73373-RESIDENTIAL & NURSING CARE PLACEMENTS,OP PACKAGE/PLACEMENT COSTS,Third Party Payments,Revenue
Walsall Council,http://opendatacommunities.org/id/metropolitan-district-council/walsall,WC86-381,30/11/2017,Adult Social Care,ASH GRANGE CARE HOME,06/11/2017,"2,000.00",73373-RESIDENTIAL & NURSING CARE PLACEMENTS,OP PACKAGE/PLACEMENT COSTS,Third Party Payments,Revenue
Walsall Council,http://opendatacommunities.org/id/metropolitan-district-council/walsall,WC86-382,30/11/2017,Adult Social Care,ASH GRANGE CARE HOME,06/11/2017,"2,000.00",73373-RESIDENTIAL & NURSING CARE PLACEMENTS,OP PACKAGE/PLACEMENT COSTS,Third Party Payments,Revenue
Walsall Council,http://opendatacommunities.org/id/metropolitan-district-council/walsall,WC86-383,30/11/2017,Adult Social Care,ASH GRANGE CARE HOME,06/11/2017,"2,000.00",73373-RESIDENTIAL & NURSING CARE PLACEMENTS,OP PACKAGE/PLACEMENT COSTS,Third Party Payments,Revenue
Walsall Council,http://opendatacommunities.org/id/metropolitan-district-council/walsall,WC86-384,30/11/2017,Adult Social Care,ASH GRANGE CARE HOME,06/11/2017,"2,000.00",73373-RESIDENTIAL & NURSING CARE PLACEMENTS,OP PACKAGE/PLACEMENT COSTS,Third Party Payments,Revenue
Walsall Council,http://opendatacommunities.org/id/metropolitan-district-council/walsall,WC86-385,30/11/2017,Adult Social Care,ASH GRANGE CARE HOME,06/11/2017,"2,000.00",73373-RESIDENTIAL & NURSING CARE PLACEMENTS,OP PACKAGE/PLACEMENT COSTS,Third Party Payments,Revenue
Walsall Council,http://opendatacommunities.org/id/metropolitan-district-council/walsall,WC86-386,30/11/2017,Adult Social Care,ASH GRANGE CARE HOME,13/11/2017,"2,000.00",73373-RESIDENTIAL & NURSING CARE PLACEMENTS,OP PACKAGE/PLACEMENT COSTS,Third Party Payments,Revenue
Walsall Council,http://opendatacommunities.org/id/metropolitan-district-council/walsall,WC86-387,30/11/2017,Adult Social Care,ASH GRANGE CARE HOME,06/11/2017,"2,200.00",73373-RESIDENTIAL & NURSING CARE PLACEMENTS,OP PACKAGE/PLACEMENT COSTS,Third Party Payments,Revenue
Walsall Council,http://opendatacommunities.org/id/metropolitan-district-council/walsall,WC86-388,30/11/2017,Adult Social Care,ASH GRANGE CARE HOME,06/11/2017,"2,200.00",73373-RESIDENTIAL & NURSING CARE PLACEMENTS,OP PACKAGE/PLACEMENT COSTS,Third Party Payments,Revenue
Walsall Council,http://opendatacommunities.org/id/metropolitan-district-council/walsall,WC86-389,30/11/2017,Adult Social Care,ASH GRANGE CARE HOME,06/11/2017,"2,280.00",73373-RESIDENTIAL & NURSING CARE PLACEMENTS,OP PACKAGE/PLACEMENT COSTS,Third Party Payments,Revenue
Walsall Council,http://opendatacommunities.org/id/metropolitan-district-council/walsall,WC86-390,30/11/2017,Adult Social Care,ASH GRANGE CARE HOME,13/11/2017,"2,495.72",73373-RESIDENTIAL & NURSING CARE PLACEMENTS,PD PACKAGE/PLACEMENT COSTS,Third Party Payments,Revenue
Walsall Council,http://opendatacommunities.org/id/metropolitan-district-council/walsall,WC86-391,30/11/2017,Adult Social Care,ASH GRANGE CARE HOME,06/11/2017,"2,745.71",73373-RESIDENTIAL & NURSING CARE PLACEMENTS,OP PACKAGE/PLACEMENT COSTS,Third Party Payments,Revenue
Walsall Council,http://opendatacommunities.org/id/metropolitan-district-council/walsall,WC86-392,30/11/2017,Adult Social Care,ASHBOURNE LODGE,13/11/2017,"2,103.86",73373-RESIDENTIAL & NURSING CARE PLACEMENTS,OP PACKAGE/PLACEMENT COSTS,Third Party Payments,Revenue
Walsall Council,http://opendatacommunities.org/id/metropolitan-district-council/walsall,WC86-393,30/11/2017,Adult Social Care,REDACTED,03/11/2017,422.00,76422-DIRECT PAYMENTS TO SOCIAL SERVICES CLIENTS,LD PACKAGE/PLACEMENT COSTS,Transfer Payments,Revenue
Walsall Council,http://opendatacommunities.org/id/metropolitan-district-council/walsall,WC86-394,30/11/2017,Childrens,ASKELITE LTD,22/11/2017,"5,280.00",01044-PURCHASE OF FURNITURE & EQUIPMENT,WATLING STREET PRIMARY DEV FORMULA CAPITAL,Capital,Capital
Walsall Council,http://opendatacommunities.org/id/metropolitan-district-council/walsall,WC86-395,30/11/2017,Childrens,ASKELITE LTD,21/11/2017,"14,624.00",01044-PURCHASE OF FURNITURE & EQUIPMENT,WALSALL WOOD SCHOOL DEV FORMULA CAPITAL,Capital,Capital
Walsall Council,http://opendatacommunities.org/id/metropolitan-district-council/walsall,WC86-396,30/11/2017,Economy & Environment,ASKEWS AND HOLTS LIBRARY SERVICES LTD,20/11/2017,303.56,60501-LIBRARY BOOKS,LIBRARY STOCK AND PERFORMANCE,Supplies & Services,Revenue
Walsall Council,http://opendatacommunities.org/id/metropolitan-district-council/walsall,WC86-397,30/11/2017,Economy & Environment,ASKEWS AND HOLTS LIBRARY SERVICES LTD,01/11/2017,430.92,60501-LIBRARY BOOKS,LIBRARY STOCK AND PERFORMANCE,Supplies & Services,Revenue
Walsall Council,http://opendatacommunities.org/id/metropolitan-district-council/walsall,WC86-398,30/11/2017,Adult Social Care,REDACTED,03/11/2017,756.00,76422-DIRECT PAYMENTS TO SOCIAL SERVICES CLIENTS,OP PACKAGE/PLACEMENT COSTS,Transfer Payments,Revenue
Walsall Council,http://opendatacommunities.org/id/metropolitan-district-council/walsall,WC86-399,30/11/2017,Childrens,ATG CONTRACT SERVICES LIMITED,07/11/2017,"4,405.38",52000-WITH DRIVER-HIRE OF VEHICLES,SCHOOL TRANSPORT,Transport,Revenue
Walsall Council,http://opendatacommunities.org/id/metropolitan-district-council/walsall,WC86-400,30/11/2017,Childrens,ATG CONTRACT SERVICES LIMITED,07/11/2017,"10,865.55",52000-WITH DRIVER-HIRE OF VEHICLES,SCHOOL TRANSPORT,Transport,Revenue
Walsall Council,http://opendatacommunities.org/id/metropolitan-district-council/walsall,WC86-401,30/11/2017,Economy & Environment,ATHWAL NEWS LTD,17/11/2017,269.60,60501-LIBRARY BOOKS,LIBRARY STOCK AND PERFORMANCE,Supplies & Services,Revenue
Walsall Council,http://opendatacommunities.org/id/metropolitan-district-council/walsall,WC86-402,30/11/2017,Economy & Environment,ATHWAL NEWS LTD,01/11/2017,284.01,60501-LIBRARY BOOKS,LIBRARY STOCK AND PERFORMANCE,Supplies & Services,Revenue
Walsall Council,http://opendatacommunities.org/id/metropolitan-district-council/walsall,WC86-403,30/11/2017,Economy & Environment,AUCTUS TRAINING SOLUTIONS,16/11/2017,"1,100.00",63000-PROFESSIONAL FEES AND SERVICES,YEI (IMPACT) PROGRAMME,Supplies & Services,Revenue
Walsall Council,http://opendatacommunities.org/id/metropolitan-district-council/walsall,WC86-404,30/11/2017,Economy & Environment,AUCTUS TRAINING SOLUTIONS,16/11/2017,"1,100.00",63000-PROFESSIONAL FEES AND SERVICES,YEI ESF FUNDING,Supplies & Services,Revenue
Walsall Council,http://opendatacommunities.org/id/metropolitan-district-council/walsall,WC86-405,30/11/2017,Economy & Environment,AUCTUS TRAINING SOLUTIONS,16/11/2017,"1,100.00",63000-PROFESSIONAL FEES AND SERVICES,YEI (IMPACT) PROGRAMME,Supplies & Services,Revenue
Walsall Council,http://opendatacommunities.org/id/metropolitan-district-council/walsall,WC86-406,30/11/2017,Economy & Environment,AUCTUS TRAINING SOLUTIONS,16/11/2017,"1,100.00",63000-PROFESSIONAL FEES AND SERVICES,YEI ESF FUNDING,Supplies & Services,Revenue
Walsall Council,http://opendatacommunities.org/id/metropolitan-district-council/walsall,WC86-407,30/11/2017,Economy & Environment,AUCTUS TRAINING SOLUTIONS,24/11/2017,"1,100.00",30030-EXTERNAL TRAINING,YEI (IMPACT) PROGRAMME,Employees,Revenue
Walsall Council,http://opendatacommunities.org/id/metropolitan-district-council/walsall,WC86-408,30/11/2017,Economy & Environment,AUCTUS TRAINING SOLUTIONS,24/11/2017,"1,100.00",30030-EXTERNAL TRAINING,YEI ESF FUNDING,Employees,Revenue
Walsall Council,http://opendatacommunities.org/id/metropolitan-district-council/walsall,WC86-409,30/11/2017,Change and Governance,AURORA GRAPHICS & DISPLAYS LTD,07/11/2017,"1,200.18",62008-OUTWORK-PRINT ROOM,PRINTING SERVICES,Supplies & Services,Revenue
Walsall Council,http://opendatacommunities.org/id/metropolitan-district-council/walsall,WC86-410,30/11/2017,Adult Social Care,AUTISM WEST MIDLANDS,13/11/2017,"7,237.76",73373-RESIDENTIAL & NURSING CARE PLACEMENTS,LD PACKAGE/PLACEMENT COSTS,Third Party Payments,Revenue
Walsall Council,http://opendatacommunities.org/id/metropolitan-district-council/walsall,WC86-411,30/11/2017,Adult Social Care,AUTISM WEST MIDLANDS,13/11/2017,"7,479.02",73373-RESIDENTIAL & NURSING CARE PLACEMENTS,LD PACKAGE/PLACEMENT COSTS,Third Party Payments,Revenue
Walsall Council,http://opendatacommunities.org/id/metropolitan-district-council/walsall,WC86-412,30/11/2017,Adult Social Care,AUTISM WEST MIDLANDS,13/11/2017,"7,479.02",73373-RESIDENTIAL & NURSING CARE PLACEMENTS,LD PACKAGE/PLACEMENT COSTS,Third Party Payments,Revenue
Walsall Council,http://opendatacommunities.org/id/metropolitan-district-council/walsall,WC86-413,30/11/2017,Adult Social Care,AUTISM WEST MIDLANDS,13/11/2017,"7,479.02",73373-RESIDENTIAL & NURSING CARE PLACEMENTS,LD PACKAGE/PLACEMENT COSTS,Third Party Payments,Revenue
Walsall Council,http://opendatacommunities.org/id/metropolitan-district-council/walsall,WC86-414,30/11/2017,Adult Social Care,AUTISM WEST MIDLANDS,13/11/2017,"7,479.02",73373-RESIDENTIAL & NURSING CARE PLACEMENTS,LD PACKAGE/PLACEMENT COSTS,Third Party Payments,Revenue
Walsall Council,http://opendatacommunities.org/id/metropolitan-district-council/walsall,WC86-415,30/11/2017,Adult Social Care,AUTISM WEST MIDLANDS 001,13/11/2017,"4,999.33",73373-RESIDENTIAL & NURSING CARE PLACEMENTS,LD PACKAGE/PLACEMENT COSTS,Third Party Payments,Revenue
Walsall Council,http://opendatacommunities.org/id/metropolitan-district-council/walsall,WC86-416,30/11/2017,Adult Social Care,AUTISM WEST MIDLANDS 001,13/11/2017,"4,999.33",73373-RESIDENTIAL & NURSING CARE PLACEMENTS,LD PACKAGE/PLACEMENT COSTS,Third Party Payments,Revenue
Walsall Council,http://opendatacommunities.org/id/metropolitan-district-council/walsall,WC86-417,30/11/2017,Adult Social Care,AUTISM WEST MIDLANDS 001,13/11/2017,"4,999.33",73373-RESIDENTIAL & NURSING CARE PLACEMENTS,LD PACKAGE/PLACEMENT COSTS,Third Party Payments,Revenue
Walsall Council,http://opendatacommunities.org/id/metropolitan-district-council/walsall,WC86-418,30/11/2017,Adult Social Care,AUTISM WEST MIDLANDS 001,13/11/2017,"4,999.33",73373-RESIDENTIAL & NURSING CARE PLACEMENTS,LD PACKAGE/PLACEMENT COSTS,Third Party Payments,Revenue
Walsall Council,http://opendatacommunities.org/id/metropolitan-district-council/walsall,WC86-419,30/11/2017,Economy & Environment,AV PARTSMASTER LTD,07/11/2017,406.98,63800-COMPUTER EQUIPMENT AND SUPPLIES,LIBRARY DEVELOPMENT 1,Supplies & Services,Revenue
Walsall Council,http://opendatacommunities.org/id/metropolitan-district-council/walsall,WC86-420,30/11/2017,Adult Social Care,AVE MARIA CARE SERVICES,10/11/2017,577.92,73372-DOMICILIARY CARE,OP PACKAGE/PLACEMENT COSTS,Third Party Payments,Revenue
Walsall Council,http://opendatacommunities.org/id/metropolitan-district-council/walsall,WC86-421,30/11/2017,Adult Social Care,REDACTED,03/11/2017,989.04,76422-DIRECT PAYMENTS TO SOCIAL SERVICES CLIENTS,OP PACKAGE/PLACEMENT COSTS,Transfer Payments,Revenue
Walsall Council,http://opendatacommunities.org/id/metropolitan-district-council/walsall,WC86-422,30/11/2017,Economy & Environment,AXIELL LIMITED,27/11/2017,407.54,63000-PROFESSIONAL FEES AND SERVICES,LIBRARY STOCK AND PERFORMANCE,Supplies & Services,Revenue
Walsall Council,http://opendatacommunities.org/id/metropolitan-district-council/walsall,WC86-423,30/11/2017,Economy & Environment,AXIELL LIMITED,27/11/2017,"16,736.61",63800-COMPUTER EQUIPMENT AND SUPPLIES,NETWORK SUPPORT,Supplies & Services,Revenue
Walsall Council,http://opendatacommunities.org/id/metropolitan-district-council/walsall,WC86-424,30/11/2017,Childrens,REDACTED,03/11/2017,"1,284.00",76422-DIRECT PAYMENTS TO SOCIAL SERVICES CLIENTS,FAMILY SUPPORT - DIRECT PAYMENTS,Transfer Payments,Revenue
Walsall Council,http://opendatacommunities.org/id/metropolitan-district-council/walsall,WC86-425,30/11/2017,Adult Social Care,REDACTED,03/11/2017,"2,808.00",76422-DIRECT PAYMENTS TO SOCIAL SERVICES CLIENTS,LD PACKAGE/PLACEMENT COSTS,Transfer Payments,Revenue
Walsall Council,http://opendatacommunities.org/id/metropolitan-district-council/walsall,WC86-426,30/11/2017,Childrens,REDACTED,17/11/2017,14.85,60006-NEW-FURNITURE & EQUIPMENT,FAMILY & FRIENDS FOSTER CARE PROVISION,Supplies & Services,Revenue
Walsall Council,http://opendatacommunities.org/id/metropolitan-district-council/walsall,WC86-427,30/11/2017,Childrens,REDACTED,17/11/2017,123.22,74503-BIRTHDAY ALLOWANCE-FOSTER CARERS,FAMILY & FRIENDS FOSTER CARE PROVISION,Transfer Payments,Revenue
Walsall Council,http://opendatacommunities.org/id/metropolitan-district-council/walsall,WC86-428,30/11/2017,Childrens,REDACTED,17/11/2017,246.44,74504-HOLIDAY/CHRISTMAS ALLOWANCE-FOSTER CARERS,FAMILY & FRIENDS FOSTER CARE PROVISION,Transfer Payments,Revenue
Walsall Council,http://opendatacommunities.org/id/metropolitan-district-council/walsall,WC86-429,30/11/2017,Childrens,REDACTED,17/11/2017,554.85,74508-INTERNAL FOSTER CARERS-CARER FEES,FAMILY & FRIENDS FOSTER CARE PROVISION,Transfer Payments,Revenue
Walsall Council,http://opendatacommunities.org/id/metropolitan-district-council/walsall,WC86-430,30/11/2017,Childrens,REDACTED,17/11/2017,985.76,74501-MAINTENANCE ALLOWANCE-FOSTER CARERS,FAMILY & FRIENDS FOSTER CARE PROVISION,Transfer Payments,Revenue
Walsall Council,http://opendatacommunities.org/id/metropolitan-district-council/walsall,WC86-431,30/11/2017,Childrens,REDACTED,07/11/2017,464.00,76000-TRANSFER PAYMENTS - SOCIAL SERVICES CLIENTS,TRANSITION AND LEAVING CARE,Transfer Payments,Revenue
Walsall Council,http://opendatacommunities.org/id/metropolitan-district-council/walsall,WC86-432,30/11/2017,Childrens,REDACTED,07/11/2017,464.00,76000-TRANSFER PAYMENTS - SOCIAL SERVICES CLIENTS,TRANSITION AND LEAVING CARE,Transfer Payments,Revenue
Walsall Council,http://opendatacommunities.org/id/metropolitan-district-council/walsall,WC86-433,30/11/2017,Childrens,REDACTED,21/11/2017,464.00,76000-TRANSFER PAYMENTS - SOCIAL SERVICES CLIENTS,TRANSITION AND LEAVING CARE,Transfer Payments,Revenue
Walsall Council,http://opendatacommunities.org/id/metropolitan-district-council/walsall,WC86-434,30/11/2017,Childrens,REDACTED,21/11/2017,464.00,76000-TRANSFER PAYMENTS - SOCIAL SERVICES CLIENTS,TRANSITION AND LEAVING CARE,Transfer Payments,Revenue
Walsall Council,http://opendatacommunities.org/id/metropolitan-district-council/walsall,WC86-435,30/11/2017,Change and Governance,BABCOCK INTERNATIONAL GROUP,07/11/2017,240.00,30030-EXTERNAL TRAINING,FINANCE,Employees,Revenue
Walsall Council,http://opendatacommunities.org/id/metropolitan-district-council/walsall,WC86-436,30/11/2017,Childrens,BACHES SOLICITORS,07/11/2017,754.25,73014-LEGAL FEES-PRIV CONTRACTOR FEES,GENERAL MANAGEMENT SUPPORT (INC LEGAL),Third Party Payments,Revenue
Walsall Council,http://opendatacommunities.org/id/metropolitan-district-council/walsall,WC86-437,30/11/2017,Change and Governance,BADENOCH & CLARK 002,06/11/2017,"3,742.60",34305-AGENCY STAFF-EMPLOYEES,CORPORATE MANAGEMENT TEAM,Employees,Revenue
Walsall Council,http://opendatacommunities.org/id/metropolitan-district-council/walsall,WC86-438,30/11/2017,Change and Governance,BADENOCH & CLARK 002,17/11/2017,"3,742.60",34305-AGENCY STAFF-EMPLOYEES,CORPORATE MANAGEMENT TEAM,Employees,Revenue
Walsall Council,http://opendatacommunities.org/id/metropolitan-district-council/walsall,WC86-439,30/11/2017,Change and Governance,BADENOCH & CLARK 002,23/11/2017,"3,742.60",34305-AGENCY STAFF-EMPLOYEES,CORPORATE MANAGEMENT TEAM,Employees,Revenue
Walsall Council,http://opendatacommunities.org/id/metropolitan-district-council/walsall,WC86-440,30/11/2017,Change and Governance,BADENOCH & CLARK 002,17/11/2017,"4,678.25",34305-AGENCY STAFF-EMPLOYEES,CORPORATE MANAGEMENT TEAM,Employees,Revenue
Walsall Council,http://opendatacommunities.org/id/metropolitan-district-council/walsall,WC86-441,30/11/2017,Economy & Environment,BAHIA PROPERTIES,10/11/2017,"1,250.00",43000-RENTS,WILLENHALL MARKET,Premises,Revenue
Walsall Council,http://opendatacommunities.org/id/metropolitan-district-council/walsall,WC86-442,30/11/2017,Economy & Environment,BAKER HALL PARTNERSHIP,13/11/2017,506.25,63000-PROFESSIONAL FEES AND SERVICES,BUILDING CONTROL REVENUE FUNDED,Supplies & Services,Revenue
Walsall Council,http://opendatacommunities.org/id/metropolitan-district-council/walsall,WC86-443,30/11/2017,Adult Social Care,REDACTED,03/11/2017,480.00,76422-DIRECT PAYMENTS TO SOCIAL SERVICES CLIENTS,MH COMMISSIONING,Transfer Payments,Revenue
Walsall Council,http://opendatacommunities.org/id/metropolitan-district-council/walsall,WC86-444,30/11/2017,Adult Social Care,REDACTED,03/11/2017,"3,258.96",76422-DIRECT PAYMENTS TO SOCIAL SERVICES CLIENTS,LD PACKAGE/PLACEMENT COSTS,Transfer Payments,Revenue
Walsall Council,http://opendatacommunities.org/id/metropolitan-district-council/walsall,WC86-445,30/11/2017,Adult Social Care,REDACTED,03/11/2017,800.00,76422-DIRECT PAYMENTS TO SOCIAL SERVICES CLIENTS,OP PACKAGE/PLACEMENT COSTS,Transfer Payments,Revenue
Walsall Council,http://opendatacommunities.org/id/metropolitan-district-council/walsall,WC86-446,30/11/2017,Adult Social Care,REDACTED,03/11/2017,"1,582.86",76422-DIRECT PAYMENTS TO SOCIAL SERVICES CLIENTS,OP PACKAGE/PLACEMENT COSTS,Transfer Payments,Revenue
Walsall Council,http://opendatacommunities.org/id/metropolitan-district-council/walsall,WC86-447,30/11/2017,Childrens,REDACTED,17/11/2017,9.24,60006-NEW-FURNITURE & EQUIPMENT,FAMILY & FRIENDS FOSTER CARE PROVISION,Supplies & Services,Revenue
Walsall Council,http://opendatacommunities.org/id/metropolitan-district-council/walsall,WC86-448,30/11/2017,Childrens,REDACTED,17/11/2017,142.86,74504-HOLIDAY/CHRISTMAS ALLOWANCE-FOSTER CARERS,FAMILY & FRIENDS FOSTER CARE PROVISION,Transfer Payments,Revenue
Walsall Council,http://opendatacommunities.org/id/metropolitan-district-council/walsall,WC86-449,30/11/2017,Childrens,REDACTED,17/11/2017,345.24,74508-INTERNAL FOSTER CARERS-CARER FEES,FAMILY & FRIENDS FOSTER CARE PROVISION,Transfer Payments,Revenue
Walsall Council,http://opendatacommunities.org/id/metropolitan-district-council/walsall,WC86-450,30/11/2017,Childrens,REDACTED,17/11/2017,571.44,74501-MAINTENANCE ALLOWANCE-FOSTER CARERS,FAMILY & FRIENDS FOSTER CARE PROVISION,Transfer Payments,Revenue
Walsall Council,http://opendatacommunities.org/id/metropolitan-district-council/walsall,WC86-451,30/11/2017,Adult Social Care,REDACTED,03/11/2017,849.64,76422-DIRECT PAYMENTS TO SOCIAL SERVICES CLIENTS,OP PACKAGE/PLACEMENT COSTS,Transfer Payments,Revenue
Walsall Council,http://opendatacommunities.org/id/metropolitan-district-council/walsall,WC86-452,30/11/2017,Adult Social Care,REDACTED,03/11/2017,"1,052.54",76422-DIRECT PAYMENTS TO SOCIAL SERVICES CLIENTS,OP PACKAGE/PLACEMENT COSTS,Transfer Payments,Revenue
Walsall Council,http://opendatacommunities.org/id/metropolitan-district-council/walsall,WC86-453,30/11/2017,Childrens,BARNARDOS SERVICES LTD,06/11/2017,"3,116.40",74037-INDEPENDENT FOSTER CARE-OTH AGENCY PROVISION,EXTERNAL FOSTER CARE PROVISION,Third Party Payments,Revenue
Walsall Council,http://opendatacommunities.org/id/metropolitan-district-council/walsall,WC86-454,30/11/2017,Childrens,BARNARDOS SERVICES LTD,09/11/2017,"3,300.00",69400-REFERENCE BOOKS,PARENTING TEAM,Supplies & Services,Revenue
Walsall Council,http://opendatacommunities.org/id/metropolitan-district-council/walsall,WC86-455,30/11/2017,Change and Governance,BARNBOROUGH LTD,17/11/2017,"1,614.33",01044-PURCHASE OF FURNITURE & EQUIPMENT,CFR 1190 SCHOOLS PROJECT,Capital,Capital
Walsall Council,http://opendatacommunities.org/id/metropolitan-district-council/walsall,WC86-456,30/11/2017,Economy & Environment,BASEMAP LTD,28/11/2017,"1,522.50",01025-SOFTWARE,CFR 1198 WESTERN OPPORTUNITY AREA 2 WALSALL TO DARLASTON,Capital,Capital
Walsall Council,http://opendatacommunities.org/id/metropolitan-district-council/walsall,WC86-457,30/11/2017,Adult Social Care,REDACTED,03/11/2017,490.40,76422-DIRECT PAYMENTS TO SOCIAL SERVICES CLIENTS,OP PACKAGE/PLACEMENT COSTS,Transfer Payments,Revenue
Walsall Council,http://opendatacommunities.org/id/metropolitan-district-council/walsall,WC86-458,30/11/2017,Economy & Environment,BAT FABRICATIONS LTD,06/11/2017,"6,835.00",73002-SECURITY-PRIV CONTRACTOR FEES,DEPOT,Third Party Payments,Revenue
Walsall Council,http://opendatacommunities.org/id/metropolitan-district-council/walsall,WC86-459,30/11/2017,Economy & Environment,BAY MEDIA LIMITED,29/11/2017,895.50,63000-PROFESSIONAL FEES AND SERVICES,YEI (IMPACT) PROGRAMME,Supplies & Services,Revenue
Walsall Council,http://opendatacommunities.org/id/metropolitan-district-council/walsall,WC86-460,30/11/2017,Economy & Environment,BAY MEDIA LIMITED,29/11/2017,895.50,63000-PROFESSIONAL FEES AND SERVICES,YEI ESF FUNDING,Supplies & Services,Revenue
Walsall Council,http://opendatacommunities.org/id/metropolitan-district-council/walsall,WC86-461,30/11/2017,Childrens,BEACON PRIMARY,17/11/2017,"1,764.00",77000-TRANSFER PAYMENTS-MANDATORY AWARDS,WEST LOCALITY - SCHOOL READY,Transfer Payments,Revenue
Walsall Council,http://opendatacommunities.org/id/metropolitan-district-council/walsall,WC86-462,30/11/2017,Childrens,BEADEN POWERLEC LIMITED,15/11/2017,"6,145.00",01006-SITE WORKS MAIN CONTRACTORS,CFR 1137 KINGS HILL PRIMARY EXPANSION,Capital,Capital
Walsall Council,http://opendatacommunities.org/id/metropolitan-district-council/walsall,WC86-463,30/11/2017,Childrens,REDACTED,06/11/2017,9.24,60006-NEW-FURNITURE & EQUIPMENT,INTERNAL FOSTER CARE PROVISION,Supplies & Services,Revenue
Walsall Council,http://opendatacommunities.org/id/metropolitan-district-council/walsall,WC86-464,30/11/2017,Childrens,REDACTED,06/11/2017,530.96,74508-INTERNAL FOSTER CARERS-CARER FEES,INTERNAL FOSTER CARE PROVISION,Transfer Payments,Revenue
Walsall Council,http://opendatacommunities.org/id/metropolitan-district-council/walsall,WC86-465,30/11/2017,Childrens,REDACTED,06/11/2017,650.92,74501-MAINTENANCE ALLOWANCE-FOSTER CARERS,INTERNAL FOSTER CARE PROVISION,Transfer Payments,Revenue
Walsall Council,http://opendatacommunities.org/id/metropolitan-district-council/walsall,WC86-466,30/11/2017,Economy & Environment,BEAVER 84 LTD,22/11/2017,476.25,62523-EVENTS,ARBORETUM,Supplies & Services,Revenue
Walsall Council,http://opendatacommunities.org/id/metropolitan-district-council/walsall,WC86-467,30/11/2017,Adult Social Care,BELVIDERE COURT,13/11/2017,"2,142.86",73373-RESIDENTIAL & NURSING CARE PLACEMENTS,MH COMMISSIONING,Third Party Payments,Revenue
Walsall Council,http://opendatacommunities.org/id/metropolitan-district-council/walsall,WC86-468,30/11/2017,Adult Social Care,BELVIDERE COURT,13/11/2017,"2,357.14",73373-RESIDENTIAL & NURSING CARE PLACEMENTS,OP PACKAGE/PLACEMENT COSTS,Third Party Payments,Revenue
Walsall Council,http://opendatacommunities.org/id/metropolitan-district-council/walsall,WC86-469,30/11/2017,Adult Social Care,BELVIDERE COURT,13/11/2017,"3,642.86",73373-RESIDENTIAL & NURSING CARE PLACEMENTS,MH COMMISSIONING,Third Party Payments,Revenue
Walsall Council,http://opendatacommunities.org/id/metropolitan-district-council/walsall,WC86-470,30/11/2017,Adult Social Care,BELVIDERE COURT,13/11/2017,"6,364.29",73373-RESIDENTIAL & NURSING CARE PLACEMENTS,OP PACKAGE/PLACEMENT COSTS,Third Party Payments,Revenue
Walsall Council,http://opendatacommunities.org/id/metropolitan-district-council/walsall,WC86-471,30/11/2017,Adult Social Care,REDACTED,03/11/2017,"2,310.00",76422-DIRECT PAYMENTS TO SOCIAL SERVICES CLIENTS,LD PACKAGE/PLACEMENT COSTS,Transfer Payments,Revenue
Walsall Council,http://opendatacommunities.org/id/metropolitan-district-council/walsall,WC86-472,30/11/2017,Childrens,BENJAMIN UK LTD,06/11/2017,"17,520.00",74036-EXTERNAL RESIDENTIAL CARE-OTH AGENCY PROVISION,INDEPENDENT RESIDENTIAL HOMES,Third Party Payments,Revenue
Walsall Council,http://opendatacommunities.org/id/metropolitan-district-council/walsall,WC86-473,30/11/2017,Childrens,BENTLEY CHILD CARE,09/11/2017,340.00,63120-CRECHE FACILITIES-SERVICES-FEES,FAMILY PLACEMENTS,Supplies & Services,Revenue
Walsall Council,http://opendatacommunities.org/id/metropolitan-district-council/walsall,WC86-474,30/11/2017,Adult Social Care,BENTLEY COURT PRIORY,01/11/2017,"1,080.75",73373-RESIDENTIAL & NURSING CARE PLACEMENTS,OP PACKAGE/PLACEMENT COSTS,Third Party Payments,Revenue
Walsall Council,http://opendatacommunities.org/id/metropolitan-district-council/walsall,WC86-475,30/11/2017,Adult Social Care,BENTLEY COURT PRIORY,28/11/2017,"2,041.20",73373-RESIDENTIAL & NURSING CARE PLACEMENTS,OP PACKAGE/PLACEMENT COSTS,Third Party Payments,Revenue
Walsall Council,http://opendatacommunities.org/id/metropolitan-district-council/walsall,WC86-476,30/11/2017,Adult Social Care,BENTLEY COURT PRIORY,01/11/2017,"2,109.24",73373-RESIDENTIAL & NURSING CARE PLACEMENTS,OP PACKAGE/PLACEMENT COSTS,Third Party Payments,Revenue
Walsall Council,http://opendatacommunities.org/id/metropolitan-district-council/walsall,WC86-477,30/11/2017,Adult Social Care,BENTLEY COURT PRIORY,28/11/2017,"2,357.14",73373-RESIDENTIAL & NURSING CARE PLACEMENTS,OP PACKAGE/PLACEMENT COSTS,Third Party Payments,Revenue
Walsall Council,http://opendatacommunities.org/id/metropolitan-district-council/walsall,WC86-478,30/11/2017,Adult Social Care,BENTLEY COURT PRIORY,28/11/2017,"2,357.14",73373-RESIDENTIAL & NURSING CARE PLACEMENTS,OP PACKAGE/PLACEMENT COSTS,Third Party Payments,Revenue
Walsall Council,http://opendatacommunities.org/id/metropolitan-district-council/walsall,WC86-479,30/11/2017,Adult Social Care,BENTLEY COURT PRIORY,28/11/2017,"2,357.15",73373-RESIDENTIAL & NURSING CARE PLACEMENTS,OP PACKAGE/PLACEMENT COSTS,Third Party Payments,Revenue
Walsall Council,http://opendatacommunities.org/id/metropolitan-district-council/walsall,WC86-480,30/11/2017,Adult Social Care,BENTLEY COURT PRIORY,01/11/2017,"2,435.71",73373-RESIDENTIAL & NURSING CARE PLACEMENTS,OP PACKAGE/PLACEMENT COSTS,Third Party Payments,Revenue
Walsall Council,http://opendatacommunities.org/id/metropolitan-district-council/walsall,WC86-481,30/11/2017,Adult Social Care,BENTLEY COURT PRIORY,01/11/2017,"2,435.72",73373-RESIDENTIAL & NURSING CARE PLACEMENTS,OP PACKAGE/PLACEMENT COSTS,Third Party Payments,Revenue
Walsall Council,http://opendatacommunities.org/id/metropolitan-district-council/walsall,WC86-482,30/11/2017,Adult Social Care,BENTLEY COURT PRIORY,01/11/2017,"2,435.72",73373-RESIDENTIAL & NURSING CARE PLACEMENTS,OP PACKAGE/PLACEMENT COSTS,Third Party Payments,Revenue
Walsall Council,http://opendatacommunities.org/id/metropolitan-district-council/walsall,WC86-483,30/11/2017,Childrens,BERRY GIFFORD LTD,15/11/2017,850.00,76010-ACCOMMODATION AND RELATED COSTS-ASSISTANCE TO S/S CLIENTS,TRANSITION AND LEAVING CARE,Transfer Payments,Revenue
Walsall Council,http://opendatacommunities.org/id/metropolitan-district-council/walsall,WC86-484,30/11/2017,Childrens,BERRY GIFFORD LTD,15/11/2017,"2,721.40",76010-ACCOMMODATION AND RELATED COSTS-ASSISTANCE TO S/S CLIENTS,TRANSITION AND LEAVING CARE,Transfer Payments,Revenue
Walsall Council,http://opendatacommunities.org/id/metropolitan-district-council/walsall,WC86-485,30/11/2017,Childrens,BERRY GIFFORD LTD,13/11/2017,"6,355.00",76010-ACCOMMODATION AND RELATED COSTS-ASSISTANCE TO S/S CLIENTS,TRANSITION AND LEAVING CARE,Transfer Payments,Revenue
Walsall Council,http://opendatacommunities.org/id/metropolitan-district-council/walsall,WC86-486,30/11/2017,Childrens,BERRY GIFFORD LTD,06/11/2017,"7,767.60",76010-ACCOMMODATION AND RELATED COSTS-ASSISTANCE TO S/S CLIENTS,TRANSITION AND LEAVING CARE,Transfer Payments,Revenue
Walsall Council,http://opendatacommunities.org/id/metropolitan-district-council/walsall,WC86-487,30/11/2017,Childrens,BERRY GIFFORD LTD,08/11/2017,"8,436.34",76010-ACCOMMODATION AND RELATED COSTS-ASSISTANCE TO S/S CLIENTS,TRANSITION AND LEAVING CARE,Transfer Payments,Revenue
Walsall Council,http://opendatacommunities.org/id/metropolitan-district-council/walsall,WC86-488,30/11/2017,Childrens,BERRY GIFFORD LTD,08/11/2017,"11,690.10",76010-ACCOMMODATION AND RELATED COSTS-ASSISTANCE TO S/S CLIENTS,TRANSITION AND LEAVING CARE,Transfer Payments,Revenue
Walsall Council,http://opendatacommunities.org/id/metropolitan-district-council/walsall,WC86-489,30/11/2017,Holding Accounts,BERRYMANS LACE MAWER LLP,16/11/2017,"1,299.50",67001-MISC INSURANCES - PAYMENT OF CLAIMS,PUBLIC LIABILITY,Supplies & Services,Revenue
Walsall Council,http://opendatacommunities.org/id/metropolitan-district-council/walsall,WC86-490,30/11/2017,Holding Accounts,BERRYMANS LACE MAWER LLP,16/11/2017,"1,610.00",67001-MISC INSURANCES - PAYMENT OF CLAIMS,PUBLIC LIABILITY,Supplies & Services,Revenue
Walsall Council,http://opendatacommunities.org/id/metropolitan-district-council/walsall,WC86-491,30/11/2017,Holding Accounts,BERRYMANS LACE MAWER LLP,16/11/2017,"2,599.00",67001-MISC INSURANCES - PAYMENT OF CLAIMS,PUBLIC LIABILITY,Supplies & Services,Revenue
Walsall Council,http://opendatacommunities.org/id/metropolitan-district-council/walsall,WC86-492,30/11/2017,Adult Social Care,REDACTED,03/11/2017,"1,007.84",76422-DIRECT PAYMENTS TO SOCIAL SERVICES CLIENTS,OP PACKAGE/PLACEMENT COSTS,Transfer Payments,Revenue
Walsall Council,http://opendatacommunities.org/id/metropolitan-district-council/walsall,WC86-493,30/11/2017,Adult Social Care,REDACTED,03/11/2017,"1,706.00",76422-DIRECT PAYMENTS TO SOCIAL SERVICES CLIENTS,OP PACKAGE/PLACEMENT COSTS,Transfer Payments,Revenue
Walsall Council,http://opendatacommunities.org/id/metropolitan-district-council/walsall,WC86-494,30/11/2017,Childrens,REDACTED,06/11/2017,9.24,60006-NEW-FURNITURE & EQUIPMENT,INTERNAL FOSTER CARE PROVISION,Supplies & Services,Revenue
Walsall Council,http://opendatacommunities.org/id/metropolitan-district-council/walsall,WC86-495,30/11/2017,Childrens,REDACTED,06/11/2017,285.72,74501-MAINTENANCE ALLOWANCE-FOSTER CARERS,INTERNAL FOSTER CARE PROVISION,Transfer Payments,Revenue
Walsall Council,http://opendatacommunities.org/id/metropolitan-district-council/walsall,WC86-496,30/11/2017,Childrens,REDACTED,06/11/2017,"1,436.08",74508-INTERNAL FOSTER CARERS-CARER FEES,INTERNAL FOSTER CARE PROVISION,Transfer Payments,Revenue
Walsall Council,http://opendatacommunities.org/id/metropolitan-district-council/walsall,WC86-497,30/11/2017,Adult Social Care,REDACTED,03/11/2017,968.00,76422-DIRECT PAYMENTS TO SOCIAL SERVICES CLIENTS,OP PACKAGE/PLACEMENT COSTS,Transfer Payments,Revenue
Walsall Council,http://opendatacommunities.org/id/metropolitan-district-council/walsall,WC86-498,30/11/2017,Adult Social Care,BESCOT LODGE RESIDENTIAL CARE HOME,28/11/2017,257.14,73373-RESIDENTIAL & NURSING CARE PLACEMENTS,LD PACKAGE/PLACEMENT COSTS,Third Party Payments,Revenue
Walsall Council,http://opendatacommunities.org/id/metropolitan-district-council/walsall,WC86-499,30/11/2017,Adult Social Care,BESCOT LODGE RESIDENTIAL CARE HOME,01/11/2017,"1,285.71",73373-RESIDENTIAL & NURSING CARE PLACEMENTS,OP PACKAGE/PLACEMENT COSTS,Third Party Payments,Revenue
Walsall Council,http://opendatacommunities.org/id/metropolitan-district-council/walsall,WC86-500,30/11/2017,Adult Social Care,BESCOT LODGE RESIDENTIAL CARE HOME,01/11/2017,"1,478.57",73373-RESIDENTIAL & NURSING CARE PLACEMENTS,OP PACKAGE/PLACEMENT COSTS,Third Party Payments,Revenue
Walsall Council,http://opendatacommunities.org/id/metropolitan-district-council/walsall,WC86-501,30/11/2017,Adult Social Care,BESCOT LODGE RESIDENTIAL CARE HOME,28/11/2017,"1,656.00",73373-RESIDENTIAL & NURSING CARE PLACEMENTS,LD PACKAGE/PLACEMENT COSTS,Third Party Payments,Revenue
Walsall Council,http://opendatacommunities.org/id/metropolitan-district-council/walsall,WC86-502,30/11/2017,Adult Social Care,BESCOT LODGE RESIDENTIAL CARE HOME,28/11/2017,"1,774.29",73373-RESIDENTIAL & NURSING CARE PLACEMENTS,OP PACKAGE/PLACEMENT COSTS,Third Party Payments,Revenue
Walsall Council,http://opendatacommunities.org/id/metropolitan-district-council/walsall,WC86-503,30/11/2017,Adult Social Care,BESCOT LODGE RESIDENTIAL CARE HOME,28/11/2017,"1,774.29",73373-RESIDENTIAL & NURSING CARE PLACEMENTS,LD PACKAGE/PLACEMENT COSTS,Third Party Payments,Revenue
Walsall Council,http://opendatacommunities.org/id/metropolitan-district-council/walsall,WC86-504,30/11/2017,Adult Social Care,BESCOT LODGE RESIDENTIAL CARE HOME,28/11/2017,"1,833.43",73373-RESIDENTIAL & NURSING CARE PLACEMENTS,OP PACKAGE/PLACEMENT COSTS,Third Party Payments,Revenue
Walsall Council,http://opendatacommunities.org/id/metropolitan-district-council/walsall,WC86-505,30/11/2017,Adult Social Care,BESCOT LODGE RESIDENTIAL CARE HOME,28/11/2017,"1,971.42",73373-RESIDENTIAL & NURSING CARE PLACEMENTS,OP PACKAGE/PLACEMENT COSTS,Third Party Payments,Revenue
Walsall Council,http://opendatacommunities.org/id/metropolitan-district-council/walsall,WC86-506,30/11/2017,Adult Social Care,BESCOT LODGE RESIDENTIAL CARE HOME,28/11/2017,"1,971.42",73373-RESIDENTIAL & NURSING CARE PLACEMENTS,OP PACKAGE/PLACEMENT COSTS,Third Party Payments,Revenue
Walsall Council,http://opendatacommunities.org/id/metropolitan-district-council/walsall,WC86-507,30/11/2017,Adult Social Care,BESCOT LODGE RESIDENTIAL CARE HOME,28/11/2017,"1,971.42",73373-RESIDENTIAL & NURSING CARE PLACEMENTS,OP PACKAGE/PLACEMENT COSTS,Third Party Payments,Revenue
Walsall Council,http://opendatacommunities.org/id/metropolitan-district-council/walsall,WC86-508,30/11/2017,Adult Social Care,BESCOT LODGE RESIDENTIAL CARE HOME,28/11/2017,"1,971.43",73373-RESIDENTIAL & NURSING CARE PLACEMENTS,OP PACKAGE/PLACEMENT COSTS,Third Party Payments,Revenue
Walsall Council,http://opendatacommunities.org/id/metropolitan-district-council/walsall,WC86-509,30/11/2017,Adult Social Care,BESS CARE LIMITED,28/11/2017,390.50,73372-DOMICILIARY CARE,OP PACKAGE/PLACEMENT COSTS,Third Party Payments,Revenue
Walsall Council,http://opendatacommunities.org/id/metropolitan-district-council/walsall,WC86-510,30/11/2017,Adult Social Care,BETHPHAGE.,01/11/2017,532.28,73374-SUPPORTED & OTHER ACCOMMODATION,LD PACKAGE/PLACEMENT COSTS,Third Party Payments,Revenue
Walsall Council,http://opendatacommunities.org/id/metropolitan-district-council/walsall,WC86-511,30/11/2017,Adult Social Care,BETHPHAGE.,01/11/2017,532.28,73374-SUPPORTED & OTHER ACCOMMODATION,LD PACKAGE/PLACEMENT COSTS,Third Party Payments,Revenue
Walsall Council,http://opendatacommunities.org/id/metropolitan-district-council/walsall,WC86-512,30/11/2017,Adult Social Care,BETHPHAGE.,01/11/2017,532.28,73374-SUPPORTED & OTHER ACCOMMODATION,LD PACKAGE/PLACEMENT COSTS,Third Party Payments,Revenue
Walsall Council,http://opendatacommunities.org/id/metropolitan-district-council/walsall,WC86-513,30/11/2017,Adult Social Care,BETHPHAGE.,01/11/2017,532.28,73374-SUPPORTED & OTHER ACCOMMODATION,LD PACKAGE/PLACEMENT COSTS,Third Party Payments,Revenue
Walsall Council,http://opendatacommunities.org/id/metropolitan-district-council/walsall,WC86-514,30/11/2017,Adult Social Care,BETHPHAGE.,01/11/2017,532.28,73374-SUPPORTED & OTHER ACCOMMODATION,LD PACKAGE/PLACEMENT COSTS,Third Party Payments,Revenue
Walsall Council,http://opendatacommunities.org/id/metropolitan-district-council/walsall,WC86-515,30/11/2017,Adult Social Care,BETHPHAGE.,01/11/2017,532.28,73374-SUPPORTED & OTHER ACCOMMODATION,LD PACKAGE/PLACEMENT COSTS,Third Party Payments,Revenue
Walsall Council,http://opendatacommunities.org/id/metropolitan-district-council/walsall,WC86-516,30/11/2017,Adult Social Care,BETHPHAGE.,01/11/2017,665.35,73374-SUPPORTED & OTHER ACCOMMODATION,LD PACKAGE/PLACEMENT COSTS,Third Party Payments,Revenue
Walsall Council,http://opendatacommunities.org/id/metropolitan-district-council/walsall,WC86-517,30/11/2017,Adult Social Care,BETHPHAGE.,01/11/2017,665.35,73374-SUPPORTED & OTHER ACCOMMODATION,LD PACKAGE/PLACEMENT COSTS,Third Party Payments,Revenue
Walsall Council,http://opendatacommunities.org/id/metropolitan-district-council/walsall,WC86-518,30/11/2017,Adult Social Care,BETHPHAGE.,01/11/2017,665.35,73374-SUPPORTED & OTHER ACCOMMODATION,LD PACKAGE/PLACEMENT COSTS,Third Party Payments,Revenue
Walsall Council,http://opendatacommunities.org/id/metropolitan-district-council/walsall,WC86-519,30/11/2017,Adult Social Care,BETHPHAGE.,01/11/2017,665.35,73374-SUPPORTED & OTHER ACCOMMODATION,LD PACKAGE/PLACEMENT COSTS,Third Party Payments,Revenue
Walsall Council,http://opendatacommunities.org/id/metropolitan-district-council/walsall,WC86-520,30/11/2017,Adult Social Care,BETHPHAGE.,01/11/2017,770.86,73374-SUPPORTED & OTHER ACCOMMODATION,LD PACKAGE/PLACEMENT COSTS,Third Party Payments,Revenue
Walsall Council,http://opendatacommunities.org/id/metropolitan-district-council/walsall,WC86-521,30/11/2017,Adult Social Care,REDACTED,03/11/2017,949.52,76422-DIRECT PAYMENTS TO SOCIAL SERVICES CLIENTS,MH COMMISSIONING,Transfer Payments,Revenue
Walsall Council,http://opendatacommunities.org/id/metropolitan-district-council/walsall,WC86-522,30/11/2017,Adult Social Care,REDACTED,03/11/2017,"2,767.84",76422-DIRECT PAYMENTS TO SOCIAL SERVICES CLIENTS,OP PACKAGE/PLACEMENT COSTS,Transfer Payments,Revenue
Walsall Council,http://opendatacommunities.org/id/metropolitan-district-council/walsall,WC86-523,30/11/2017,Change and Governance,BFA SAFETY TRAINING,07/11/2017,395.00,30030-EXTERNAL TRAINING,HEALTH & SAFETY,Employees,Revenue
Walsall Council,http://opendatacommunities.org/id/metropolitan-district-council/walsall,WC86-524,30/11/2017,Economy & Environment,BIFFA WASTE SERVICES LTD,13/11/2017,191.00,73029-HAZARDOUS WASTE REMOVAL/DISPOSAL-PRIV CONTRACTOR FEES,WASTE DISPOSAL - RESIDUAL,Third Party Payments,Revenue
Walsall Council,http://opendatacommunities.org/id/metropolitan-district-council/walsall,WC86-525,30/11/2017,Economy & Environment,BIFFA WASTE SERVICES LTD,13/11/2017,285.85,73039-LANDFILL TAX-PRIV CONTRACTOR FEES,WASTE DISPOSAL - RESIDUAL,Third Party Payments,Revenue
Walsall Council,http://opendatacommunities.org/id/metropolitan-district-council/walsall,WC86-526,30/11/2017,Economy & Environment,BIFFA WASTE SERVICES LTD,28/11/2017,"4,502.86",73006-LANDFILL SITES PEEL ADV QTR PYTS-PRIV CONTRACTOR FEES,STRATEGY MANAGEMENT,Third Party Payments,Revenue
Walsall Council,http://opendatacommunities.org/id/metropolitan-district-council/walsall,WC86-527,30/11/2017,Economy & Environment,BIFFA WASTE SERVICES LTD,28/11/2017,"7,889.89",73006-LANDFILL SITES PEEL ADV QTR PYTS-PRIV CONTRACTOR FEES,STRATEGY MANAGEMENT,Third Party Payments,Revenue
Walsall Council,http://opendatacommunities.org/id/metropolitan-district-council/walsall,WC86-528,30/11/2017,Childrens,REDACTED,03/11/2017,572.00,76422-DIRECT PAYMENTS TO SOCIAL SERVICES CLIENTS,FAMILY SUPPORT - DIRECT PAYMENTS,Transfer Payments,Revenue
Walsall Council,http://opendatacommunities.org/id/metropolitan-district-council/walsall,WC86-529,30/11/2017,Economy & Environment,BILSTON RESOURCE CENTRE,06/11/2017,568.25,63000-PROFESSIONAL FEES AND SERVICES,YEI (IMPACT) PROGRAMME,Supplies & Services,Revenue
Walsall Council,http://opendatacommunities.org/id/metropolitan-district-council/walsall,WC86-530,30/11/2017,Economy & Environment,BILSTON RESOURCE CENTRE,06/11/2017,568.25,63000-PROFESSIONAL FEES AND SERVICES,YEI ESF FUNDING,Supplies & Services,Revenue
Walsall Council,http://opendatacommunities.org/id/metropolitan-district-council/walsall,WC86-531,30/11/2017,Economy & Environment,BILSTON RESOURCE CENTRE,20/11/2017,964.09,63000-PROFESSIONAL FEES AND SERVICES,YEI (IMPACT) PROGRAMME,Supplies & Services,Revenue
Walsall Council,http://opendatacommunities.org/id/metropolitan-district-council/walsall,WC86-532,30/11/2017,Economy & Environment,BILSTON RESOURCE CENTRE,20/11/2017,964.10,63000-PROFESSIONAL FEES AND SERVICES,YEI ESF FUNDING,Supplies & Services,Revenue
Walsall Council,http://opendatacommunities.org/id/metropolitan-district-council/walsall,WC86-533,30/11/2017,Change and Governance,BIRCHILLS C OF E COMMUNITY ACADEMY,24/11/2017,900.00,66502-TOP UP FUNDING -GRANTS TO SCHOOLS,SYRIAN REFUGEE PROJECT,Third Party Payments,Revenue
Walsall Council,http://opendatacommunities.org/id/metropolitan-district-council/walsall,WC86-534,30/11/2017,Childrens,BIRCHILLS C OF E COMMUNITY ACADEMY,29/11/2017,"15,929.23",66502-TOP UP FUNDING -GRANTS TO SCHOOLS,BIRCHILLS CE COMMUNITY ACADEMY,Third Party Payments,Revenue
Walsall Council,http://opendatacommunities.org/id/metropolitan-district-council/walsall,WC86-535,30/11/2017,Childrens,BIRMINGHAM CITY COUNCIL,01/11/2017,957.82,66502-TOP UP FUNDING -GRANTS TO SCHOOLS,MAINTAINED PROVIDERS,Third Party Payments,Revenue
Walsall Council,http://opendatacommunities.org/id/metropolitan-district-council/walsall,WC86-536,30/11/2017,Childrens,BIRMINGHAM CITY COUNCIL,22/11/2017,"1,046.00",66502-TOP UP FUNDING -GRANTS TO SCHOOLS,MAINTAINED PROVIDERS,Third Party Payments,Revenue
Walsall Council,http://opendatacommunities.org/id/metropolitan-district-council/walsall,WC86-537,30/11/2017,Childrens,BIRMINGHAM CITY COUNCIL,06/11/2017,"1,956.16",74037-INDEPENDENT FOSTER CARE-OTH AGENCY PROVISION,EXTERNAL FOSTER CARE PROVISION,Third Party Payments,Revenue
Walsall Council,http://opendatacommunities.org/id/metropolitan-district-council/walsall,WC86-538,30/11/2017,Childrens,BIRMINGHAM CITY COUNCIL,01/11/2017,"2,010.00",66502-TOP UP FUNDING -GRANTS TO SCHOOLS,MAINTAINED PROVIDERS,Third Party Payments,Revenue
Walsall Council,http://opendatacommunities.org/id/metropolitan-district-council/walsall,WC86-539,30/11/2017,Change and Governance,BIRMINGHAM CITY COUNCIL,01/11/2017,"2,946.25",60000-FURNITURE & EQUIPMENT,AREA PARTNERSHIPS,Supplies & Services,Revenue
Walsall Council,http://opendatacommunities.org/id/metropolitan-district-council/walsall,WC86-540,30/11/2017,Childrens,BIRMINGHAM CITY COUNCIL,01/11/2017,"3,837.31",66502-TOP UP FUNDING -GRANTS TO SCHOOLS,MAINTAINED PROVIDERS,Third Party Payments,Revenue
Walsall Council,http://opendatacommunities.org/id/metropolitan-district-council/walsall,WC86-541,30/11/2017,Economy & Environment,BIRMINGHAM CITY COUNCIL,13/11/2017,"5,067.58",71000-PAYMENTS FOR SERVICES FROM OTHER LOCAL AUTHORITIES,PLANNING POLICY,Third Party Payments,Revenue
Walsall Council,http://opendatacommunities.org/id/metropolitan-district-council/walsall,WC86-542,30/11/2017,Childrens,BIRMINGHAM CITY COUNCIL,01/11/2017,"5,539.35",66502-TOP UP FUNDING -GRANTS TO SCHOOLS,MAINTAINED PROVIDERS,Third Party Payments,Revenue
Walsall Council,http://opendatacommunities.org/id/metropolitan-district-council/walsall,WC86-543,30/11/2017,Childrens,BIRMINGHAM CITY COUNCIL,01/11/2017,"5,539.35",66502-TOP UP FUNDING -GRANTS TO SCHOOLS,MAINTAINED PROVIDERS,Third Party Payments,Revenue
Walsall Council,http://opendatacommunities.org/id/metropolitan-district-council/walsall,WC86-544,30/11/2017,Childrens,BIRMINGHAM CITY COUNCIL,01/11/2017,"7,484.23",66502-TOP UP FUNDING -GRANTS TO SCHOOLS,MAINTAINED PROVIDERS,Third Party Payments,Revenue
Walsall Council,http://opendatacommunities.org/id/metropolitan-district-council/walsall,WC86-545,30/11/2017,Economy & Environment,BIRMINGHAM CITY COUNCIL,13/11/2017,"10,135.17",71000-PAYMENTS FOR SERVICES FROM OTHER LOCAL AUTHORITIES,ROAD SAFETY & SUSTAINABLE TRAVEL,Third Party Payments,Revenue
Walsall Council,http://opendatacommunities.org/id/metropolitan-district-council/walsall,WC86-546,30/11/2017,Economy & Environment,BLACK COUNTRY CONSORTIUM LIMITED,01/11/2017,"11,962.00",63000-PROFESSIONAL FEES AND SERVICES,JOINT COMITTEE & PROGRAMME MANAGEMENT,Supplies & Services,Revenue
Walsall Council,http://opendatacommunities.org/id/metropolitan-district-council/walsall,WC86-547,30/11/2017,Economy & Environment,BLACK COUNTRY CONSORTIUM LIMITED,03/11/2017,"57,390.27",65500-GRANTS TO ASSOCIATIONS,LEP CORE FUNDING,Third Party Payments,Revenue
Walsall Council,http://opendatacommunities.org/id/metropolitan-district-council/walsall,WC86-548,30/11/2017,Economy & Environment,BLACK COUNTRY CONSORTIUM LIMITED,03/11/2017,"70,524.13",65500-GRANTS TO ASSOCIATIONS,LEP- HESELTINE FUNDING,Third Party Payments,Revenue
Walsall Council,http://opendatacommunities.org/id/metropolitan-district-council/walsall,WC86-549,30/11/2017,Economy & Environment,BLACK COUNTRY DANCE HUB,20/11/2017,598.00,63000-PROFESSIONAL FEES AND SERVICES,FOREST ARTS CENTRE,Supplies & Services,Revenue
Walsall Council,http://opendatacommunities.org/id/metropolitan-district-council/walsall,WC86-550,30/11/2017,Economy & Environment,BLACK COUNTRY DANCE HUB,20/11/2017,646.00,63000-PROFESSIONAL FEES AND SERVICES,FOREST ARTS CENTRE,Supplies & Services,Revenue
Walsall Council,http://opendatacommunities.org/id/metropolitan-district-council/walsall,WC86-551,30/11/2017,Economy & Environment,BLACK COUNTRY TRAINING LTD T/A BRITISH HGV TRAINING GROUP,16/11/2017,280.00,30030-EXTERNAL TRAINING,GROUNDS,Employees,Revenue
Walsall Council,http://opendatacommunities.org/id/metropolitan-district-council/walsall,WC86-552,30/11/2017,Childrens,BLAKENALL HEATH JMI SCHOOL,10/11/2017,"59,880.00",77302-ISB-SCHOOL STANDARDS GRANT,BLAKENALL HEATH JUNIOR SCHOOL,Transfer Payments,Revenue
Walsall Council,http://opendatacommunities.org/id/metropolitan-district-council/walsall,WC86-553,30/11/2017,Childrens,BLAKENALL HEATH JMI SCHOOL,10/11/2017,"97,351.61",77300-ISB-FORMULA ALLOCATION,BLAKENALL HEATH JUNIOR SCHOOL,Transfer Payments,Revenue
Walsall Council,http://opendatacommunities.org/id/metropolitan-district-council/walsall,WC86-554,30/11/2017,Childrens,BLAKENALL HEATH JMI SCHOOL,23/11/2017,"97,351.61",77300-ISB-FORMULA ALLOCATION,BLAKENALL HEATH JUNIOR SCHOOL,Transfer Payments,Revenue
Walsall Council,http://opendatacommunities.org/id/metropolitan-district-council/walsall,WC86-555,30/11/2017,Adult Social Care,REDACTED,03/11/2017,"1,902.00",76422-DIRECT PAYMENTS TO SOCIAL SERVICES CLIENTS,OP PACKAGE/PLACEMENT COSTS,Transfer Payments,Revenue
Walsall Council,http://opendatacommunities.org/id/metropolitan-district-council/walsall,WC86-556,30/11/2017,Economy & Environment,BLIND MONKEY,20/11/2017,"2,811.00","40000-REPAIRS,ALTERATIONS & MAINTENANCE-PREM",ARBORETUM HLF,Premises,Revenue
Walsall Council,http://opendatacommunities.org/id/metropolitan-district-council/walsall,WC86-557,30/11/2017,Childrens,BLOXWICH ACADEMY,29/11/2017,"2,471.54",66502-TOP UP FUNDING -GRANTS TO SCHOOLS,BLOXWICH ACADEMY,Third Party Payments,Revenue
Walsall Council,http://opendatacommunities.org/id/metropolitan-district-council/walsall,WC86-558,30/11/2017,Adult Social Care,BLOXWICH COMMUNITY PARTNERSHIP.,29/11/2017,310.00,73374-SUPPORTED & OTHER ACCOMMODATION,OP PACKAGE/PLACEMENT COSTS,Third Party Payments,Revenue
Walsall Council,http://opendatacommunities.org/id/metropolitan-district-council/walsall,WC86-559,30/11/2017,Childrens,BLOXWICH COMMUNITY PARTNERSHIP.,17/11/2017,"6,881.18",66500-GRANTS TO OTHER ORGS,TARGETED YOUTH WORK - COMMISSIONED,Third Party Payments,Revenue
Walsall Council,http://opendatacommunities.org/id/metropolitan-district-council/walsall,WC86-560,30/11/2017,Childrens,BLOXWICH COMMUNITY PARTNERSHIP.,17/11/2017,"6,881.18",66500-GRANTS TO OTHER ORGS,TARGETED YOUTH WORK - COMMISSIONED,Third Party Payments,Revenue
Walsall Council,http://opendatacommunities.org/id/metropolitan-district-council/walsall,WC86-561,30/11/2017,Economy & Environment,BLOXWICH COMMUNITY PARTNERSHIP.,03/11/2017,"7,491.25",63253-PAYMENT TO CONTRACTOR,MENTAL HEALTH,Third Party Payments,Revenue
Walsall Council,http://opendatacommunities.org/id/metropolitan-district-council/walsall,WC86-562,30/11/2017,Change and Governance,BLUE SKY GUTTERING LTD,17/11/2017,880.00,"40000-REPAIRS,ALTERATIONS & MAINTENANCE-PREM",CENTRALISED MAINTENANCE,Premises,Revenue
Walsall Council,http://opendatacommunities.org/id/metropolitan-district-council/walsall,WC86-563,30/11/2017,Economy & Environment,BME UNITED LTD,08/11/2017,735.00,63253-PAYMENT TO CONTRACTOR,SMOKING CESSATION,Third Party Payments,Revenue
Walsall Council,http://opendatacommunities.org/id/metropolitan-district-council/walsall,WC86-564,30/11/2017,Economy & Environment,BMG RESEARCH,07/11/2017,"3,800.00",63000-PROFESSIONAL FEES AND SERVICES,PROJECTS,Supplies & Services,Revenue
Walsall Council,http://opendatacommunities.org/id/metropolitan-district-council/walsall,WC86-565,30/11/2017,Economy & Environment,BOLINDA UK LTD,01/11/2017,637.37,60501-LIBRARY BOOKS,LIBRARY STOCK AND PERFORMANCE,Supplies & Services,Revenue
Walsall Council,http://opendatacommunities.org/id/metropolitan-district-council/walsall,WC86-566,30/11/2017,Economy & Environment,BORNEO ST ALLOTMENT ASSOCIATION,06/11/2017,"10,000.00",01006-SITE WORKS MAIN CONTRACTORS,CFR 919 ALLOTMENT & COMMUNITY GARDEN STRATEGY BORNEO STREET,Capital,Capital
Walsall Council,http://opendatacommunities.org/id/metropolitan-district-council/walsall,WC86-567,30/11/2017,Economy & Environment,BOSSE & BAUM,28/11/2017,250.00,63000-PROFESSIONAL FEES AND SERVICES,NAG - ARTISTS RESIDENCIES,Supplies & Services,Revenue
Walsall Council,http://opendatacommunities.org/id/metropolitan-district-council/walsall,WC86-568,30/11/2017,Childrens,BOULTON TRAVEL LIMITED,07/11/2017,"1,442.00",52000-WITH DRIVER-HIRE OF VEHICLES,SCHOOL TRANSPORT,Transport,Revenue
Walsall Council,http://opendatacommunities.org/id/metropolitan-district-council/walsall,WC86-569,30/11/2017,Childrens,BOULTON TRAVEL LIMITED,07/11/2017,"1,512.00",52000-WITH DRIVER-HIRE OF VEHICLES,SCHOOL TRANSPORT,Transport,Revenue
Walsall Council,http://opendatacommunities.org/id/metropolitan-district-council/walsall,WC86-570,30/11/2017,Childrens,BOULTON TRAVEL LIMITED,07/11/2017,"1,708.00",52000-WITH DRIVER-HIRE OF VEHICLES,SCHOOL TRANSPORT,Transport,Revenue
Walsall Council,http://opendatacommunities.org/id/metropolitan-district-council/walsall,WC86-571,30/11/2017,Change and Governance,BPP PROFESSIONAL EDUCATION,01/11/2017,713.15,30030-EXTERNAL TRAINING,FINANCE,Employees,Revenue
Walsall Council,http://opendatacommunities.org/id/metropolitan-district-council/walsall,WC86-572,30/11/2017,Economy & Environment,BRADVALE LTD T/A INSPIRE HEALTHCARE SERVICES,06/11/2017,288.88,60008-MAINTENANCE-FURNITURE & EQUIPMENT,WALSALL GALA CENTRE,Supplies & Services,Revenue
Walsall Council,http://opendatacommunities.org/id/metropolitan-district-council/walsall,WC86-573,30/11/2017,Economy & Environment,BRADVALE LTD T/A INSPIRE HEALTHCARE SERVICES,14/11/2017,583.20,60500-GENERAL MATERIALS,ARBORETUM VISITOR CENTRE,Supplies & Services,Revenue
Walsall Council,http://opendatacommunities.org/id/metropolitan-district-council/walsall,WC86-574,30/11/2017,Economy & Environment,BRADVALE LTD T/A INSPIRE HEALTHCARE SERVICES,17/11/2017,926.53,63121-DISPOSAL OF WASTE-SERVICES-FEES,BLOXWICH LEISURE CENTRE,Supplies & Services,Revenue
Walsall Council,http://opendatacommunities.org/id/metropolitan-district-council/walsall,WC86-575,30/11/2017,Economy & Environment,BRADVALE LTD T/A INSPIRE HEALTHCARE SERVICES,16/11/2017,"1,827.95",73025-PROFESSIONAL SERVICES-PRIV CONTRACTOR & OTHER AGENCIES,DEPOT,Third Party Payments,Revenue
Walsall Council,http://opendatacommunities.org/id/metropolitan-district-council/walsall,WC86-576,30/11/2017,Childrens,BRANAS ISAF PERSONAL DEVELOPMENT CENTRE LTD,06/11/2017,"18,000.00",74036-EXTERNAL RESIDENTIAL CARE-OTH AGENCY PROVISION,INDEPENDENT RESIDENTIAL HOMES,Third Party Payments,Revenue
Walsall Council,http://opendatacommunities.org/id/metropolitan-district-council/walsall,WC86-577,30/11/2017,Change and Governance,BRELMAYNE LTD,21/11/2017,307.49,60006-NEW-FURNITURE & EQUIPMENT,CA LITTLE BLOXWICH CE PRIMARY SCHOOL,Supplies & Services,Revenue
Walsall Council,http://opendatacommunities.org/id/metropolitan-district-council/walsall,WC86-578,30/11/2017,Change and Governance,BRELMAYNE LTD,21/11/2017,480.00,60006-NEW-FURNITURE & EQUIPMENT,CA CENTRAL SUPPORT SERVICES,Supplies & Services,Revenue
Walsall Council,http://opendatacommunities.org/id/metropolitan-district-council/walsall,WC86-579,30/11/2017,Economy & Environment,BRELMAYNE LTD,17/11/2017,613.59,60006-NEW-FURNITURE & EQUIPMENT,STREETLY CREMATORIUM,Supplies & Services,Revenue
Walsall Council,http://opendatacommunities.org/id/metropolitan-district-council/walsall,WC86-580,30/11/2017,Change and Governance,BRELMAYNE LTD,21/11/2017,"5,600.00",01044-PURCHASE OF FURNITURE & EQUIPMENT,CFR 1190 SCHOOLS PROJECT,Capital,Capital
Walsall Council,http://opendatacommunities.org/id/metropolitan-district-council/walsall,WC86-581,30/11/2017,Adult Social Care,REDACTED,03/11/2017,440.00,76422-DIRECT PAYMENTS TO SOCIAL SERVICES CLIENTS,LD PACKAGE/PLACEMENT COSTS,Transfer Payments,Revenue
Walsall Council,http://opendatacommunities.org/id/metropolitan-district-council/walsall,WC86-582,30/11/2017,Childrens,REDACTED,06/11/2017,9.24,60006-NEW-FURNITURE & EQUIPMENT,INTERNAL FOSTER CARE PROVISION,Supplies & Services,Revenue
Walsall Council,http://opendatacommunities.org/id/metropolitan-district-council/walsall,WC86-583,30/11/2017,Childrens,REDACTED,06/11/2017,810.32,74501-MAINTENANCE ALLOWANCE-FOSTER CARERS,INTERNAL FOSTER CARE PROVISION,Transfer Payments,Revenue
Walsall Council,http://opendatacommunities.org/id/metropolitan-district-council/walsall,WC86-584,30/11/2017,Childrens,REDACTED,06/11/2017,810.32,74501-MAINTENANCE ALLOWANCE-FOSTER CARERS,INTERNAL FOSTER CARE PROVISION,Transfer Payments,Revenue
Walsall Council,http://opendatacommunities.org/id/metropolitan-district-council/walsall,WC86-585,30/11/2017,Childrens,REDACTED,06/11/2017,"1,436.08",74508-INTERNAL FOSTER CARERS-CARER FEES,INTERNAL FOSTER CARE PROVISION,Transfer Payments,Revenue
Walsall Council,http://opendatacommunities.org/id/metropolitan-district-council/walsall,WC86-586,30/11/2017,Economy & Environment,BRENNTAG UK LIMITED,15/11/2017,367.50,60500-GENERAL MATERIALS,BLOXWICH LEISURE CENTRE,Supplies & Services,Revenue
Walsall Council,http://opendatacommunities.org/id/metropolitan-district-council/walsall,WC86-587,30/11/2017,Economy & Environment,BRENNTAG UK LIMITED,15/11/2017,631.87,60500-GENERAL MATERIALS,BLOXWICH LEISURE CENTRE,Supplies & Services,Revenue
Walsall Council,http://opendatacommunities.org/id/metropolitan-district-council/walsall,WC86-588,30/11/2017,Economy & Environment,BRENNTAG UK LIMITED,21/11/2017,710.56,50301-FUEL-TRANSPORT RUN COSTS,FUEL STOCK ACCOUNT,Transport,Revenue
Walsall Council,http://opendatacommunities.org/id/metropolitan-district-council/walsall,WC86-589,30/11/2017,Adult Social Care,REDACTED,14/11/2017,"1,337.64",73374-SUPPORTED & OTHER ACCOMMODATION,LD PACKAGE/PLACEMENT COSTS,Third Party Payments,Revenue
Walsall Council,http://opendatacommunities.org/id/metropolitan-district-council/walsall,WC86-590,30/11/2017,Adult Social Care,REDACTED,14/11/2017,"1,597.60",73374-SUPPORTED & OTHER ACCOMMODATION,LD PACKAGE/PLACEMENT COSTS,Third Party Payments,Revenue
Walsall Council,http://opendatacommunities.org/id/metropolitan-district-council/walsall,WC86-591,30/11/2017,Adult Social Care,REDACTED,03/11/2017,"1,726.40",76422-DIRECT PAYMENTS TO SOCIAL SERVICES CLIENTS,OP PACKAGE/PLACEMENT COSTS,Transfer Payments,Revenue
Walsall Council,http://opendatacommunities.org/id/metropolitan-district-council/walsall,WC86-592,30/11/2017,Adult Social Care,REDACTED,03/11/2017,738.00,76422-DIRECT PAYMENTS TO SOCIAL SERVICES CLIENTS,OP PACKAGE/PLACEMENT COSTS,Transfer Payments,Revenue
Walsall Council,http://opendatacommunities.org/id/metropolitan-district-council/walsall,WC86-593,30/11/2017,Adult Social Care,BRIDGEWOOD HEALTH CARE LTD,06/11/2017,"5,688.24",73373-RESIDENTIAL & NURSING CARE PLACEMENTS,PD PACKAGE/PLACEMENT COSTS,Third Party Payments,Revenue
Walsall Council,http://opendatacommunities.org/id/metropolitan-district-council/walsall,WC86-594,30/11/2017,Childrens,BRIGHT HORIZONS (WISHING WILLOW),17/11/2017,957.62,63120-CRECHE FACILITIES-SERVICES-FEES,FAMILY PLACEMENTS,Supplies & Services,Revenue
Walsall Council,http://opendatacommunities.org/id/metropolitan-district-council/walsall,WC86-595,30/11/2017,Change and Governance,BRISTOW & SUTOR,17/11/2017,213.83,73014-LEGAL FEES-PRIV CONTRACTOR FEES,REVENUES,Third Party Payments,Revenue
Walsall Council,http://opendatacommunities.org/id/metropolitan-district-council/walsall,WC86-596,30/11/2017,Change and Governance,BRISTOW & SUTOR,07/11/2017,402.60,73014-LEGAL FEES-PRIV CONTRACTOR FEES,REVENUES,Third Party Payments,Revenue
Walsall Council,http://opendatacommunities.org/id/metropolitan-district-council/walsall,WC86-597,30/11/2017,Change and Governance,BRISTOW & SUTOR,07/11/2017,449.40,73014-LEGAL FEES-PRIV CONTRACTOR FEES,REVENUES,Third Party Payments,Revenue
Walsall Council,http://opendatacommunities.org/id/metropolitan-district-council/walsall,WC86-598,30/11/2017,Change and Governance,BRISTOW & SUTOR,07/11/2017,475.58,73014-LEGAL FEES-PRIV CONTRACTOR FEES,REVENUES,Third Party Payments,Revenue
Walsall Council,http://opendatacommunities.org/id/metropolitan-district-council/walsall,WC86-599,30/11/2017,Economy & Environment,BRITANNIA APPRENTICESHIPS LTD,30/11/2017,"2,449.20",63000-PROFESSIONAL FEES AND SERVICES,YEI (IMPACT) PROGRAMME,Supplies & Services,Revenue
Walsall Council,http://opendatacommunities.org/id/metropolitan-district-council/walsall,WC86-600,30/11/2017,Economy & Environment,BRITANNIA APPRENTICESHIPS LTD,30/11/2017,"2,449.24",63000-PROFESSIONAL FEES AND SERVICES,YEI ESF FUNDING,Supplies & Services,Revenue
Walsall Council,http://opendatacommunities.org/id/metropolitan-district-council/walsall,WC86-601,30/11/2017,Economy & Environment,BRITANNIA APPRENTICESHIPS LTD,13/11/2017,"4,286.10",63000-PROFESSIONAL FEES AND SERVICES,YEI (IMPACT) PROGRAMME,Supplies & Services,Revenue
Walsall Council,http://opendatacommunities.org/id/metropolitan-district-council/walsall,WC86-602,30/11/2017,Economy & Environment,BRITANNIA APPRENTICESHIPS LTD,13/11/2017,"4,286.17",63000-PROFESSIONAL FEES AND SERVICES,YEI ESF FUNDING,Supplies & Services,Revenue
Walsall Council,http://opendatacommunities.org/id/metropolitan-district-council/walsall,WC86-603,30/11/2017,Change and Governance,BRITISH GAS BUSINESS,16/11/2017,301.52,42000-GAS-ENERGY COSTS,CENTRALISED ENERGY,Premises,Revenue
Walsall Council,http://opendatacommunities.org/id/metropolitan-district-council/walsall,WC86-604,30/11/2017,Change and Governance,BRITISH MUSLIM YOUTH GROUP,13/11/2017,"2,000.00",30030-EXTERNAL TRAINING,PREVENT GRANT,Employees,Revenue
Walsall Council,http://opendatacommunities.org/id/metropolitan-district-council/walsall,WC86-605,30/11/2017,Change and Governance,BRITISH MUSLIM YOUTH GROUP,13/11/2017,"2,000.00",30030-EXTERNAL TRAINING,PREVENT GRANT,Employees,Revenue
Walsall Council,http://opendatacommunities.org/id/metropolitan-district-council/walsall,WC86-606,30/11/2017,Childrens,BRITISH MUSLIM YOUTH GROUP,08/11/2017,"10,177.11",66500-GRANTS TO OTHER ORGS,TARGETED YOUTH WORK - COMMISSIONED,Third Party Payments,Revenue
Walsall Council,http://opendatacommunities.org/id/metropolitan-district-council/walsall,WC86-607,30/11/2017,Economy & Environment,BRITTONS FORK LIFT LIMITED,17/11/2017,220.00,62523-EVENTS,BONFIRES,Supplies & Services,Revenue
Walsall Council,http://opendatacommunities.org/id/metropolitan-district-council/walsall,WC86-608,30/11/2017,Economy & Environment,BRITTONS FORK LIFT LIMITED,17/11/2017,500.00,62523-EVENTS,BONFIRES,Supplies & Services,Revenue
Walsall Council,http://opendatacommunities.org/id/metropolitan-district-council/walsall,WC86-609,30/11/2017,Economy & Environment,BRITTONS FORK LIFT LIMITED,22/11/2017,980.00,62523-EVENTS,ARBORETUM,Supplies & Services,Revenue
Walsall Council,http://opendatacommunities.org/id/metropolitan-district-council/walsall,WC86-610,30/11/2017,Economy & Environment,BRITTONS FORK LIFT LIMITED,24/11/2017,"3,000.00",62523-EVENTS,ARBORETUM,Supplies & Services,Revenue
Walsall Council,http://opendatacommunities.org/id/metropolitan-district-council/walsall,WC86-611,30/11/2017,Change and Governance,BROOKLAND CONSTRUCTION DEVELOPMENTS LTD,20/11/2017,"3,800.00",01045-PRIVATE GRANTS,CFR 826 DISABLED FACILITIES GRANTS (SOCIAL SERVICES),Capital,Capital
Walsall Council,http://opendatacommunities.org/id/metropolitan-district-council/walsall,WC86-612,30/11/2017,Holding Accounts,BROWNE JACOBSON SOLICITORS,06/11/2017,710.00,67001-MISC INSURANCES - PAYMENT OF CLAIMS,PUBLIC LIABILITY,Supplies & Services,Revenue
Walsall Council,http://opendatacommunities.org/id/metropolitan-district-council/walsall,WC86-613,30/11/2017,Childrens,BROWNHILLS ASPHALT & TARMAC LIMITED,09/11/2017,555.00,01006-SITE WORKS MAIN CONTRACTORS,ABBEY PRIMARY DEV FORMULA CAPITAL,Capital,Capital
Walsall Council,http://opendatacommunities.org/id/metropolitan-district-council/walsall,WC86-614,30/11/2017,Change and Governance,BROWNHILLS ASPHALT & TARMAC LIMITED,16/11/2017,675.00,"40000-REPAIRS,ALTERATIONS & MAINTENANCE-PREM",RECHARGEABLE - NON SCHOOLS MAINTENANCE,Premises,Revenue
Walsall Council,http://opendatacommunities.org/id/metropolitan-district-council/walsall,WC86-615,30/11/2017,Economy & Environment,BROWNHILLS ASPHALT & TARMAC LIMITED,13/11/2017,950.00,60500-GENERAL MATERIALS,INFRASTRUCTURE MAINTENANCE,Supplies & Services,Revenue
Walsall Council,http://opendatacommunities.org/id/metropolitan-district-council/walsall,WC86-616,30/11/2017,Childrens,BROWNHILLS ASPHALT & TARMAC LIMITED,09/11/2017,"1,995.00",01006-SITE WORKS MAIN CONTRACTORS,ABBEY PRIMARY DEV FORMULA CAPITAL,Capital,Capital
Walsall Council,http://opendatacommunities.org/id/metropolitan-district-council/walsall,WC86-617,30/11/2017,Childrens,BROWNHILLS ASPHALT & TARMAC LIMITED,16/11/2017,"2,215.00",01006-SITE WORKS MAIN CONTRACTORS,CFR 1137 MEADOW VIEW PRIMARY EXPANSION,Capital,Capital
Walsall Council,http://opendatacommunities.org/id/metropolitan-district-council/walsall,WC86-618,30/11/2017,Economy & Environment,BROWNHILLS ASPHALT & TARMAC LIMITED,13/11/2017,"2,900.00",60006-NEW-FURNITURE & EQUIPMENT,HWRC,Supplies & Services,Revenue
Walsall Council,http://opendatacommunities.org/id/metropolitan-district-council/walsall,WC86-619,30/11/2017,Economy & Environment,BROWNHILLS ASPHALT & TARMAC LIMITED,27/11/2017,"3,436.00",01023-TECHNICAL ASSISTANTS TIME,CFR 818 MANAGING MEMORIAL SAFETY,Capital,Capital
Walsall Council,http://opendatacommunities.org/id/metropolitan-district-council/walsall,WC86-620,30/11/2017,Childrens,BROWNHILLS ASPHALT & TARMAC LIMITED,09/11/2017,"5,117.00",01006-SITE WORKS MAIN CONTRACTORS,ABBEY PRIMARY DEV FORMULA CAPITAL,Capital,Capital
Walsall Council,http://opendatacommunities.org/id/metropolitan-district-council/walsall,WC86-621,30/11/2017,Childrens,BROWNHILLS ASPHALT & TARMAC LIMITED,01/11/2017,"11,330.00",01006-SITE WORKS MAIN CONTRACTORS,BARCROFT PRIMARY DEV FORMULA CAPITAL,Capital,Capital
Walsall Council,http://opendatacommunities.org/id/metropolitan-district-council/walsall,WC86-622,30/11/2017,Childrens,BROWNHILLS ASPHALT & TARMAC LIMITED,14/11/2017,"24,248.00",01006-SITE WORKS MAIN CONTRACTORS,CFR 1137 BEACON PRIMARY EXTENSION,Capital,Capital
Walsall Council,http://opendatacommunities.org/id/metropolitan-district-council/walsall,WC86-623,30/11/2017,Adult Social Care,REDACTED,03/11/2017,"1,530.00",76422-DIRECT PAYMENTS TO SOCIAL SERVICES CLIENTS,LD PACKAGE/PLACEMENT COSTS,Transfer Payments,Revenue
Walsall Council,http://opendatacommunities.org/id/metropolitan-district-council/walsall,WC86-624,30/11/2017,Change and Governance,BRUNO EDWARDS,17/11/2017,400.00,"40000-REPAIRS,ALTERATIONS & MAINTENANCE-PREM",WALSALL TOWN HALL,Premises,Revenue
Walsall Council,http://opendatacommunities.org/id/metropolitan-district-council/walsall,WC86-625,30/11/2017,Childrens,BRYN MELYN CARE LTD,06/11/2017,"18,760.00",74036-EXTERNAL RESIDENTIAL CARE-OTH AGENCY PROVISION,INDEPENDENT RESIDENTIAL HOMES,Third Party Payments,Revenue
Walsall Council,http://opendatacommunities.org/id/metropolitan-district-council/walsall,WC86-626,30/11/2017,Change and Governance,BT,17/11/2017,712.00,63603-COST OF CALLS-TELEPHONES,PROCESSING,Supplies & Services,Revenue
Walsall Council,http://opendatacommunities.org/id/metropolitan-district-council/walsall,WC86-627,30/11/2017,Childrens,BT PLC,17/11/2017,400.58,63603-COST OF CALLS-TELEPHONES,LOCALITY FAMILY SUPPORT-WEST,Supplies & Services,Revenue
Walsall Council,http://opendatacommunities.org/id/metropolitan-district-council/walsall,WC86-628,30/11/2017,Change and Governance,BT PLC,23/11/2017,"1,268.35",63601-COSTS (NOT INTERNAL RECHARGES)-TELEPHONES,RECHARGEABLE EQUIPMENT,Supplies & Services,Revenue
Walsall Council,http://opendatacommunities.org/id/metropolitan-district-council/walsall,WC86-629,30/11/2017,Change and Governance,BT PLC,01/11/2017,"1,322.43",63800-COMPUTER EQUIPMENT AND SUPPLIES,RECHARGEABLE EQUIPMENT,Supplies & Services,Revenue
Walsall Council,http://opendatacommunities.org/id/metropolitan-district-council/walsall,WC86-630,30/11/2017,Change and Governance,BT PLC,09/11/2017,"1,770.02",63601-COSTS (NOT INTERNAL RECHARGES)-TELEPHONES,CENTRAL COMMUNICATIONS RECHARGES,Supplies & Services,Revenue
Walsall Council,http://opendatacommunities.org/id/metropolitan-district-council/walsall,WC86-631,30/11/2017,Change and Governance,BT PLC,01/11/2017,"2,056.65",63807-COMMS LINKS-COMPUTER,SIT-INFRASTRUCTURE,Supplies & Services,Revenue
Walsall Council,http://opendatacommunities.org/id/metropolitan-district-council/walsall,WC86-632,30/11/2017,Change and Governance,BT PLC,20/11/2017,"15,108.39",63601-COSTS (NOT INTERNAL RECHARGES)-TELEPHONES,CENTRAL COMMUNICATIONS RECHARGES,Supplies & Services,Revenue
Walsall Council,http://opendatacommunities.org/id/metropolitan-district-council/walsall,WC86-633,30/11/2017,Economy & Environment,BUFFET EXPRESS LTD,20/11/2017,544.00,61305-CATERING,MUSIC HUB FOREST ARTS,Supplies & Services,Revenue
Walsall Council,http://opendatacommunities.org/id/metropolitan-district-council/walsall,WC86-634,30/11/2017,Economy & Environment,BUFFET EXPRESS LTD,06/11/2017,976.00,61305-CATERING,MUSIC HUB FOREST ARTS,Supplies & Services,Revenue
Walsall Council,http://opendatacommunities.org/id/metropolitan-district-council/walsall,WC86-635,30/11/2017,Economy & Environment,BUFFET EXPRESS LTD,20/11/2017,"1,039.00",61305-CATERING,MUSIC HUB FOREST ARTS,Supplies & Services,Revenue
Walsall Council,http://opendatacommunities.org/id/metropolitan-district-council/walsall,WC86-636,30/11/2017,Economy & Environment,BUILDING BRIDGES TRAINING C I C,16/11/2017,"5,503.00",66500-GRANTS TO OTHER ORGS,ESF COMMUNITY GRANTS,Third Party Payments,Revenue
Walsall Council,http://opendatacommunities.org/id/metropolitan-district-council/walsall,WC86-637,30/11/2017,Adult Social Care,BUNZIL HEALTHCARE T/A CARESHOP,08/11/2017,244.71,60539-CLEANING MATERIALS,REABLEMENT TEAM - HOLLY BANK,Supplies & Services,Revenue
Walsall Council,http://opendatacommunities.org/id/metropolitan-district-council/walsall,WC86-638,30/11/2017,Adult Social Care,BUNZIL HEALTHCARE T/A CARESHOP,01/12/2017,294.35,60539-CLEANING MATERIALS,REABLEMENT TEAM - HOLLY BANK,Supplies & Services,Revenue
Walsall Council,http://opendatacommunities.org/id/metropolitan-district-council/walsall,WC86-639,30/11/2017,Adult Social Care,BUNZIL HEALTHCARE T/A CARESHOP,08/11/2017,367.17,60539-CLEANING MATERIALS,REABLEMENT TEAM - HOLLY BANK,Supplies & Services,Revenue
Walsall Council,http://opendatacommunities.org/id/metropolitan-district-council/walsall,WC86-640,30/11/2017,Adult Social Care,BUNZIL HEALTHCARE T/A CARESHOP,24/11/2017,606.60,60539-CLEANING MATERIALS,COMMUNITY INTERMEDIATE CARE,Supplies & Services,Revenue
Walsall Council,http://opendatacommunities.org/id/metropolitan-district-council/walsall,WC86-641,30/11/2017,Adult Social Care,BUNZIL HEALTHCARE T/A CARESHOP,28/11/2017,801.38,60539-CLEANING MATERIALS,HOLLYBANK,Supplies & Services,Revenue
Walsall Council,http://opendatacommunities.org/id/metropolitan-district-council/walsall,WC86-642,30/11/2017,Adult Social Care,BUNZIL HEALTHCARE T/A CARESHOP,06/11/2017,"1,100.80",60539-CLEANING MATERIALS,REABLEMENT TEAM - HOLLY BANK,Supplies & Services,Revenue
Walsall Council,http://opendatacommunities.org/id/metropolitan-district-council/walsall,WC86-643,30/11/2017,Adult Social Care,BUPA NURSING HOMES ASTON COURT,01/11/2017,"1,194.95",73373-RESIDENTIAL & NURSING CARE PLACEMENTS,OP PACKAGE/PLACEMENT COSTS,Third Party Payments,Revenue
Walsall Council,http://opendatacommunities.org/id/metropolitan-district-council/walsall,WC86-644,30/11/2017,Adult Social Care,BUPA NURSING HOMES-ANVILLE CT,28/11/2017,537.25,73373-RESIDENTIAL & NURSING CARE PLACEMENTS,OP PACKAGE/PLACEMENT COSTS,Third Party Payments,Revenue
Walsall Council,http://opendatacommunities.org/id/metropolitan-district-council/walsall,WC86-645,30/11/2017,Adult Social Care,BUPA NURSING HOMES-ANVILLE CT,28/11/2017,537.25,73373-RESIDENTIAL & NURSING CARE PLACEMENTS,OP PACKAGE/PLACEMENT COSTS,Third Party Payments,Revenue
Walsall Council,http://opendatacommunities.org/id/metropolitan-district-council/walsall,WC86-646,30/11/2017,Adult Social Care,BUPA NURSING HOMES-ANVILLE CT,28/11/2017,537.25,73373-RESIDENTIAL & NURSING CARE PLACEMENTS,OP PACKAGE/PLACEMENT COSTS,Third Party Payments,Revenue
Walsall Council,http://opendatacommunities.org/id/metropolitan-district-council/walsall,WC86-647,30/11/2017,Adult Social Care,BUPA NURSING HOMES-ANVILLE CT,29/11/2017,537.25,73373-RESIDENTIAL & NURSING CARE PLACEMENTS,OP PACKAGE/PLACEMENT COSTS,Third Party Payments,Revenue
Walsall Council,http://opendatacommunities.org/id/metropolitan-district-council/walsall,WC86-648,30/11/2017,Adult Social Care,BUPA NURSING HOMES-ANVILLE CT,29/11/2017,537.25,73373-RESIDENTIAL & NURSING CARE PLACEMENTS,OP PACKAGE/PLACEMENT COSTS,Third Party Payments,Revenue
Walsall Council,http://opendatacommunities.org/id/metropolitan-district-council/walsall,WC86-649,30/11/2017,Adult Social Care,BUPA NURSING HOMES-ANVILLE CT,29/11/2017,690.75,73373-RESIDENTIAL & NURSING CARE PLACEMENTS,OP PACKAGE/PLACEMENT COSTS,Third Party Payments,Revenue
Walsall Council,http://opendatacommunities.org/id/metropolitan-district-council/walsall,WC86-650,30/11/2017,Adult Social Care,BUSH HOME LTD,01/11/2017,452.27,73373-RESIDENTIAL & NURSING CARE PLACEMENTS,OP PACKAGE/PLACEMENT COSTS,Third Party Payments,Revenue
Walsall Council,http://opendatacommunities.org/id/metropolitan-district-council/walsall,WC86-651,30/11/2017,Adult Social Care,BUSH HOME LTD,01/11/2017,657.14,73373-RESIDENTIAL & NURSING CARE PLACEMENTS,OP PACKAGE/PLACEMENT COSTS,Third Party Payments,Revenue
Walsall Council,http://opendatacommunities.org/id/metropolitan-district-council/walsall,WC86-652,30/11/2017,Adult Social Care,BUSH HOME LTD,20/11/2017,768.86,73373-RESIDENTIAL & NURSING CARE PLACEMENTS,OP PACKAGE/PLACEMENT COSTS,Third Party Payments,Revenue
Walsall Council,http://opendatacommunities.org/id/metropolitan-district-council/walsall,WC86-653,30/11/2017,Adult Social Care,BUSH HOME LTD,01/11/2017,964.29,73373-RESIDENTIAL & NURSING CARE PLACEMENTS,OP PACKAGE/PLACEMENT COSTS,Third Party Payments,Revenue
Walsall Council,http://opendatacommunities.org/id/metropolitan-district-council/walsall,WC86-654,30/11/2017,Adult Social Care,BUSH HOME LTD,01/11/2017,"1,182.86",73373-RESIDENTIAL & NURSING CARE PLACEMENTS,OP PACKAGE/PLACEMENT COSTS,Third Party Payments,Revenue
Walsall Council,http://opendatacommunities.org/id/metropolitan-district-council/walsall,WC86-655,30/11/2017,Adult Social Care,BUSH HOME LTD,20/11/2017,"1,248.60",73373-RESIDENTIAL & NURSING CARE PLACEMENTS,OP PACKAGE/PLACEMENT COSTS,Third Party Payments,Revenue
Walsall Council,http://opendatacommunities.org/id/metropolitan-district-council/walsall,WC86-656,30/11/2017,Adult Social Care,BUSH HOME LTD,01/11/2017,"1,656.00",73373-RESIDENTIAL & NURSING CARE PLACEMENTS,OP PACKAGE/PLACEMENT COSTS,Third Party Payments,Revenue
Walsall Council,http://opendatacommunities.org/id/metropolitan-district-council/walsall,WC86-657,30/11/2017,Adult Social Care,BUSH HOME LTD,01/11/2017,"1,656.00",73373-RESIDENTIAL & NURSING CARE PLACEMENTS,OP PACKAGE/PLACEMENT COSTS,Third Party Payments,Revenue
Walsall Council,http://opendatacommunities.org/id/metropolitan-district-council/walsall,WC86-658,30/11/2017,Adult Social Care,BUSH HOME LTD,01/11/2017,"1,656.00",73373-RESIDENTIAL & NURSING CARE PLACEMENTS,OP PACKAGE/PLACEMENT COSTS,Third Party Payments,Revenue
Walsall Council,http://opendatacommunities.org/id/metropolitan-district-council/walsall,WC86-659,30/11/2017,Adult Social Care,BUSH HOME LTD,01/11/2017,"1,656.00",73373-RESIDENTIAL & NURSING CARE PLACEMENTS,OP PACKAGE/PLACEMENT COSTS,Third Party Payments,Revenue
Walsall Council,http://opendatacommunities.org/id/metropolitan-district-council/walsall,WC86-660,30/11/2017,Adult Social Care,BUSH HOME LTD,20/11/2017,"1,656.00",73373-RESIDENTIAL & NURSING CARE PLACEMENTS,OP PACKAGE/PLACEMENT COSTS,Third Party Payments,Revenue
Walsall Council,http://opendatacommunities.org/id/metropolitan-district-council/walsall,WC86-661,30/11/2017,Adult Social Care,BUSH HOME LTD,20/11/2017,"1,656.00",73373-RESIDENTIAL & NURSING CARE PLACEMENTS,OP PACKAGE/PLACEMENT COSTS,Third Party Payments,Revenue
Walsall Council,http://opendatacommunities.org/id/metropolitan-district-council/walsall,WC86-662,30/11/2017,Adult Social Care,BUSH HOME LTD,20/11/2017,"1,656.00",73373-RESIDENTIAL & NURSING CARE PLACEMENTS,OP PACKAGE/PLACEMENT COSTS,Third Party Payments,Revenue
Walsall Council,http://opendatacommunities.org/id/metropolitan-district-council/walsall,WC86-663,30/11/2017,Adult Social Care,BUSH HOME LTD,20/11/2017,"1,656.00",73373-RESIDENTIAL & NURSING CARE PLACEMENTS,OP PACKAGE/PLACEMENT COSTS,Third Party Payments,Revenue
Walsall Council,http://opendatacommunities.org/id/metropolitan-district-council/walsall,WC86-664,30/11/2017,Adult Social Care,BUSH HOME LTD,20/11/2017,"1,656.00",73373-RESIDENTIAL & NURSING CARE PLACEMENTS,OP PACKAGE/PLACEMENT COSTS,Third Party Payments,Revenue
Walsall Council,http://opendatacommunities.org/id/metropolitan-district-council/walsall,WC86-665,30/11/2017,Adult Social Care,BUSH HOME LTD,20/11/2017,"1,656.00",73373-RESIDENTIAL & NURSING CARE PLACEMENTS,OP PACKAGE/PLACEMENT COSTS,Third Party Payments,Revenue
Walsall Council,http://opendatacommunities.org/id/metropolitan-district-council/walsall,WC86-666,30/11/2017,Adult Social Care,BUSH HOME LTD,20/11/2017,"1,656.00",73373-RESIDENTIAL & NURSING CARE PLACEMENTS,OP PACKAGE/PLACEMENT COSTS,Third Party Payments,Revenue
Walsall Council,http://opendatacommunities.org/id/metropolitan-district-council/walsall,WC86-667,30/11/2017,Adult Social Care,BUSH HOME LTD,20/11/2017,"1,656.00",73373-RESIDENTIAL & NURSING CARE PLACEMENTS,MH COMMISSIONING,Third Party Payments,Revenue
Walsall Council,http://opendatacommunities.org/id/metropolitan-district-council/walsall,WC86-668,30/11/2017,Adult Social Care,BUSH HOME LTD,20/11/2017,"1,656.00",73373-RESIDENTIAL & NURSING CARE PLACEMENTS,OP PACKAGE/PLACEMENT COSTS,Third Party Payments,Revenue
Walsall Council,http://opendatacommunities.org/id/metropolitan-district-council/walsall,WC86-669,30/11/2017,Adult Social Care,BUSH HOME LTD,01/11/2017,"1,715.14",73373-RESIDENTIAL & NURSING CARE PLACEMENTS,OP PACKAGE/PLACEMENT COSTS,Third Party Payments,Revenue
Walsall Council,http://opendatacommunities.org/id/metropolitan-district-council/walsall,WC86-670,30/11/2017,Adult Social Care,BUSH HOME LTD,01/11/2017,"1,715.14",73373-RESIDENTIAL & NURSING CARE PLACEMENTS,OP PACKAGE/PLACEMENT COSTS,Third Party Payments,Revenue
Walsall Council,http://opendatacommunities.org/id/metropolitan-district-council/walsall,WC86-671,30/11/2017,Adult Social Care,BUSH HOME LTD,20/11/2017,"1,839.94",73373-RESIDENTIAL & NURSING CARE PLACEMENTS,OP PACKAGE/PLACEMENT COSTS,Third Party Payments,Revenue
Walsall Council,http://opendatacommunities.org/id/metropolitan-district-council/walsall,WC86-672,30/11/2017,Adult Social Care,BUSH HOME LTD,01/11/2017,"1,840.00",73373-RESIDENTIAL & NURSING CARE PLACEMENTS,OP PACKAGE/PLACEMENT COSTS,Third Party Payments,Revenue
Walsall Council,http://opendatacommunities.org/id/metropolitan-district-council/walsall,WC86-673,30/11/2017,Adult Social Care,BUSH HOME LTD,01/11/2017,"1,840.00",73373-RESIDENTIAL & NURSING CARE PLACEMENTS,MH COMMISSIONING,Third Party Payments,Revenue
Walsall Council,http://opendatacommunities.org/id/metropolitan-district-council/walsall,WC86-674,30/11/2017,Adult Social Care,BUSH HOME LTD,20/11/2017,"1,840.00",73373-RESIDENTIAL & NURSING CARE PLACEMENTS,OP PACKAGE/PLACEMENT COSTS,Third Party Payments,Revenue
Walsall Council,http://opendatacommunities.org/id/metropolitan-district-council/walsall,WC86-675,30/11/2017,Adult Social Care,BUSH HOME LTD,20/11/2017,"1,840.00",73373-RESIDENTIAL & NURSING CARE PLACEMENTS,OP PACKAGE/PLACEMENT COSTS,Third Party Payments,Revenue
Walsall Council,http://opendatacommunities.org/id/metropolitan-district-council/walsall,WC86-676,30/11/2017,Adult Social Care,BUSH HOME LTD,20/11/2017,"1,840.00",73373-RESIDENTIAL & NURSING CARE PLACEMENTS,OP PACKAGE/PLACEMENT COSTS,Third Party Payments,Revenue
Walsall Council,http://opendatacommunities.org/id/metropolitan-district-council/walsall,WC86-677,30/11/2017,Adult Social Care,BUSH HOME LTD,20/11/2017,"1,840.00",73373-RESIDENTIAL & NURSING CARE PLACEMENTS,MH COMMISSIONING,Third Party Payments,Revenue
Walsall Council,http://opendatacommunities.org/id/metropolitan-district-council/walsall,WC86-678,30/11/2017,Adult Social Care,BUSH HOME LTD,20/11/2017,"1,840.28",73373-RESIDENTIAL & NURSING CARE PLACEMENTS,OP PACKAGE/PLACEMENT COSTS,Third Party Payments,Revenue
Walsall Council,http://opendatacommunities.org/id/metropolitan-district-council/walsall,WC86-679,30/11/2017,Adult Social Care,BUSH HOME LTD,01/11/2017,"2,898.00",73373-RESIDENTIAL & NURSING CARE PLACEMENTS,OP PACKAGE/PLACEMENT COSTS,Third Party Payments,Revenue
Walsall Council,http://opendatacommunities.org/id/metropolitan-district-council/walsall,WC86-680,30/11/2017,Childrens,BY THE BRIDGE,06/11/2017,609.90,74037-INDEPENDENT FOSTER CARE-OTH AGENCY PROVISION,EXTERNAL FOSTER CARE PROVISION,Third Party Payments,Revenue
Walsall Council,http://opendatacommunities.org/id/metropolitan-district-council/walsall,WC86-681,30/11/2017,Childrens,BY THE BRIDGE,06/11/2017,637.72,74037-INDEPENDENT FOSTER CARE-OTH AGENCY PROVISION,EXTERNAL FOSTER CARE PROVISION,Third Party Payments,Revenue
Walsall Council,http://opendatacommunities.org/id/metropolitan-district-council/walsall,WC86-682,30/11/2017,Adult Social Care,C & V ORCHARD MANOR LTD,28/11/2017,"-1,607.14",73373-RESIDENTIAL & NURSING CARE PLACEMENTS,OP PACKAGE/PLACEMENT COSTS,Third Party Payments,Revenue
Walsall Council,http://opendatacommunities.org/id/metropolitan-district-council/walsall,WC86-683,30/11/2017,Adult Social Care,C & V ORCHARD MANOR LTD,28/11/2017,56.02,73373-RESIDENTIAL & NURSING CARE PLACEMENTS,MH COMMISSIONING,Third Party Payments,Revenue
Walsall Council,http://opendatacommunities.org/id/metropolitan-district-council/walsall,WC86-684,30/11/2017,Adult Social Care,C & V ORCHARD MANOR LTD,28/11/2017,347.18,73373-RESIDENTIAL & NURSING CARE PLACEMENTS,OP PACKAGE/PLACEMENT COSTS,Third Party Payments,Revenue
Walsall Council,http://opendatacommunities.org/id/metropolitan-district-council/walsall,WC86-685,30/11/2017,Adult Social Care,C & V ORCHARD MANOR LTD,28/11/2017,473.14,73373-RESIDENTIAL & NURSING CARE PLACEMENTS,OP PACKAGE/PLACEMENT COSTS,Third Party Payments,Revenue
Walsall Council,http://opendatacommunities.org/id/metropolitan-district-council/walsall,WC86-686,30/11/2017,Adult Social Care,C & V ORCHARD MANOR LTD,28/11/2017,504.49,73373-RESIDENTIAL & NURSING CARE PLACEMENTS,OP PACKAGE/PLACEMENT COSTS,Third Party Payments,Revenue
Walsall Council,http://opendatacommunities.org/id/metropolitan-district-council/walsall,WC86-687,30/11/2017,Adult Social Care,C & V ORCHARD MANOR LTD,28/11/2017,525.71,73373-RESIDENTIAL & NURSING CARE PLACEMENTS,OP PACKAGE/PLACEMENT COSTS,Third Party Payments,Revenue
Walsall Council,http://opendatacommunities.org/id/metropolitan-district-council/walsall,WC86-688,30/11/2017,Adult Social Care,C & V ORCHARD MANOR LTD,28/11/2017,578.57,73373-RESIDENTIAL & NURSING CARE PLACEMENTS,OP PACKAGE/PLACEMENT COSTS,Third Party Payments,Revenue
Walsall Council,http://opendatacommunities.org/id/metropolitan-district-council/walsall,WC86-689,30/11/2017,Adult Social Care,C & V ORCHARD MANOR LTD,20/11/2017,657.13,73373-RESIDENTIAL & NURSING CARE PLACEMENTS,OP PACKAGE/PLACEMENT COSTS,Third Party Payments,Revenue
Walsall Council,http://opendatacommunities.org/id/metropolitan-district-council/walsall,WC86-690,30/11/2017,Adult Social Care,C & V ORCHARD MANOR LTD,20/11/2017,946.28,73373-RESIDENTIAL & NURSING CARE PLACEMENTS,MH COMMISSIONING,Third Party Payments,Revenue
Walsall Council,http://opendatacommunities.org/id/metropolitan-district-council/walsall,WC86-691,30/11/2017,Adult Social Care,C & V ORCHARD MANOR LTD,20/11/2017,946.28,73373-RESIDENTIAL & NURSING CARE PLACEMENTS,MH COMMISSIONING,Third Party Payments,Revenue
Walsall Council,http://opendatacommunities.org/id/metropolitan-district-council/walsall,WC86-692,30/11/2017,Adult Social Care,C & V ORCHARD MANOR LTD,20/11/2017,"1,051.42",73373-RESIDENTIAL & NURSING CARE PLACEMENTS,MH COMMISSIONING,Third Party Payments,Revenue
Walsall Council,http://opendatacommunities.org/id/metropolitan-district-council/walsall,WC86-693,30/11/2017,Adult Social Care,C & V ORCHARD MANOR LTD,20/11/2017,"1,051.42",73373-RESIDENTIAL & NURSING CARE PLACEMENTS,OP PACKAGE/PLACEMENT COSTS,Third Party Payments,Revenue
Walsall Council,http://opendatacommunities.org/id/metropolitan-district-council/walsall,WC86-694,30/11/2017,Adult Social Care,C & V ORCHARD MANOR LTD,20/11/2017,"1,051.43",73373-RESIDENTIAL & NURSING CARE PLACEMENTS,OP PACKAGE/PLACEMENT COSTS,Third Party Payments,Revenue
Walsall Council,http://opendatacommunities.org/id/metropolitan-district-council/walsall,WC86-695,30/11/2017,Adult Social Care,C & V ORCHARD MANOR LTD,28/11/2017,"1,052.87",73373-RESIDENTIAL & NURSING CARE PLACEMENTS,MH COMMISSIONING,Third Party Payments,Revenue
Walsall Council,http://opendatacommunities.org/id/metropolitan-district-council/walsall,WC86-696,30/11/2017,Adult Social Care,C & V ORCHARD MANOR LTD,20/11/2017,"1,117.13",73373-RESIDENTIAL & NURSING CARE PLACEMENTS,OP PACKAGE/PLACEMENT COSTS,Third Party Payments,Revenue
Walsall Council,http://opendatacommunities.org/id/metropolitan-district-council/walsall,WC86-697,30/11/2017,Adult Social Care,C & V ORCHARD MANOR LTD,28/11/2017,"1,492.29",73373-RESIDENTIAL & NURSING CARE PLACEMENTS,LD PACKAGE/PLACEMENT COSTS,Third Party Payments,Revenue
Walsall Council,http://opendatacommunities.org/id/metropolitan-district-council/walsall,WC86-698,30/11/2017,Adult Social Care,C & V ORCHARD MANOR LTD,28/11/2017,"1,534.12",73373-RESIDENTIAL & NURSING CARE PLACEMENTS,OP PACKAGE/PLACEMENT COSTS,Third Party Payments,Revenue
Walsall Council,http://opendatacommunities.org/id/metropolitan-district-council/walsall,WC86-699,30/11/2017,Adult Social Care,C & V ORCHARD MANOR LTD,01/11/2017,"1,655.86",73373-RESIDENTIAL & NURSING CARE PLACEMENTS,OP PACKAGE/PLACEMENT COSTS,Third Party Payments,Revenue
Walsall Council,http://opendatacommunities.org/id/metropolitan-district-council/walsall,WC86-700,30/11/2017,Adult Social Care,C & V ORCHARD MANOR LTD,01/11/2017,"1,655.86",73373-RESIDENTIAL & NURSING CARE PLACEMENTS,OP PACKAGE/PLACEMENT COSTS,Third Party Payments,Revenue
Walsall Council,http://opendatacommunities.org/id/metropolitan-district-council/walsall,WC86-701,30/11/2017,Adult Social Care,C & V ORCHARD MANOR LTD,01/11/2017,"1,656.00",73373-RESIDENTIAL & NURSING CARE PLACEMENTS,MH COMMISSIONING,Third Party Payments,Revenue
Walsall Council,http://opendatacommunities.org/id/metropolitan-district-council/walsall,WC86-702,30/11/2017,Adult Social Care,C & V ORCHARD MANOR LTD,01/11/2017,"1,656.00",73373-RESIDENTIAL & NURSING CARE PLACEMENTS,MH COMMISSIONING,Third Party Payments,Revenue
Walsall Council,http://opendatacommunities.org/id/metropolitan-district-council/walsall,WC86-703,30/11/2017,Adult Social Care,C & V ORCHARD MANOR LTD,01/11/2017,"1,656.00",73373-RESIDENTIAL & NURSING CARE PLACEMENTS,MH COMMISSIONING,Third Party Payments,Revenue
Walsall Council,http://opendatacommunities.org/id/metropolitan-district-council/walsall,WC86-704,30/11/2017,Adult Social Care,C & V ORCHARD MANOR LTD,28/11/2017,"1,799.99",73373-RESIDENTIAL & NURSING CARE PLACEMENTS,OP PACKAGE/PLACEMENT COSTS,Third Party Payments,Revenue
Walsall Council,http://opendatacommunities.org/id/metropolitan-district-council/walsall,WC86-705,30/11/2017,Adult Social Care,C & V ORCHARD MANOR LTD,01/11/2017,"1,840.00",73373-RESIDENTIAL & NURSING CARE PLACEMENTS,OP PACKAGE/PLACEMENT COSTS,Third Party Payments,Revenue
Walsall Council,http://opendatacommunities.org/id/metropolitan-district-council/walsall,WC86-706,30/11/2017,Adult Social Care,C & V ORCHARD MANOR LTD,01/11/2017,"1,840.00",73373-RESIDENTIAL & NURSING CARE PLACEMENTS,MH COMMISSIONING,Third Party Payments,Revenue
Walsall Council,http://opendatacommunities.org/id/metropolitan-district-council/walsall,WC86-707,30/11/2017,Adult Social Care,C & V ORCHARD MANOR LTD,01/11/2017,"1,840.00",73373-RESIDENTIAL & NURSING CARE PLACEMENTS,MH COMMISSIONING,Third Party Payments,Revenue
Walsall Council,http://opendatacommunities.org/id/metropolitan-district-council/walsall,WC86-708,30/11/2017,Adult Social Care,C & V ORCHARD MANOR LTD,01/11/2017,"1,840.00",73373-RESIDENTIAL & NURSING CARE PLACEMENTS,OP PACKAGE/PLACEMENT COSTS,Third Party Payments,Revenue
Walsall Council,http://opendatacommunities.org/id/metropolitan-district-council/walsall,WC86-709,30/11/2017,Adult Social Care,C & V ORCHARD MANOR LTD,01/11/2017,"1,840.00",73373-RESIDENTIAL & NURSING CARE PLACEMENTS,OP PACKAGE/PLACEMENT COSTS,Third Party Payments,Revenue
Walsall Council,http://opendatacommunities.org/id/metropolitan-district-council/walsall,WC86-710,30/11/2017,Adult Social Care,C & V ORCHARD MANOR LTD,01/11/2017,"2,760.00",73373-RESIDENTIAL & NURSING CARE PLACEMENTS,OP PACKAGE/PLACEMENT COSTS,Third Party Payments,Revenue
Walsall Council,http://opendatacommunities.org/id/metropolitan-district-council/walsall,WC86-711,30/11/2017,Adult Social Care,C & V ORCHARD MANOR LTD,28/11/2017,"3,921.60",73373-RESIDENTIAL & NURSING CARE PLACEMENTS,OP PACKAGE/PLACEMENT COSTS,Third Party Payments,Revenue
Walsall Council,http://opendatacommunities.org/id/metropolitan-district-council/walsall,WC86-712,30/11/2017,Adult Social Care,C & V ORCHARD MANOR LTD,28/11/2017,"4,259.59",73373-RESIDENTIAL & NURSING CARE PLACEMENTS,LD PACKAGE/PLACEMENT COSTS,Third Party Payments,Revenue
Walsall Council,http://opendatacommunities.org/id/metropolitan-district-council/walsall,WC86-713,30/11/2017,Adult Social Care,C & V ORCHARD MANOR LTD,20/11/2017,"5,796.00",73373-RESIDENTIAL & NURSING CARE PLACEMENTS,OP PACKAGE/PLACEMENT COSTS,Third Party Payments,Revenue
Walsall Council,http://opendatacommunities.org/id/metropolitan-district-council/walsall,WC86-714,30/11/2017,Adult Social Care,C & V ORCHARD RESIDENTIAL LTD,28/11/2017,"-1,462.46",73373-RESIDENTIAL & NURSING CARE PLACEMENTS,OP PACKAGE/PLACEMENT COSTS,Third Party Payments,Revenue
Walsall Council,http://opendatacommunities.org/id/metropolitan-district-council/walsall,WC86-715,30/11/2017,Adult Social Care,C & V ORCHARD RESIDENTIAL LTD,28/11/2017,"1,248.57",73373-RESIDENTIAL & NURSING CARE PLACEMENTS,OP PACKAGE/PLACEMENT COSTS,Third Party Payments,Revenue
Walsall Council,http://opendatacommunities.org/id/metropolitan-district-council/walsall,WC86-716,30/11/2017,Adult Social Care,C & V ORCHARD RESIDENTIAL LTD,01/11/2017,"1,656.00",73373-RESIDENTIAL & NURSING CARE PLACEMENTS,OP PACKAGE/PLACEMENT COSTS,Third Party Payments,Revenue
Walsall Council,http://opendatacommunities.org/id/metropolitan-district-council/walsall,WC86-717,30/11/2017,Adult Social Care,C & V ORCHARD RESIDENTIAL LTD,01/11/2017,"1,656.00",73373-RESIDENTIAL & NURSING CARE PLACEMENTS,OP PACKAGE/PLACEMENT COSTS,Third Party Payments,Revenue
Walsall Council,http://opendatacommunities.org/id/metropolitan-district-council/walsall,WC86-718,30/11/2017,Adult Social Care,C & V ORCHARD RESIDENTIAL LTD,01/11/2017,"1,656.00",73373-RESIDENTIAL & NURSING CARE PLACEMENTS,OP PACKAGE/PLACEMENT COSTS,Third Party Payments,Revenue
Walsall Council,http://opendatacommunities.org/id/metropolitan-district-council/walsall,WC86-719,30/11/2017,Adult Social Care,C & V ORCHARD RESIDENTIAL LTD,13/11/2017,"1,656.00",73373-RESIDENTIAL & NURSING CARE PLACEMENTS,OP PACKAGE/PLACEMENT COSTS,Third Party Payments,Revenue
Walsall Council,http://opendatacommunities.org/id/metropolitan-district-council/walsall,WC86-720,30/11/2017,Adult Social Care,C & V ORCHARD RESIDENTIAL LTD,13/11/2017,"1,656.00",73373-RESIDENTIAL & NURSING CARE PLACEMENTS,OP PACKAGE/PLACEMENT COSTS,Third Party Payments,Revenue
Walsall Council,http://opendatacommunities.org/id/metropolitan-district-council/walsall,WC86-721,30/11/2017,Adult Social Care,C & V ORCHARD RESIDENTIAL LTD,13/11/2017,"1,656.00",73373-RESIDENTIAL & NURSING CARE PLACEMENTS,OP PACKAGE/PLACEMENT COSTS,Third Party Payments,Revenue
Walsall Council,http://opendatacommunities.org/id/metropolitan-district-council/walsall,WC86-722,30/11/2017,Adult Social Care,C & V ORCHARD RESIDENTIAL LTD,13/11/2017,"1,656.00",73373-RESIDENTIAL & NURSING CARE PLACEMENTS,OP PACKAGE/PLACEMENT COSTS,Third Party Payments,Revenue
Walsall Council,http://opendatacommunities.org/id/metropolitan-district-council/walsall,WC86-723,30/11/2017,Adult Social Care,C & V ORCHARD RESIDENTIAL LTD,28/11/2017,"1,800.03",73373-RESIDENTIAL & NURSING CARE PLACEMENTS,MH COMMISSIONING,Third Party Payments,Revenue
Walsall Council,http://opendatacommunities.org/id/metropolitan-district-council/walsall,WC86-724,30/11/2017,Adult Social Care,C & V ORCHARD RESIDENTIAL LTD,01/11/2017,"1,840.00",73373-RESIDENTIAL & NURSING CARE PLACEMENTS,OP PACKAGE/PLACEMENT COSTS,Third Party Payments,Revenue
Walsall Council,http://opendatacommunities.org/id/metropolitan-district-council/walsall,WC86-725,30/11/2017,Adult Social Care,C & V ORCHARD RESIDENTIAL LTD,01/11/2017,"1,840.00",73373-RESIDENTIAL & NURSING CARE PLACEMENTS,OP PACKAGE/PLACEMENT COSTS,Third Party Payments,Revenue
Walsall Council,http://opendatacommunities.org/id/metropolitan-district-council/walsall,WC86-726,30/11/2017,Adult Social Care,C & V ORCHARD RESIDENTIAL LTD,01/11/2017,"1,840.00",73373-RESIDENTIAL & NURSING CARE PLACEMENTS,OP PACKAGE/PLACEMENT COSTS,Third Party Payments,Revenue
Walsall Council,http://opendatacommunities.org/id/metropolitan-district-council/walsall,WC86-727,30/11/2017,Adult Social Care,C & V ORCHARD RESIDENTIAL LTD,01/11/2017,"1,840.00",73373-RESIDENTIAL & NURSING CARE PLACEMENTS,OP PACKAGE/PLACEMENT COSTS,Third Party Payments,Revenue
Walsall Council,http://opendatacommunities.org/id/metropolitan-district-council/walsall,WC86-728,30/11/2017,Adult Social Care,C & V ORCHARD RESIDENTIAL LTD,01/11/2017,"1,840.00",73373-RESIDENTIAL & NURSING CARE PLACEMENTS,OP PACKAGE/PLACEMENT COSTS,Third Party Payments,Revenue
Walsall Council,http://opendatacommunities.org/id/metropolitan-district-council/walsall,WC86-729,30/11/2017,Adult Social Care,C & V ORCHARD RESIDENTIAL LTD,01/11/2017,"1,840.00",73373-RESIDENTIAL & NURSING CARE PLACEMENTS,MH COMMISSIONING,Third Party Payments,Revenue
Walsall Council,http://opendatacommunities.org/id/metropolitan-district-council/walsall,WC86-730,30/11/2017,Adult Social Care,C & V ORCHARD RESIDENTIAL LTD,13/11/2017,"1,840.00",73373-RESIDENTIAL & NURSING CARE PLACEMENTS,OP PACKAGE/PLACEMENT COSTS,Third Party Payments,Revenue
Walsall Council,http://opendatacommunities.org/id/metropolitan-district-council/walsall,WC86-731,30/11/2017,Adult Social Care,C & V ORCHARD RESIDENTIAL LTD,13/11/2017,"1,840.00",73373-RESIDENTIAL & NURSING CARE PLACEMENTS,OP PACKAGE/PLACEMENT COSTS,Third Party Payments,Revenue
Walsall Council,http://opendatacommunities.org/id/metropolitan-district-council/walsall,WC86-732,30/11/2017,Adult Social Care,C & V ORCHARD RESIDENTIAL LTD,13/11/2017,"1,840.00",73373-RESIDENTIAL & NURSING CARE PLACEMENTS,OP PACKAGE/PLACEMENT COSTS,Third Party Payments,Revenue
Walsall Council,http://opendatacommunities.org/id/metropolitan-district-council/walsall,WC86-733,30/11/2017,Adult Social Care,C & V ORCHARD RESIDENTIAL LTD,13/11/2017,"1,840.00",73373-RESIDENTIAL & NURSING CARE PLACEMENTS,OP PACKAGE/PLACEMENT COSTS,Third Party Payments,Revenue
Walsall Council,http://opendatacommunities.org/id/metropolitan-district-council/walsall,WC86-734,30/11/2017,Adult Social Care,C & V ORCHARD RESIDENTIAL LTD,13/11/2017,"1,840.00",73373-RESIDENTIAL & NURSING CARE PLACEMENTS,OP PACKAGE/PLACEMENT COSTS,Third Party Payments,Revenue
Walsall Council,http://opendatacommunities.org/id/metropolitan-district-council/walsall,WC86-735,30/11/2017,Adult Social Care,C & V ORCHARD RESIDENTIAL LTD,13/11/2017,"1,840.00",73373-RESIDENTIAL & NURSING CARE PLACEMENTS,OP PACKAGE/PLACEMENT COSTS,Third Party Payments,Revenue
Walsall Council,http://opendatacommunities.org/id/metropolitan-district-council/walsall,WC86-736,30/11/2017,Adult Social Care,C & V ORCHARD RESIDENTIAL LTD,13/11/2017,"1,840.00",73373-RESIDENTIAL & NURSING CARE PLACEMENTS,MH COMMISSIONING,Third Party Payments,Revenue
Walsall Council,http://opendatacommunities.org/id/metropolitan-district-council/walsall,WC86-737,30/11/2017,Adult Social Care,C & V ORCHARD RESIDENTIAL LTD,28/11/2017,"1,840.01",73373-RESIDENTIAL & NURSING CARE PLACEMENTS,OP PACKAGE/PLACEMENT COSTS,Third Party Payments,Revenue
Walsall Council,http://opendatacommunities.org/id/metropolitan-district-council/walsall,WC86-738,30/11/2017,Adult Social Care,C & V ORCHARD RESIDENTIAL LTD,28/11/2017,"1,840.02",73373-RESIDENTIAL & NURSING CARE PLACEMENTS,OP PACKAGE/PLACEMENT COSTS,Third Party Payments,Revenue
Walsall Council,http://opendatacommunities.org/id/metropolitan-district-council/walsall,WC86-739,30/11/2017,Adult Social Care,C & V ORCHARD RESIDENTIAL LTD,28/11/2017,"2,037.16",73373-RESIDENTIAL & NURSING CARE PLACEMENTS,OP PACKAGE/PLACEMENT COSTS,Third Party Payments,Revenue
Walsall Council,http://opendatacommunities.org/id/metropolitan-district-council/walsall,WC86-740,30/11/2017,Adult Social Care,C & V ORCHARD RESIDENTIAL LTD,28/11/2017,"4,991.20",73373-RESIDENTIAL & NURSING CARE PLACEMENTS,OP PACKAGE/PLACEMENT COSTS,Third Party Payments,Revenue
Walsall Council,http://opendatacommunities.org/id/metropolitan-district-council/walsall,WC86-741,30/11/2017,Childrens,REDACTED,06/11/2017,9.24,60006-NEW-FURNITURE & EQUIPMENT,INTERNAL FOSTER CARE PROVISION,Supplies & Services,Revenue
Walsall Council,http://opendatacommunities.org/id/metropolitan-district-council/walsall,WC86-742,30/11/2017,Childrens,REDACTED,06/11/2017,123.22,74503-BIRTHDAY ALLOWANCE-FOSTER CARERS,INTERNAL FOSTER CARE PROVISION,Transfer Payments,Revenue
Walsall Council,http://opendatacommunities.org/id/metropolitan-district-council/walsall,WC86-743,30/11/2017,Childrens,REDACTED,06/11/2017,810.32,74501-MAINTENANCE ALLOWANCE-FOSTER CARERS,INTERNAL FOSTER CARE PROVISION,Transfer Payments,Revenue
Walsall Council,http://opendatacommunities.org/id/metropolitan-district-council/walsall,WC86-744,30/11/2017,Childrens,REDACTED,06/11/2017,810.32,74501-MAINTENANCE ALLOWANCE-FOSTER CARERS,INTERNAL FOSTER CARE PROVISION,Transfer Payments,Revenue
Walsall Council,http://opendatacommunities.org/id/metropolitan-district-council/walsall,WC86-745,30/11/2017,Childrens,REDACTED,06/11/2017,810.32,74501-MAINTENANCE ALLOWANCE-FOSTER CARERS,INTERNAL FOSTER CARE PROVISION,Transfer Payments,Revenue
Walsall Council,http://opendatacommunities.org/id/metropolitan-district-council/walsall,WC86-746,30/11/2017,Childrens,REDACTED,06/11/2017,829.12,74501-MAINTENANCE ALLOWANCE-FOSTER CARERS,INTERNAL FOSTER CARE PROVISION,Transfer Payments,Revenue
Walsall Council,http://opendatacommunities.org/id/metropolitan-district-council/walsall,WC86-747,30/11/2017,Childrens,REDACTED,06/11/2017,985.76,74501-MAINTENANCE ALLOWANCE-FOSTER CARERS,INTERNAL FOSTER CARE PROVISION,Transfer Payments,Revenue
Walsall Council,http://opendatacommunities.org/id/metropolitan-district-council/walsall,WC86-748,30/11/2017,Childrens,REDACTED,06/11/2017,985.76,74501-MAINTENANCE ALLOWANCE-FOSTER CARERS,INTERNAL FOSTER CARE PROVISION,Transfer Payments,Revenue
Walsall Council,http://opendatacommunities.org/id/metropolitan-district-council/walsall,WC86-749,30/11/2017,Childrens,REDACTED,06/11/2017,"4,308.40",74508-INTERNAL FOSTER CARERS-CARER FEES,INTERNAL FOSTER CARE PROVISION,Transfer Payments,Revenue
Walsall Council,http://opendatacommunities.org/id/metropolitan-district-council/walsall,WC86-750,30/11/2017,Childrens,REDACTED,06/11/2017,9.24,60006-NEW-FURNITURE & EQUIPMENT,INTERNAL FOSTER CARE PROVISION,Supplies & Services,Revenue
Walsall Council,http://opendatacommunities.org/id/metropolitan-district-council/walsall,WC86-751,30/11/2017,Childrens,REDACTED,06/11/2017,810.32,74501-MAINTENANCE ALLOWANCE-FOSTER CARERS,INTERNAL FOSTER CARE PROVISION,Transfer Payments,Revenue
Walsall Council,http://opendatacommunities.org/id/metropolitan-district-council/walsall,WC86-752,30/11/2017,Childrens,REDACTED,06/11/2017,810.32,74501-MAINTENANCE ALLOWANCE-FOSTER CARERS,INTERNAL FOSTER CARE PROVISION,Transfer Payments,Revenue
Walsall Council,http://opendatacommunities.org/id/metropolitan-district-council/walsall,WC86-753,30/11/2017,Childrens,REDACTED,06/11/2017,"1,686.08",74508-INTERNAL FOSTER CARERS-CARER FEES,INTERNAL FOSTER CARE PROVISION,Transfer Payments,Revenue
Walsall Council,http://opendatacommunities.org/id/metropolitan-district-council/walsall,WC86-754,30/11/2017,Economy & Environment,C P DAVIDSON & SONS LTD,09/11/2017,"5,577.26",60500-GENERAL MATERIALS,FLEET,Supplies & Services,Revenue
Walsall Council,http://opendatacommunities.org/id/metropolitan-district-council/walsall,WC86-755,30/11/2017,Childrens,REDACTED,17/11/2017,162.73,74504-HOLIDAY/CHRISTMAS ALLOWANCE-FOSTER CARERS,FAMILY & FRIENDS FOSTER CARE PROVISION,Transfer Payments,Revenue
Walsall Council,http://opendatacommunities.org/id/metropolitan-district-council/walsall,WC86-756,30/11/2017,Childrens,REDACTED,17/11/2017,162.73,74504-HOLIDAY/CHRISTMAS ALLOWANCE-FOSTER CARERS,FAMILY & FRIENDS FOSTER CARE PROVISION,Transfer Payments,Revenue
Walsall Council,http://opendatacommunities.org/id/metropolitan-district-council/walsall,WC86-757,30/11/2017,Childrens,REDACTED,17/11/2017,650.92,74501-MAINTENANCE ALLOWANCE-FOSTER CARERS,FAMILY & FRIENDS FOSTER CARE PROVISION,Transfer Payments,Revenue
Walsall Council,http://opendatacommunities.org/id/metropolitan-district-council/walsall,WC86-758,30/11/2017,Childrens,REDACTED,17/11/2017,650.92,74501-MAINTENANCE ALLOWANCE-FOSTER CARERS,FAMILY & FRIENDS FOSTER CARE PROVISION,Transfer Payments,Revenue
Walsall Council,http://opendatacommunities.org/id/metropolitan-district-council/walsall,WC86-759,30/11/2017,Adult Social Care,CALDENE  REST HOME,28/11/2017,"1,656.00",73373-RESIDENTIAL & NURSING CARE PLACEMENTS,OP PACKAGE/PLACEMENT COSTS,Third Party Payments,Revenue
Walsall Council,http://opendatacommunities.org/id/metropolitan-district-council/walsall,WC86-760,30/11/2017,Adult Social Care,CALDMORE AREA HOUSING ASS LTD,20/11/2017,"2,612.72",73373-RESIDENTIAL & NURSING CARE PLACEMENTS,MH COMMISSIONING,Third Party Payments,Revenue
Walsall Council,http://opendatacommunities.org/id/metropolitan-district-council/walsall,WC86-761,30/11/2017,Adult Social Care,CALDMORE AREA HOUSING ASS LTD,20/11/2017,"2,612.72",73373-RESIDENTIAL & NURSING CARE PLACEMENTS,MH COMMISSIONING,Third Party Payments,Revenue
Walsall Council,http://opendatacommunities.org/id/metropolitan-district-council/walsall,WC86-762,30/11/2017,Adult Social Care,CALDMORE AREA HOUSING ASS LTD,20/11/2017,"2,612.72",73373-RESIDENTIAL & NURSING CARE PLACEMENTS,MH COMMISSIONING,Third Party Payments,Revenue
Walsall Council,http://opendatacommunities.org/id/metropolitan-district-council/walsall,WC86-763,30/11/2017,Adult Social Care,CALDMORE AREA HOUSING ASS LTD,20/11/2017,"2,612.72",73373-RESIDENTIAL & NURSING CARE PLACEMENTS,MH COMMISSIONING,Third Party Payments,Revenue
Walsall Council,http://opendatacommunities.org/id/metropolitan-district-council/walsall,WC86-764,30/11/2017,Adult Social Care,CALDMORE AREA HOUSING ASS LTD,20/11/2017,"2,612.72",73373-RESIDENTIAL & NURSING CARE PLACEMENTS,MH COMMISSIONING,Third Party Payments,Revenue
